{"text_format":"1","workbook":"xlsx","n_sheets":8,"sheets":["السادس","الخامس","الرابع","الثالث","الثاني","الاول","Feuil1","التقرير"],"not_rendered":{"charts":0,"images":2,"macros":1,"external_links":0,"defined_names":18,"comments":1,"pivot_tables":0},"unopened":[],"bounds":{"document_bytes":16777216,"sheet_cells":100000,"rows_first":2000,"rows_last":500,"rows_between":2000,"halvings":0,"cell_chars":16384,"cell_head_chars":4096},"cells_cut":0,"cells_raw":0,"read":"whole","date_system":"1900"}

{"sheet":"السادس","index":0,"n_rows":96,"n_cols":6,"rows_kept":96,"cut":false,"hidden":false,"merged":[]}
[]
["السادس",{"$f":"COUNTA(B4:B100)","v":55}]
["القيد","الاسم","الصف","النتيجة","المجموع","التكرار"]
["153/13","احمد سبت والي خير الله","السادس","ترحيل",null,{"$f":"COUNTIF($B$4:$B$184,B4)>1","v":false}]
["135/13","أمير فراس عبد الستار عباس","السادس","ترحيل",null,{"$f":"COUNTIF($B$4:$B$184,H17)>1","v":false}]
["20/13","حسين علاء علوان كريم","السادس","ترحيل",null,{"$f":"COUNTIF($B$4:$B$184,B5)>1","v":false}]
["19/13","حيدر علوان كاظم شنيو","السادس","ترحيل",null,{"$f":"COUNTIF($B$4:$B$184,B6)>1","v":false}]
["72/13","حيدر هادي طعيمه مشكور","السادس","ترحيل",null,{"$f":"COUNTIF($B$4:$B$184,H18)>1","v":false}]
["308/12","رضا كاظم شراد حمادي","السادس","ترحيل",null,{"$f":"COUNTIF($B$4:$B$184,B7)>1","v":false}]
["162/13","سالم باسم عبدالرزاق حسن","السادس","ترحيل",null,{"$f":"COUNTIF($B$4:$B$184,#REF!)>1","v":false}]
["163/13","ضرغام محمد عبد الرزاق موسى","السادس","ترحيل",null,{"$f":"COUNTIF($B$4:$B$184,H19)>1","v":false}]
["320/13","عباس احمد جبر دبيس","السادس","ترحيل",null,{"$f":"COUNTIF($B$4:$B$184,B8)>1","v":false}]
["52/13","علي حاتم كريم دبال","السادس","ترحيل",null,{"$f":"COUNTIF($B$4:$B$184,#REF!)>1","v":false}]
["172/13","علي سالم جواد حسين","السادس","ترحيل",null,{"$f":"COUNTIF($B$4:$B$184,B9)>1","v":false}]
["152/13","علي صالح والي سلمان","السادس","ترحيل",null,{"$f":"COUNTIF($B$4:$B$184,B10)>1","v":false}]
["133/13","علي وسام حسان عبد ","السادس","ترحيل",null,{"$f":"COUNTIF($B$4:$B$184,H20)>1","v":false}]
["78/14","كرار رافد محمد عبد الله","السادس","ترحيل",null,{"$f":"COUNTIF($B$4:$B$184,B11)>1","v":false}]
["145/13","كرار رعد مري عبدالرضا","السادس","ترحيل",null,{"$f":"COUNTIF($B$4:$B$184,B12)>1","v":false}]
["103/13","كريم هادي محمد خضير","السادس","ترحيل",null,{"$f":"COUNTIF($B$4:$B$184,H21)>1","v":false}]
["102/13","مجتبى نبيل طارش محمد","السادس","ترحيل",null,{"$f":"COUNTIF($B$4:$B$184,B13)>1","v":false}]
["65/14","محسن هيثم كاظم هلاوي","السادس","ترحيل",null,{"$f":"COUNTIF($B$4:$B$184,H22)>1","v":false}]
["144/13","محمد حسام كاظم اعطيه","السادس","ترحيل",null,{"$f":"COUNTIF($B$4:$B$184,B14)>1","v":false}]
["178/13","محمد ماجد سيار حرك","السادس","ترحيل",null,{"$f":"COUNTIF($B$4:$B$184,B15)>1","v":false}]
["293/12","محمدعلي حسين عبادي غزاي","السادس","ترحيل",null,{"$f":"COUNTIF($B$4:$B$184,B16)>1","v":false}]
["192/13","منتظر عماد عباس عزوز","السادس","ترحيل",null,{"$f":"COUNTIF($B$4:$B$184,H14)>1","v":false}]
["323/12","مهدي حيدر عبد محسن","السادس","ترحيل",null,{"$f":"COUNTIF($B$4:$B$184,B17)>1","v":false}]
["138/13","احمدموسى حازم عجه عبد الحسين","السادس","ترحيل",null,{"$f":"COUNTIF($B$4:$B$184,B18)>1","v":false}]
["134/13","امير جاسم داخل عبد","السادس","ترحيل",null,{"$f":"COUNTIF($B$4:$B$184,H23)>1","v":false}]
["160/13","أمير خالد جمال هاشم","السادس","ترحيل",null,{"$f":"COUNTIF($B$4:$B$184,B19)>1","v":false}]
["202/13","باقر رياض حمزه مطر","السادس","ترحيل",null,{"$f":"COUNTIF($B$4:$B$184,B20)>1","v":false}]
["159/13","حسن حازم منشد فرج","السادس","ترحيل",null,{"$f":"COUNTIF($B$4:$B$184,B21)>1","v":false}]
["206/13","حسين احمد عزيز راضي","السادس","ترحيل",null,{"$f":"COUNTIF($B$4:$B$184,B22)>1","v":false}]
["54/13","حسين علاء فليح حسن","السادس","ترحيل",null,{"$f":"COUNTIF($B$4:$B$184,B23)>1","v":false}]
["156/13","حسين محمد جابر شاطي","السادس","ترحيل",null,{"$f":"COUNTIF($B$4:$B$184,B26)>1","v":false}]
["70/13","رضا عباس عبيد عطيه","السادس","ترحيل",null,{"$f":"COUNTIF($B$4:$B$184,B27)>1","v":false}]
["266/12","رضا فاضل علي عبيد","السادس","ترحيل",null,{"$f":"COUNTIF($B$4:$B$184,B28)>1","v":false}]
["165/13","سجاد محمد هليل عسر","السادس","ترحيل",null,{"$f":"COUNTIF($B$4:$B$184,B31)>1","v":false}]
["175/13","سيف اسعد شلال شهاب","السادس","ترحيل",null,{"$f":"COUNTIF($B$4:$B$184,B32)>1","v":false}]
["80/13","طالب رياض طالب ارحيم","السادس","ترحيل",null,{"$f":"COUNTIF($B$4:$B$184,B33)>1","v":false}]
["157/13","عباس فالح والي سلمان","السادس","ترحيل",null,{"$f":"COUNTIF($B$4:$B$184,#REF!)>1","v":false}]
["167/13","علي احمد رحيم خضور","السادس","ترحيل",null,{"$f":"COUNTIF($B$4:$B$184,#REF!)>1","v":false}]
["101/13","علي اكبر علاء حميد غزاي","السادس","ترحيل",null,{"$f":"COUNTIF($B$4:$B$184,B34)>1","v":false}]
["173/13","علي الكرار تحسين علي داخل","السادس","ترحيل",null,{"$f":"COUNTIF($B$4:$B$184,B35)>1","v":false}]
["264/13","علي حسين جابر بريج","السادس","ترحيل",null,{"$f":"COUNTIF($B$4:$B$184,B36)>1","v":false}]
["143/13","علي حسين شلاكه رداد","السادس","ترحيل",null,{"$f":"COUNTIF($B$4:$B$184,#REF!)>1","v":false}]
["51/13","كرار مرتضى حسن عجيل","السادس","ترحيل",null,{"$f":"COUNTIF($B$4:$B$184,#REF!)>1","v":false}]
["14/13","مالك حازم حياوي جليل","السادس","ترحيل",null,{"$f":"COUNTIF($B$4:$B$184,B37)>1","v":false}]
["169/13","محمد جواد كاظم عباس","السادس","ترحيل",null,false]
["322/13","محمد حيدر جفات ثجيل","السادس","ترحيل",null,false]
["154/13","محمد رحيم بديوي شكاكي","السادس","ترحيل",null,false]
["140/13","محمد ماجد داخل محمد","السادس","ترحيل",null,false]
["146/13","محمد ميثم عبد المحسن عبد الشهيد","السادس","ترحيل",null,false]
["262/13","مراد خالد عبد اليمه بكه","السادس","ترحيل",null,false]
["81/13","مصطفى احمد علي محسن","السادس","ترحيل",null,false]
["309/12","منتظر حيدر فاضل جابر","السادس","ترحيل",null,false]
["149/13","مهند قاسم كريم نوري","السادس","ترحيل",null,false]
["164/13","مؤمل عباس جاسم كاطع","السادس","ترحيل",null,false]
["84/13","ياسر حسن شاكر سهر","السادس","ترحيل",null,false]
[null,null,null,null,null,false]
[null,null,null,null,null,false]
[null,null,null,null,null,false]
[null,null,null,null,null,false]
[null,null,null,null,null,false]
[null,null,null,null,null,false]
[null,null,null,null,null,false]
[null,null,null,null,null,false]
[null,null,null,null,null,false]
[null,null,null,null,null,false]
[null,null,null,null,null,false]
[null,null,null,null,null,false]
[null,null,null,null,null,false]
[null,null,null,null,null,false]
[null,null,null,null,null,false]
[null,null,null,null,null,false]
[null,null,null,null,null,false]
[null,null,null,null,null,false]
[null,null,null,null,null,false]
[null,null,null,null,null,false]
[null,null,null,null,null,{"$f":"COUNTIF($B$4:$B$184,B69)>1","v":false}]
[null,null,null,null,null,false]
[null,null,null,null,null,false]
[null,null,null,null,null,false]
[null,null,null,null,null,false]
[null,null,null,null,null,false]
[null,null,null,null,null,false]
[null,null,null,null,null,false]
[null,null,null,null,null,false]
[null,null,null,null,null,false]
[null,null,null,null,null,false]
[null,null,null,null,null,false]
[null,null,null,null,null,false]
[null,null,null,null,null,false]
[null,null,null,null,null,false]
[null,null,null,null,null,false]
[null,null,null,null,null,false]
[null,null,null,null,null,false]

{"sheet":"الخامس","index":1,"n_rows":169,"n_cols":6,"rows_kept":169,"cut":false,"hidden":false,"merged":[]}
[]
["الخامس",{"$f":"COUNTA(B4:B100)","v":97},null,null,null,"التكرار"]
["القيد","الاسم","الصف","النتيجة","المجموع",{"$f":"COUNTIF($B$4:$B$200,B3)>1","v":false}]
["252/13","احمد بدر لايذ عوض","الخامس",null,null,{"$f":"COUNTIF($B$4:$B$200,B4)>1","v":false}]
["110/13","احمد عامر مليوخ احسين","الخامس",null,null,false]
["211/13","حسن عباس صبار مونس","الخامس",null,null,false]
["255/13","حسين امير كريم محمد","الخامس",null,null,false]
["170/13","حسين علي حسين عطشان","الخامس",null,null,false]
["259/13","حسين محمد عبد اليمه بكه","الخامس",null,null,false]
["155/13","حيدر جلال خالد حسن","الخامس",null,null,false]
["123/14","رضا حيدر خلاوي محمد","الخامس",null,null,false]
["224/13","رضا علوان كاظم شنيو","الخامس",null,null,false]
["238/13","عباس علي مسلم عزيز","الخامس",null,null,false]
["236/13","علي عامر كامل جوده","الخامس",null,null,false]
["151/13","عمار هيثم جاسم عبود","الخامس",null,null,false]
["118/14","قاسم نبيل حسين جلاب","الخامس",null,null,false]
["147/13","كرار حيدر صالح كاظم","الخامس",null,null,false]
["244/13","كرار محمد حسن هداد","الخامس",null,null,false]
["73/14","مجتبى عمران موسى جويد","الخامس",null,null,false]
["331/13","محمد جاسم سلمان حمود","الخامس",null,null,false]
["245/13","محمد جبار كاظم حسن","الخامس",null,null,false]
["229/13","محمد خالد رهيف عواد","الخامس",null,null,false]
["324/13","مصطفى أحمد غثيث عطشان","الخامس",null,null,false]
["248/13","مصطفى قاسم علوان عزوز","الخامس",null,null,false]
["74/14","منتظر جبار هول محمد","الخامس",null,null,false]
["258/13","منتظر حسين علي باشي","الخامس",null,null,false]
["115/14","مهدي حسين علي هلول","الخامس",null,null,false]
["124/14","ميمون احمد شريف غزال","الخامس",null,null,false]
["246/13","أبراهيم حيدر علي عبد العزيز","الخامس",null,null,false]
["216/13","أبراهيم علي أبراهيم عوده","الخامس",null,null,false]
["142/13","باقر علاء عيدان عيساوي","الخامس",null,null,false]
["69/13","حسن ازهر عبدحسن عبيد","الخامس",null,null,false]
["161/13","حسن غماس كليب خضير","الخامس",null,null,false]
["119/14","حسن فلاح حسن طريد","الخامس",null,null,false]
["114/14","حسين جواد كاظم عباس","الخامس",null,null,false]
["92/13","حسين حازم جاسم عبود","الخامس",null,null,false]
["253/13","حسين رأفت كاظم كرادي","الخامس",null,null,false]
["228/13","حسين رياض عبد اللطيف نصيف","الخامس",null,null,false]
["241/13","حسين زاهر كاظم حسن","الخامس",null,null,false]
["240/13","حسين علي باقر ياسر","الخامس",null,null,false]
["42/13","حسين وقاص صباح حرجان","الخامس",null,null,false]
["186/13","حمزة جبار كاظم حسن","الخامس",null,null,false]
["217/13","حيدر مهدي طالب علي","الخامس",null,null,false]
["150/13","رضا نبيل هاني حمادي","الخامس",null,null,false]
["القيد غير موجود","سجاد جاسم محمد","الخامس",null,null,false]
["220/13","عباس انمار كريم محمد","الخامس",null,null,false]
["116/14","عباس حسين علي هلول","الخامس",null,null,false]
["249/13","عباس صفاء بدري خضر","الخامس",null,null,false]
["326/12","عباس علي ابراهيم عوده","الخامس",null,null,{"$f":"COUNTIF($B$4:$B$200,B49)>1","v":false}]
["247/13","عباس محمد نجم نذير","الخامس",null,null,false]
["237/13","عباس مسلم مزهر كاني","الخامس",null,null,false]
["61/14","علي احمد عبد الله غالي","الخامس",null,null,false]
["49/13","علي رحيم ساجت خواف","الخامس",null,null,false]
["105/13","علي محمد علي طحيور","الخامس",null,null,false]
["239/13","كرار وسام حسان عبد","الخامس",null,null,false]
["233/13","مجتبى تحسين علي داخل","الخامس",null,null,false]
["265/13","مجتبى علي اخضير محسن","الخامس",null,null,false]
["230/13","محمد حمزه بجاي  محسن","الخامس",null,null,false]
["231/13","محمد ياسر رزاق كاظم","الخامس",null,null,false]
["242/13","مرتضى علاء عيدان عيساوي","الخامس",null,null,false]
["210/13","مسلم عقيل علوان عزوز","الخامس",null,null,false]
["137/13","مصطفى هادي محمد خضير","الخامس",null,null,false]
["218/13","منتظر فالح كزار شنيار","الخامس",null,null,false]
[{"$f":"IF(B64=\"\",\"\",SUBTOTAL(3,$B$51:B64))","v":""},"","",null,null,true]
[{"$f":"IF(B65=\"\",\"\",SUBTOTAL(3,$B$51:B65))","v":""},"","",null,null,true]
[{"$f":"IF(B66=\"\",\"\",SUBTOTAL(3,$B$51:B66))","v":""},"","",null,null,true]
[{"$f":"IF(B67=\"\",\"\",SUBTOTAL(3,$B$51:B67))","v":""},"","",null,null,true]
[{"$f":"IF(B68=\"\",\"\",SUBTOTAL(3,$B$51:B68))","v":""},"","",null,null,{"$f":"COUNTIF($B$4:$B$200,B68)>1","v":true}]
[{"$f":"IF(B69=\"\",\"\",SUBTOTAL(3,$B$51:B69))","v":""},"","",null,null,true]
[{"$f":"IF(B70=\"\",\"\",SUBTOTAL(3,$B$51:B70))","v":""},"","",null,null,true]
[{"$f":"IF(B71=\"\",\"\",SUBTOTAL(3,$B$51:B71))","v":""},"","",null,null,true]
[{"$f":"IF(B72=\"\",\"\",SUBTOTAL(3,$B$51:B72))","v":""},"","",null,null,true]
[{"$f":"IF(B73=\"\",\"\",SUBTOTAL(3,$B$51:B73))","v":""},"","",null,null,true]
[{"$f":"IF(B74=\"\",\"\",SUBTOTAL(3,$B$51:B74))","v":""},"","",null,null,true]
[{"$f":"IF(B75=\"\",\"\",SUBTOTAL(3,$B$51:B75))","v":""},"","",null,null,true]
[{"$f":"IF(B76=\"\",\"\",SUBTOTAL(3,$B$51:B76))","v":""},"","",null,null,true]
[{"$f":"IF(B77=\"\",\"\",SUBTOTAL(3,$B$51:B77))","v":""},"","",null,null,true]
[{"$f":"IF(B78=\"\",\"\",SUBTOTAL(3,$B$51:B78))","v":""},"","",null,null,true]
[{"$f":"IF(B79=\"\",\"\",SUBTOTAL(3,$B$51:B79))","v":""},"","",null,null,true]
[{"$f":"IF(B80=\"\",\"\",SUBTOTAL(3,$B$51:B80))","v":""},"","",null,null,true]
[{"$f":"IF(B81=\"\",\"\",SUBTOTAL(3,$B$51:B81))","v":""},"","",null,null,true]
[{"$f":"IF(B82=\"\",\"\",SUBTOTAL(3,$B$51:B82))","v":""},"","",null,null,true]
[{"$f":"IF(B83=\"\",\"\",SUBTOTAL(3,$B$51:B83))","v":""},"","",null,null,true]
[{"$f":"IF(B84=\"\",\"\",SUBTOTAL(3,$B$51:B84))","v":""},"","",null,null,true]
[{"$f":"IF(B85=\"\",\"\",SUBTOTAL(3,$B$51:B85))","v":""},"","",null,null,true]
[{"$f":"IF(B86=\"\",\"\",SUBTOTAL(3,$B$51:B86))","v":""},"","",null,null,true]
[{"$f":"IF(B87=\"\",\"\",SUBTOTAL(3,$B$51:B87))","v":""},"","",null,null,true]
[{"$f":"IF(B88=\"\",\"\",SUBTOTAL(3,$B$51:B88))","v":""},"","",null,null,true]
[{"$f":"IF(B89=\"\",\"\",SUBTOTAL(3,$B$51:B89))","v":""},"","",null,null,true]
[{"$f":"IF(B90=\"\",\"\",SUBTOTAL(3,$B$51:B90))","v":""},"","",null,null,true]
[{"$f":"IF(B91=\"\",\"\",SUBTOTAL(3,$B$51:B91))","v":""},"","",null,null,true]
[null,"","",null,null,true]
["ت","","",null,null,true]
[{"$f":"IF(B94=\"\",\"\",SUBTOTAL(3,$B$94:B94))","v":""},"","",null,null,true]
[{"$f":"IF(B95=\"\",\"\",SUBTOTAL(3,$B$94:B95))","v":""},"","",null,null,true]
[{"$f":"IF(B96=\"\",\"\",SUBTOTAL(3,$B$94:B96))","v":""},"","",null,null,true]
[{"$f":"IF(B97=\"\",\"\",SUBTOTAL(3,$B$94:B97))","v":""},"","",null,null,true]
[{"$f":"IF(B98=\"\",\"\",SUBTOTAL(3,$B$94:B98))","v":""},"","",null,null,true]
[{"$f":"IF(B99=\"\",\"\",SUBTOTAL(3,$B$94:B99))","v":""},"","",null,null,true]
[{"$f":"IF(B100=\"\",\"\",SUBTOTAL(3,$B$94:B100))","v":""},"","",null,null,true]
[{"$f":"IF(B101=\"\",\"\",SUBTOTAL(3,$B$94:B101))","v":""},"","",null,null,true]
[{"$f":"IF(B102=\"\",\"\",SUBTOTAL(3,$B$94:B102))","v":""},"","",null,null,true]
[{"$f":"IF(B103=\"\",\"\",SUBTOTAL(3,$B$94:B103))","v":""},"","",null,null,true]
[{"$f":"IF(B104=\"\",\"\",SUBTOTAL(3,$B$94:B104))","v":""},"","",null,null,true]
[{"$f":"IF(B105=\"\",\"\",SUBTOTAL(3,$B$94:B105))","v":""},"","",null,null,true]
[{"$f":"IF(B106=\"\",\"\",SUBTOTAL(3,$B$94:B106))","v":""},"","",null,null,true]
[{"$f":"IF(B107=\"\",\"\",SUBTOTAL(3,$B$94:B107))","v":""},"","",null,null,true]
[{"$f":"IF(B108=\"\",\"\",SUBTOTAL(3,$B$94:B108))","v":""},"","",null,null,true]
[{"$f":"IF(B109=\"\",\"\",SUBTOTAL(3,$B$94:B109))","v":""},"","",null,null,true]
[{"$f":"IF(B110=\"\",\"\",SUBTOTAL(3,$B$94:B110))","v":""},"","",null,null,true]
[{"$f":"IF(B111=\"\",\"\",SUBTOTAL(3,$B$94:B111))","v":""},"","",null,null,true]
[{"$f":"IF(B112=\"\",\"\",SUBTOTAL(3,$B$94:B112))","v":""},"","",null,null,true]
[{"$f":"IF(B113=\"\",\"\",SUBTOTAL(3,$B$94:B113))","v":""},"","",null,null,true]
[{"$f":"IF(B114=\"\",\"\",SUBTOTAL(3,$B$94:B114))","v":""},"","",null,null,true]
[{"$f":"IF(B115=\"\",\"\",SUBTOTAL(3,$B$94:B115))","v":""},"","",null,null,true]
[{"$f":"IF(B116=\"\",\"\",SUBTOTAL(3,$B$94:B116))","v":""},"","",null,null,true]
[{"$f":"IF(B117=\"\",\"\",SUBTOTAL(3,$B$94:B117))","v":""},"","",null,null,true]
[{"$f":"IF(B118=\"\",\"\",SUBTOTAL(3,$B$94:B118))","v":""},"","",null,null,true]
[{"$f":"IF(B119=\"\",\"\",SUBTOTAL(3,$B$94:B119))","v":""},"","",null,null,true]
[{"$f":"IF(B120=\"\",\"\",SUBTOTAL(3,$B$94:B120))","v":""},"","",null,null,true]
[{"$f":"IF(B121=\"\",\"\",SUBTOTAL(3,$B$94:B121))","v":""},"","",null,null,true]
[{"$f":"IF(B122=\"\",\"\",SUBTOTAL(3,$B$94:B122))","v":""},"","",null,null,true]
[{"$f":"IF(B123=\"\",\"\",SUBTOTAL(3,$B$94:B123))","v":""},"","",null,null,true]
[{"$f":"IF(B124=\"\",\"\",SUBTOTAL(3,$B$94:B124))","v":""},"","",null,null,true]
[{"$f":"IF(B125=\"\",\"\",SUBTOTAL(3,$B$94:B125))","v":""},"","",null,null,true]
[{"$f":"IF(B126=\"\",\"\",SUBTOTAL(3,$B$94:B126))","v":""},"","",null,null,true]
[{"$f":"IF(B127=\"\",\"\",SUBTOTAL(3,$B$94:B127))","v":""},"","",null,null,true]
[{"$f":"IF(B128=\"\",\"\",SUBTOTAL(3,$B$94:B128))","v":""},"","",null,null,true]
[{"$f":"IF(B129=\"\",\"\",SUBTOTAL(3,$B$94:B129))","v":""},"","",null,null,true]
[{"$f":"IF(B130=\"\",\"\",SUBTOTAL(3,$B$94:B130))","v":""},"","",null,null,true]
[{"$f":"IF(B131=\"\",\"\",SUBTOTAL(3,$B$94:B131))","v":""},"","",null,null,true]
[{"$f":"IF(B132=\"\",\"\",SUBTOTAL(3,$B$94:B132))","v":""},"","",null,null,{"$f":"COUNTIF($B$4:$B$200,B132)>1","v":true}]
[{"$f":"IF(B133=\"\",\"\",SUBTOTAL(3,$B$94:B133))","v":""},"","",null,null,true]
[{"$f":"IF(B134=\"\",\"\",SUBTOTAL(3,$B$94:B134))","v":""},"","",null,null,true]
[{"$f":"IF(B135=\"\",\"\",SUBTOTAL(3,$B$94:B135))","v":""},"","",null,null,true]
[{"$f":"IF(B136=\"\",\"\",SUBTOTAL(3,$B$94:B136))","v":""},"","",null,null,true]
[{"$f":"IF(B137=\"\",\"\",SUBTOTAL(3,$B$94:B137))","v":""},"","",null,null,true]
[{"$f":"IF(B138=\"\",\"\",SUBTOTAL(3,$B$94:B138))","v":""},"","",null,null,true]
[{"$f":"IF(B139=\"\",\"\",SUBTOTAL(3,$B$94:B139))","v":""},"","",null,null,true]
[{"$f":"IF(B140=\"\",\"\",SUBTOTAL(3,$B$94:B140))","v":""},"","",null,null,true]
[{"$f":"IF(B141=\"\",\"\",SUBTOTAL(3,$B$94:B141))","v":""},"","",null,null,true]
[{"$f":"IF(B142=\"\",\"\",SUBTOTAL(3,$B$94:B142))","v":""},"","",null,null,true]
[{"$f":"IF(B143=\"\",\"\",SUBTOTAL(3,$B$94:B143))","v":""},"","",null,null,true]
[{"$f":"IF(B144=\"\",\"\",SUBTOTAL(3,$B$94:B144))","v":""},"","",null,null,true]
[{"$f":"IF(B145=\"\",\"\",SUBTOTAL(3,$B$94:B145))","v":""},"","",null,null,true]
[{"$f":"IF(B146=\"\",\"\",SUBTOTAL(3,$B$94:B146))","v":""},"","",null,null,true]
[{"$f":"IF(B147=\"\",\"\",SUBTOTAL(3,$B$94:B147))","v":""},"","",null,null,true]
[{"$f":"IF(B148=\"\",\"\",SUBTOTAL(3,$B$94:B148))","v":""},"","",null,null,true]
[{"$f":"IF(B149=\"\",\"\",SUBTOTAL(3,$B$94:B149))","v":""},"","",null,null,true]
[{"$f":"IF(B150=\"\",\"\",SUBTOTAL(3,$B$94:B150))","v":""},"","",null,null,true]
[{"$f":"IF(B151=\"\",\"\",SUBTOTAL(3,$B$94:B151))","v":""},null,null,null,null,false]
[{"$f":"IF(B152=\"\",\"\",SUBTOTAL(3,$B$94:B152))","v":""},null,null,null,null,false]
[{"$f":"IF(B153=\"\",\"\",SUBTOTAL(3,$B$94:B153))","v":""},null,null,null,null,false]
[{"$f":"IF(B154=\"\",\"\",SUBTOTAL(3,$B$94:B154))","v":""},null,null,null,null,false]
[{"$f":"IF(B155=\"\",\"\",SUBTOTAL(3,$B$94:B155))","v":""},null,null,null,null,false]
[{"$f":"IF(B156=\"\",\"\",SUBTOTAL(3,$B$94:B156))","v":""},null,null,null,null,false]
[{"$f":"IF(B157=\"\",\"\",SUBTOTAL(3,$B$94:B157))","v":""},null,null,null,null,false]
[{"$f":"IF(B158=\"\",\"\",SUBTOTAL(3,$B$94:B158))","v":""},null,null,null,null,false]
[{"$f":"IF(B159=\"\",\"\",SUBTOTAL(3,$B$94:B159))","v":""},null,null,null,null,false]
[{"$f":"IF(B160=\"\",\"\",SUBTOTAL(3,$B$94:B160))","v":""},null,null,null,null,false]
[{"$f":"IF(B161=\"\",\"\",SUBTOTAL(3,$B$94:B161))","v":""},null,null,null,null,false]
[null,null,null,null,null,false]
[null,null,null,null,null,false]
[null,null,null,null,null,false]
[null,null,null,null,null,false]
[null,null,null,null,null,false]
[null,null,null,null,null,false]
[null,null,null,null,null,false]
[null,null,null,null,null,false]

{"sheet":"الرابع","index":2,"n_rows":97,"n_cols":6,"rows_kept":97,"cut":false,"hidden":false,"merged":[]}
[]
["الرابع",{"$f":"COUNTA(B4:B100)","v":38}]
["القيد","الاسم","الصف","النتيجة","المجموع","التكرار"]
["251/13","احمد ثائر عبد زيد حسن","الرابع",null,null,{"$f":"COUNTIF($B$4:$B$200,A4)>1","v":false}]
["316/13","احمد حسين شلاكة رداد","الرابع",null,null,{"$f":"COUNTIF($B$4:$B$200,A5)>1","v":false}]
["301/13","حسن حيدر كاظم فضيل","الرابع",null,null,false]
["القيد غير موجود","حسن محمد جمعه عيدان","الرابع",null,null,false]
["270/13","حسنين رائد جبار حسن","الرابع",null,null,false]
["269/13","حسين حازم منشد فرج","الرابع",null,null,false]
["317/13","حسين علي محمد عبد","الرابع",null,null,false]
["القيد غير موجود","حيدر عباس حمود عيسى","الرابع",null,null,false]
["304/13","زين العابدين حسين كامل شريف","الرابع",null,null,false]
["24/13","عبد الله كريم عصود عرنوص","الرابع",null,null,false]
["287/13","علي أحمد منشد لامي","الرابع",null,null,false]
["232/13","كرار حسين شراد حمادي","الرابع",null,null,false]
["214/13","محمد حسن احميد جاسم","الرابع",null,null,false]
["284/13","مصطفى كمال كامل غازي","الرابع",null,null,false]
["295/13","مهدي صالح مليوخ حسين","الرابع",null,null,false]
["37/13","مهدي عباس علي صكر","الرابع",null,null,false]
["282/13","مؤمل رعد مري عبدالرضا","الرابع",null,null,false]
["285/13","مؤمل قاسم حمزه جابر","الرابع",null,null,false]
["267/13","احمد سعيد مري عبدالرضا","الرابع",null,null,false]
["59/14","احمد محمد عباس حسن","الرابع",null,null,false]
["305/13","اسحاق حميد محمد شوكت","الرابع",null,null,false]
["286/13","جعفر احمد تومان صلال","الرابع",null,null,false]
["315/13","جعفر طالب راضي فضيل","الرابع",null,null,false]
["268/13","حسنين عباس وحيد مبارك","الرابع",null,null,false]
["292/13","ذوالفقار سيف علي رزوكي","الرابع",null,null,false]
["311/13","رضا حيدر حسن مهدي","الرابع",null,null,false]
["298/13","عباس كاظم عبد الخضر حسوني","الرابع",null,null,false]
["310/13","عباس وليد عليوي عبود","الرابع",null,null,false]
["223/13","علي قحطان سالم ناصر","الرابع",null,null,false]
["60/14","علي محسن محمد حسن","الرابع",null,null,false]
["234/13","علي نبيل هاني حمادي","الرابع",null,null,false]
["276/13","كرار حسن كاظم جاسم","الرابع",null,null,false]
["222/13","محمد رسول عبد الشريف  حمزه","الرابع",null,null,false]
["283/13","محمد رياض كاظم فضيل","الرابع",null,null,false]
["299/13","محمد صفاء عدنان عبدالله","الرابع",null,null,false]
["76/14","محمدرضا علي موسى مطلب","الرابع",null,null,false]
["48/13","مصطفى حيدر جبار سهر","الرابع",null,null,false]
["303/13","مؤمل حيدر حمودي مهدي","الرابع",null,null,false]
[null,null,null,null,null,false]
[null,null,null,null,null,false]
[null,null,null,null,null,false]
[null,null,null,null,null,false]
[null,null,null,null,null,false]
[null,null,null,null,null,false]
[null,null,null,null,null,false]
[null,null,null,null,null,false]
[null,null,null,null,null,false]
[null,null,null,null,null,false]
[null,null,null,null,null,false]
[null,null,null,null,null,false]
[null,null,null,null,null,false]
[null,null,null,null,null,false]
[null,null,null,null,null,false]
[null,null,null,null,null,false]
[null,null,null,null,null,false]
[null,null,null,null,null,false]
[null,null,null,null,null,false]
[null,null,null,null,null,false]
[null,null,null,null,null,false]
[null,null,null,null,null,false]
[null,null,null,null,null,false]
[null,null,null,null,null,false]
[null,null,null,null,null,false]
[null,null,null,null,null,false]
[null,null,null,null,null,false]
[null,null,null,null,null,{"$f":"COUNTIF($B$4:$B$200,A69)>1","v":false}]
[null,null,null,null,null,false]
[null,null,null,null,null,false]
[null,null,null,null,null,false]
[null,null,null,null,null,false]
[null,null,null,null,null,false]
[null,null,null,null,null,false]
[null,null,null,null,null,false]
[null,null,null,null,null,false]
[null,null,null,null,null,false]
[null,null,null,null,null,false]
[null,null,null,null,null,false]
[null,null,null,null,null,false]
[null,null,null,null,null,false]
[null,null,null,null,null,false]
[null,null,null,null,null,false]
[null,null,null,null,null,false]
[null,null,null,null,null,false]
[null,null,null,null,null,false]
[null,null,null,null,null,false]
[null,null,null,null,null,false]
[null,null,null,null,null,false]
[null,null,null,null,null,false]
[null,null,null,null,null,false]
[null,null,null,null,null,false]
[null,null,null,null,null,false]
[null,null,null,null,null,false]
[null,null,null,null,null,false]
[null,null,null,null,null,false]

{"sheet":"الثالث","index":3,"n_rows":100,"n_cols":6,"rows_kept":100,"cut":false,"hidden":false,"merged":[]}
[]
["الثالث",{"$f":"COUNTA(B4:B100)","v":50}]
["القيد","الاسم","الصف","النتيجة","المجموع","التكرار"]
["125/14","احمد فراس يحيى محمد","الثالث",null,null,{"$f":"COUNTIF($B$4:$B$200,A4)>1","v":false}]
["32/14","باقر عامر انعيم حنتوش","الثالث",null,null,{"$f":"COUNTIF($B$4:$B$200,A5)>1","v":false}]
["333/13","حسن عدنان هاني حمادي","الثالث",null,null,false]
["39/14","حسن علي محيسن زغير","الثالث",null,null,false]
["46/14","حسن مفتن حسين مفتن","الثالث",null,null,false]
["312/13","حسن هادي صاحب جعاز","الثالث",null,null,false]
["19/14","حسين عامر عباس حسن","الثالث",null,null,false]
["27/14","رضا ماجد جفات ثجيل","الثالث",null,null,false]
["17/14","سجاد احمد شهيد حنيوي","الثالث",null,null,false]
["43/14","سجاد ضرار جبار عبد الحسن","الثالث",null,null,false]
["56/14","سجاد علي لفته جعيز","الثالث",null,null,false]
["41/14","عباس زهير مزهر كاني","الثالث",null,null,false]
["القيد غير موجود","علي امير نجم","الثالث",null,null,false]
["34/14","علي حيدر جفات ثجيل","الثالث",null,null,false]
["280/13","علي حيدر صالح كاظم","الثالث",null,null,false]
["20/14","علي حيدر علي عبد العزيز","الثالث",null,null,false]
["القيد غير موجود","علي سلام نجم","الثالث",null,null,false]
["40/14","علي محمد لفته جعيز","الثالث",null,null,false]
["275/13","كاظم رحيم علي حسوني","الثالث",null,null,false]
["24/14","محمد حسام حسين نعمه","الثالث",null,null,false]
["293/13","محمد نبيل طارش محمد","الثالث",null,null,false]
["13/14","محمدالمهدي علاء راضي فضيل","الثالث",null,null,false]
["10/14","مصطفى محمد صباح حرجان","الثالث",null,null,false]
["8/14","مؤمل احمد سالم ناصر","الثالث",null,null,false]
["254/13","مؤمل حيدر جبار سهر","الثالث",null,null,false]
["49/14","مؤمل مثنى قابل جبر","الثالث",null,null,false]
["29/14","يوسف سلام طالب حسين","الثالث",null,null,false]
["21/14","يونس مثنى شلال شهاب","الثالث",null,null,false]
["332/13","احمد جاسم سلمان حمود","الثالث",null,null,false]
["9/14","امير حمد رحيم دبال","الثالث",null,null,false]
["26/14","امير علي عاصي عبد الرضا","الثالث",null,null,false]
["308/13","أحمد جبار كاظم حسن","الثالث",null,null,false]
["306/13","أحمد علي بطل بلال","الثالث",null,null,false]
["53/14","جعفر جاسم محمد حسن","الثالث",null,null,false]
["12/14","جعفر رياض حمزه مطر","الثالث",null,null,false]
["11/14","حسين محمد صكبان هداد","الثالث",null,null,false]
["14/14","حسين منير رحيم علي","الثالث",null,null,false]
["50/14","زيد علي طالب ارحيم","الثالث",null,null,false]
["7/14","طه علاء حسين علي","الثالث",null,null,false]
["51/14","عباس صلاح حسن عجيل","الثالث",null,null,false]
["44/14","علي حمزه بجاي محسن","الثالث",null,null,false]
["16/14","علي رضا محمد طعمه عبود","الثالث",null,null,false]
["319/13","علي عامر مليوخ احسين","الثالث",null,null,false]
["18/14","علي محمد براك ردام","الثالث",null,null,false]
["القيد غير موجود","علي محمد جواد","الثالث",null,null,false]
["30/14","كاظم كرار كاظم حسين","الثالث",null,null,false]
["314/13","كرار هيثم جاسم عبود","الثالث",null,null,false]
["القيد غير موجود","محمدالباقر اياد حمزه كريم","الثالث",null,null,false]
["31/14","مقتدى حيدر حمودي مهدي","الثالث",null,null,false]
["257/13","مؤمل حسين عبادي غزاي","الثالث",null,null,false]
[null,null,null,null,null,false]
[null,null,null,null,null,false]
[null,null,null,null,null,false]
[null,null,null,null,null,false]
[null,null,null,null,null,false]
[null,null,null,null,null,false]
[null,null,null,null,null,false]
[null,null,null,null,null,false]
[null,null,null,null,null,false]
[null,null,null,null,null,false]
[null,null,null,null,null,false]
[null,null,null,null,null,false]
[null,null,null,null,null,false]
[null,null,null,null,null,false]
[null,null,null,null,null,false]
[null,null,null,null,null,{"$f":"COUNTIF($B$4:$B$200,A69)>1","v":false}]
[null,null,null,null,null,false]
[null,null,null,null,null,false]
[null,null,null,null,null,false]
[null,null,null,null,null,false]
[null,null,null,null,null,false]
[null,null,null,null,null,false]
[null,null,null,null,null,false]
[null,null,null,null,null,false]
[null,null,null,null,null,false]
[null,null,null,null,null,false]
[null,null,null,null,null,false]
[null,null,null,null,null,false]
[null,null,null,null,null,false]
[null,null,null,null,null,false]
[null,null,null,null,null,false]
[null,null,null,null,null,false]
[null,null,null,null,null,false]
[null,null,null,null,null,false]
[null,null,null,null,null,false]
[null,null,null,null,null,false]
[null,null,null,null,null,false]
[null,null,null,null,null,false]
[null,null,null,null,null,false]
[null,null,null,null,null,false]
[null,null,null,null,null,false]
[null,null,null,null,null,false]
[null,null,null,null,null,false]
[null,null,null,null,null,false]
[null,null,null,null,null,false]
[null,null,null,null,null,false]
[null,null,null,null,null,false]

{"sheet":"الثاني","index":4,"n_rows":66,"n_cols":6,"rows_kept":66,"cut":false,"hidden":false,"merged":[]}
[]
["الثاني",{"$f":"COUNTA(B4:B100)","v":50}]
["القيد","الاسم","الصف","النتيجة","المجموع","التكرار"]
["القيد غير موجود","براق كاظم فيصل","الثاني",null,null,{"$f":"COUNTIF($B$4:$B$200,A4)>1","v":false}]
["83/14","بشير رعد مري عبدالرضا","الثاني",null,null,{"$f":"COUNTIF($B$4:$B$200,A5)>1","v":false}]
["25/14","حسين بركان صبحي جبار","الثاني",null,null,false]
["89/14","حسين علي حسين نعمه","الثاني",null,null,false]
["86/14","حسين فاضل علي عبيد","الثاني",null,null,false]
["42/14","حسين هادي صاحب جعاز","الثاني",null,null,false]
["69/14","حمزه خضير جواد حريجه","الثاني",null,null,false]
["58/14","حيدر حسين شراد حمادي","الثاني",null,null,false]
["47/14","سجاد احمد شلاكه مكوار","الثاني",null,null,false]
["القيد غير موجود","عباس ماهر تالي","الثاني",null,null,false]
["33/14","عباس مثنى هادي جبار","الثاني",null,null,false]
["98/14","علي صفاء عدنان عبدالله","الثاني",null,null,false]
["99/14","علي عبد الكاظم شنان تالي","الثاني",null,null,false]
["101/14","علي وسام لطيف عواد","الثاني",null,null,false]
["103/14","فارس سعود عواد عكيلي","الثاني",null,null,false]
["القيد غير موجود","محمد جواد حسين","الثاني",null,null,false]
["35/14","محمد عباس كريم راشد","الثاني",null,null,false]
["104/14","محمد علي كريم عبيد","الثاني",null,null,false]
["105/14","مصطفى باسم نغيمش سجين","الثاني",null,null,false]
["106/14","مصطفى محمد عباس حسن","الثاني",null,null,false]
["111/14","مؤمل محمد سجاد عيفي","الثاني",null,null,false]
["112/14","يوسف عباس عبيد عطيه","الثاني",null,null,false]
["79/14","امير علي اخضير محسن","الثاني",null,null,false]
["80/14","أسحاق اسماعيل محمد كريم","الثاني",null,null,false]
["81/14","أمير حسين علي باشي","الثاني",null,null,false]
["82/14","باقر باسم رسول صادق","الثاني",null,null,false]
["84/14","جعفر صادق محمدباقر حمد","الثاني",null,null,false]
["85/14","حسين خضير غازي عبدالحسين","الثاني",null,null,false]
["87/14","حسين كريم مسافر كاطع","الثاني",null,null,false]
["90/14","حيدر علي هادي شاهين","الثاني",null,null,false]
["القيد غير موجود","حيدر مجيد كريم مجدي","الثاني",null,null,false]
["91/14","رضا عامر عباس حسن","الثاني",null,null,false]
["55/14","رضا عقيل غني كاظم","الثاني",null,null,false]
["93/14","عباس أحمد اسماعيل غازي","الثاني",null,null,false]
["113/14","عباس أمير جمعه عيدان","الثاني",null,null,false]
["94/14","عباس سعيد مري عبدالرضا","الثاني",null,null,false]
["95/14","علي المرتضى حسين هادي شاهين","الثاني",null,null,false]
["96/14","علي أبراهيم ناصر عبدالله","الثاني",null,null,false]
["97/14","علي حمزه بدر لايذ","الثاني",null,null,false]
["57/14","علي عبد الامير اسماعيل عسر","الثاني",null,null,false]
["100/14","علي فراس صباح حرجان","الثاني",null,null,false]
["23/14","كرار احمد غثيث عطشان","الثاني",null,null,false]
["22/14","كرار رزاق الاسمر جبار","الثاني",null,null,false]
["102/14","كرار ياسر علي مصحب","الثاني",null,null,false]
["318/13","محمد رحمن شاكر شاتول","الثاني",null,null,false]
["القيد غير موجود","مصطفى علاء جاسم محمد","الثاني",null,null,false]
["107/14","مصطفى كاظم شلاكه رداد","الثاني",null,null,false]
["القيد غير موجود","مصطفى هادي صالح  داغر","الثاني",null,null,false]
["109/14","منتظر وسام حسان عبد","الثاني",null,null,false]
["110/14","مؤمل عدي كاظم مهدي","الثاني",null,null,false]
[null,null,null,null,null,false]
[null,null,null,null,null,false]
[null,null,null,null,null,false]
[null,null,null,null,null,false]
[null,null,null,null,null,false]
[null,null,null,null,null,false]
[null,null,null,null,null,false]
[null,null,null,null,null,false]
[null,null,null,null,null,false]
[null,null,null,null,null,false]
[null,null,null,null,null,false]
[null,null,null,null,null,false]
[null,null,null,null,null,false]

{"sheet":"الاول","index":5,"n_rows":96,"n_cols":6,"rows_kept":96,"cut":false,"hidden":false,"merged":[]}
[]
["الاول",{"$f":"COUNTA(B4:B100)","v":55}]
["القيد","الاسم","الصف","النتيجة","المجموع","التكرار"]
["القيد غير موجود","أحمد رعد شلال شهاب","الاول",null,null,{"$f":"COUNTIF($B$4:$B$184,B4)>1","v":false}]
["القيد غير موجود","باقر محمد علي كشيش","الاول",null,null,{"$f":"COUNTIF($B$4:$B$184,H17)>1","v":false}]
["القيد غير موجود","جعفر تحسين علي داخل","الاول",null,null,{"$f":"COUNTIF($B$4:$B$184,B5)>1","v":false}]
["القيد غير موجود","حسين نزار عبدالله حسين","الاول",null,null,{"$f":"COUNTIF($B$4:$B$184,B6)>1","v":false}]
["القيد غير موجود","حيدر صادق محمد باقر حمد","الاول",null,null,{"$f":"COUNTIF($B$4:$B$184,H18)>1","v":false}]
["القيد غير موجود","حيدر قاسم كريم نوري","الاول",null,null,{"$f":"COUNTIF($B$4:$B$184,B7)>1","v":false}]
["القيد غير موجود","عباس علي ريسان جبير","الاول",null,null,{"$f":"COUNTIF($B$4:$B$184,#REF!)>1","v":false}]
["القيد غير موجود","علي خضير جواد حريجه","الاول",null,null,{"$f":"COUNTIF($B$4:$B$184,H19)>1","v":false}]
["القيد غير موجود","علي رحيم بديوي شكاكي","الاول",null,null,{"$f":"COUNTIF($B$4:$B$184,B8)>1","v":false}]
["القيد غير موجود","علي نورس فليح حسن","الاول",null,null,{"$f":"COUNTIF($B$4:$B$184,#REF!)>1","v":false}]
["القيد غير موجود","عمران محمد موسى مطلب","الاول",null,null,{"$f":"COUNTIF($B$4:$B$184,B9)>1","v":false}]
["القيد غير موجود","كرار انمار كريم محمد","الاول",null,null,{"$f":"COUNTIF($B$4:$B$184,B10)>1","v":false}]
["القيد غير موجود","مثنى اياد خضر عبيس","الاول",null,null,{"$f":"COUNTIF($B$4:$B$184,H20)>1","v":false}]
["القيد غير موجود","مجتبى ضياء عبدالرزاق دورك","الاول",null,null,{"$f":"COUNTIF($B$4:$B$184,B11)>1","v":false}]
["القيد غير موجود","محمد حسين هادي شاهين","الاول",null,null,{"$f":"COUNTIF($B$4:$B$184,B12)>1","v":false}]
["القيد غير موجود","محمدرضا عمار تالي حسين","الاول",null,null,{"$f":"COUNTIF($B$4:$B$184,H21)>1","v":false}]
["القيد غير موجود","مصطفى احمد سالم ناصر","الاول",null,null,{"$f":"COUNTIF($B$4:$B$184,B13)>1","v":false}]
["48/14","مصطفى عباس فوزي فرهود","الاول",null,null,{"$f":"COUNTIF($B$4:$B$184,H22)>1","v":false}]
["القيد غير موجود","مصطفى مفتن حسين مفتن","الاول",null,null,{"$f":"COUNTIF($B$4:$B$184,B14)>1","v":false}]
["القيد غير موجود","مؤمل خالد بطل بلال","الاول",null,null,{"$f":"COUNTIF($B$4:$B$184,B15)>1","v":false}]
["القيد غير موجود","نورالحسين احمد شهيد حنيوي","الاول",null,null,{"$f":"COUNTIF($B$4:$B$184,B16)>1","v":false}]
["300/13","امير عادل عبدحسن عبيد","الاول",null,null,{"$f":"COUNTIF($B$4:$B$184,H14)>1","v":false}]
["القيد غير موجود","أحمد محمد لفته جعيز","الاول",null,null,{"$f":"COUNTIF($B$4:$B$184,B17)>1","v":false}]
["القيد غير موجود","جعفر صادق علي مصحب","الاول",null,null,{"$f":"COUNTIF($B$4:$B$184,B18)>1","v":false}]
["القيد غير موجود","حسين حيدر عويجل خويط","الاول",null,null,{"$f":"COUNTIF($B$4:$B$184,H23)>1","v":false}]
["88/14","حسين عباس صالح مهدي","الاول",null,null,{"$f":"COUNTIF($B$4:$B$184,B19)>1","v":false}]
["القيد غير موجود","حسين علي عباس عايش","الاول",null,null,{"$f":"COUNTIF($B$4:$B$184,B20)>1","v":false}]
["القيد غير موجود","حسين قاسم عباس جلاب","الاول",null,null,{"$f":"COUNTIF($B$4:$B$184,B21)>1","v":false}]
["القيد غير موجود","رضا احمد صبار مونس","الاول",null,null,{"$f":"COUNTIF($B$4:$B$184,B22)>1","v":false}]
["القيد غير موجود","عباس اركان عدنان هاني","الاول",null,null,{"$f":"COUNTIF($B$4:$B$184,B23)>1","v":false}]
["92/14","عباس جواد كاظم عباس","الاول",null,null,{"$f":"COUNTIF($B$4:$B$184,B26)>1","v":false}]
["القيد غير موجود","عباس حازم منشد فرج","الاول",null,null,{"$f":"COUNTIF($B$4:$B$184,B27)>1","v":false}]
["القيد غير موجود","عباس حسن جاسم خضير","الاول",null,null,{"$f":"COUNTIF($B$4:$B$184,B28)>1","v":false}]
["القيد غير موجود","عباس حسن شاكر سهر","الاول",null,null,{"$f":"COUNTIF($B$4:$B$184,B31)>1","v":false}]
["القيد غير موجود","عباس علي حسين نعمه","الاول",null,null,{"$f":"COUNTIF($B$4:$B$184,B32)>1","v":false}]
["القيد غير موجود","عباس علي عبد الله جبر","الاول",null,null,{"$f":"COUNTIF($B$4:$B$184,B33)>1","v":false}]
["القيد غير موجود","علي اعياد عبدالحسن عبدالشهيد","الاول",null,null,{"$f":"COUNTIF($B$4:$B$184,#REF!)>1","v":false}]
["القيد غير موجود","علي افضل حسين عطيه عباس","الاول",null,null,{"$f":"COUNTIF($B$4:$B$184,#REF!)>1","v":false}]
["القيد غير موجود","علي حسين عبد جبر","الاول",null,null,{"$f":"COUNTIF($B$4:$B$184,B34)>1","v":false}]
["القيد غير موجود","علي وسام جواد كاظم","الاول",null,null,{"$f":"COUNTIF($B$4:$B$184,B35)>1","v":false}]
["القيد غير موجود","كاظم جعفر مهدي","الاول",null,null,{"$f":"COUNTIF($B$4:$B$184,B36)>1","v":false}]
["القيد غير موجود","كرار حيدر رياض منصور","الاول",null,null,{"$f":"COUNTIF($B$4:$B$184,#REF!)>1","v":false}]
["القيد غير موجود","ماجد كرار صباح جبار","الاول",null,null,{"$f":"COUNTIF($B$4:$B$184,#REF!)>1","v":false}]
["القيد غير موجود","محسن كاظم عبد الخضر حسوني","الاول",null,null,{"$f":"COUNTIF($B$4:$B$184,B37)>1","v":false}]
["القيد غير موجود","محمد علي لفته جعيز","الاول",null,null,false]
["القيد غير موجود","مصطفى خالد عواد عريان","الاول",null,null,false]
["القيد غير موجود","مهدي حسن احميد جاسم","الاول",null,null,false]
["القيد غير موجود","ولاء فاضل حسن عثمان","الاول",null,null,false]
["13/146","محمد ميثم عبد المحسن عبد الشهيد","ذكر",null,null,false]
["13/262","مراد خالد عبد اليمه بكه","ذكر",null,null,false]
["13/81","مصطفى احمد علي محسن","ذكر",null,null,false]
["12/309","منتظر حيدر فاضل جابر","ذكر",null,null,false]
["13/149","مهند قاسم كريم نوري","ذكر",null,null,false]
["13/164","مؤمل عباس جاسم كاطع","ذكر",null,null,false]
["13/84","ياسر حسن شاكر سهر","ذكر",null,null,false]
[null,null,null,null,null,false]
[null,null,null,null,null,false]
[null,null,null,null,null,false]
[null,null,null,null,null,false]
[null,null,null,null,null,false]
[null,null,null,null,null,false]
[null,null,null,null,null,false]
[null,null,null,null,null,false]
[null,null,null,null,null,false]
[null,null,null,null,null,false]
[null,null,null,null,null,false]
[null,null,null,null,null,false]
[null,null,null,null,null,false]
[null,null,null,null,null,false]
[null,null,null,null,null,false]
[null,null,null,null,null,false]
[null,null,null,null,null,false]
[null,null,null,null,null,false]
[null,null,null,null,null,false]
[null,null,null,null,null,false]
[null,null,null,null,null,false]
[null,null,null,null,null,false]
[null,null,null,null,null,false]
[null,null,null,null,null,false]
[null,null,null,null,null,false]
[null,null,null,null,null,false]
[null,null,null,null,null,false]
[null,null,null,null,null,false]
[null,null,null,null,null,false]
[null,null,null,null,null,false]
[null,null,null,null,null,false]
[null,null,null,null,null,false]
[null,null,null,null,null,false]
[null,null,null,null,null,false]
[null,null,null,null,null,false]
[null,null,null,null,null,false]
[null,null,null,null,null,false]
[null,null,null,null,null,false]

{"sheet":"Feuil1","index":6,"n_rows":1000,"n_cols":11,"rows_kept":1000,"cut":false,"hidden":false,"merged":[]}
[{"$f":"SUM(H2:K2)","v":38},1,1,null,"عددالشعب",3,{"$f":"C4","v":"الرابع"},"شعبة/أ","شعبة/ب","شعبة /ج","شعبة/د"]
[{"$f":"COUNTA(B4:B13)","v":10},1,1,null,null,null,null,{"$f":"COUNTIFS($F$4:$F$1000,1,$B$4:$B$1000,\">\"\"\")","v":13},{"$f":"COUNTIFS($F$4:$F$1000,2,$B$4:$B$1000,\">\"\"\")","v":13},{"$f":"COUNTIFS($F$4:$F$1000,3,$B$4:$B$1000,\">\"\"\")","v":12},{"$f":"COUNTIFS($F$4:$F$1000,4,$B$4:$B$1000,\">\"\"\")","v":0}]
["القيد","الاسم","الصف","الشعبة","المجموع","الاقسام"]
["251/13","احمد ثائر عبد زيد حسن","الرابع",{"$f":"IF(F4=1,\"أ\",IF(F4=2,\"ب\",IF(F4=3,\"ج\",IF(F4=4,\"د\",\"\"))))","v":"أ"},null,1]
["59/14","احمد محمد عباس حسن","الرابع","أ",null,1]
["315/13","جعفر طالب راضي فضيل","الرابع","أ",null,1]
["270/13","حسنين رائد جبار حسن","الرابع","أ",null,1]
["317/13","حسين علي محمد عبد","الرابع","أ",null,1]
["311/13","رضا حيدر حسن مهدي","الرابع","أ",null,1]
["310/13","عباس وليد عليوي عبود","الرابع","أ",null,1]
["223/13","علي قحطان سالم ناصر","الرابع","أ",null,1]
["276/13","كرار حسن كاظم جاسم","الرابع","أ",null,1]
["222/13","محمد رسول عبد الشريف  حمزه","الرابع","أ",null,1]
["76/14","محمدرضا علي موسى مطلب","الرابع","أ",null,1]
["295/13","مهدي صالح مليوخ حسين","الرابع","أ",null,1]
["282/13","مؤمل رعد مري عبدالرضا","الرابع","أ",null,1]
["316/13","احمد حسين شلاكة رداد","الرابع","ب",null,2]
["305/13","اسحاق حميد محمد شوكت","الرابع","ب",null,2]
["301/13","حسن حيدر كاظم فضيل","الرابع","ب",null,2]
["268/13","حسنين عباس وحيد مبارك","الرابع","ب",null,2]
["القيد غير موجود","حيدر عباس حمود عيسى","الرابع","ب",null,2]
["304/13","زين العابدين حسين كامل شريف","الرابع","ب",null,2]
["24/13","عبد الله كريم عصود عرنوص","الرابع","ب",null,2]
["60/14","علي محسن محمد حسن","الرابع","ب",null,2]
["232/13","كرار حسين شراد حمادي","الرابع","ب",null,2]
["283/13","محمد رياض كاظم فضيل","الرابع","ب",null,2]
["48/13","مصطفى حيدر جبار سهر","الرابع","ب",null,2]
["37/13","مهدي عباس علي صكر","الرابع","ب",null,2]
["285/13","مؤمل قاسم حمزه جابر","الرابع","ب",null,2,null,"Feuil1"]
["267/13","احمد سعيد مري عبدالرضا","الرابع","ج",null,3]
["286/13","جعفر احمد تومان صلال","الرابع","ج",null,3]
["القيد غير موجود","حسن محمد جمعه عيدان","الرابع","ج",null,3]
["269/13","حسين حازم منشد فرج","الرابع","ج",null,3]
["292/13","ذوالفقار سيف علي رزوكي","الرابع","ج",null,3]
["298/13","عباس كاظم عبد الخضر حسوني","الرابع","ج",null,3]
["287/13","علي أحمد منشد لامي","الرابع","ج",null,3]
["234/13","علي نبيل هاني حمادي","الرابع","ج",null,3]
["214/13","محمد حسن احميد جاسم","الرابع","ج",null,3]
["299/13","محمد صفاء عدنان عبدالله","الرابع","ج",null,3]
["284/13","مصطفى كمال كامل غازي","الرابع","ج",null,3]
["303/13","مؤمل حيدر حمودي مهدي","الرابع","ج",null,3]
[null,null,null,null,null,1]
[null,null,null,null,null,1]
[null,null,null,null,null,1]
[null,null,null,null,null,1]
[null,null,null,null,null,1]
[null,null,null,null,null,1]
[null,null,null,null,null,1]
[null,null,null,null,null,1]
[null,null,null,null,null,1]
[null,null,null,null,null,1]
[null,null,null,null,null,1]
[null,null,null,null,null,1]
[null,null,null,null,null,1]
[null,null,null,null,null,1]
[null,null,null,null,null,1]
[null,null,null,null,null,1]
[null,null,null,null,null,1]
[null,null,null,null,null,1]
[null,null,null,null,null,1]
[null,null,null,null,null,1]
[null,null,null,null,null,1]
[null,null,null,null,null,1]
[null,null,null,null,null,1]
[null,null,null,null,null,1]
[null,null,null,null,null,1]
[null,null,null,null,null,1]
[null,null,null,null,null,1]
[null,null,null,null,null,1]
[null,null,null,null,null,1]
[null,null,null,null,null,1]
[null,null,null,null,null,1]
[null,null,null,null,null,1]
[null,null,null,null,null,1]
[null,null,null,null,null,1]
[null,null,null,null,null,1]
[null,null,null,null,null,1]
[null,null,null,null,null,1]
[null,null,null,null,null,1]
[null,null,null,null,null,1]
[null,null,null,null,null,1]
[null,null,null,null,null,1]
[null,null,null,null,null,1]
[null,null,null,null,null,1]
[null,null,null,null,null,1]
[null,null,null,null,null,1]
[null,null,null,null,null,1]
[null,null,null,null,null,1]
[null,null,null,null,null,1]
[null,null,null,null,null,1]
[null,null,null,null,null,1]
[null,null,null,null,null,1]
[null,null,null,null,null,1]
[null,null,null,null,null,1]
[null,null,null,null,null,1]
[null,null,null,null,null,1]
[null,null,null,null,null,1]
[null,null,null,null,null,1]
[null,null,null,null,null,1]
[null,null,null,null,null,1]
[null,null,null,null,null,1]
[null,null,null,null,null,1]
[null,null,null,null,null,1]
[null,null,null,null,null,1]
[null,null,null,null,null,1]
[null,null,null,null,null,1]
[null,null,null,null,null,1]
[null,null,null,null,null,1]
[null,null,null,null,null,1]
[null,null,null,null,null,1]
[null,null,null,null,null,1]
[null,null,null,null,null,1]
[null,null,null,null,null,1]
[null,null,null,null,null,1]
[null,null,null,null,null,1]
[null,null,null,null,null,1]
[null,null,null,null,null,1]
[null,null,null,null,null,1]
[null,null,null,null,null,1]
[null,null,null,null,null,1]
[null,null,null,null,null,1]
[null,null,null,null,null,1]
[null,null,null,null,null,1]
[null,null,null,null,null,1]
[null,null,null,null,null,1]
[null,null,null,null,null,1]
[null,null,null,null,null,1]
[null,null,null,null,null,1]
[null,null,null,null,null,1]
[null,null,null,null,null,1]
[null,null,null,null,null,1]
[null,null,null,null,null,1]
[null,null,null,null,null,1]
[null,null,null,null,null,1]
[null,null,null,null,null,1]
[null,null,null,null,null,1]
[null,null,null,null,null,1]
[null,null,null,null,null,1]
[null,null,null,null,null,1]
[null,null,null,null,null,1]
[null,null,null,null,null,1]
[null,null,null,null,null,1]
[null,null,null,null,null,1]
[null,null,null,null,null,1]
[null,null,null,null,null,1]
[null,null,null,null,null,1]
[null,null,null,null,null,1]
[null,null,null,null,null,1]
[null,null,null,null,null,1]
[null,null,null,null,null,1]
[null,null,null,null,null,1]
[null,null,null,null,null,1]
[null,null,null,null,null,1]
[null,null,null,null,null,1]
[null,null,null,null,null,1]
[null,null,null,null,null,1]
[null,null,null,null,null,1]
[null,null,null,null,null,1]
[null,null,null,null,null,1]
[null,null,null,null,null,1]
[null,null,null,null,null,1]
[null,null,null,null,null,1]
[null,null,null,null,null,1]
[null,null,null,null,null,1]
[null,null,null,null,null,1]
[null,null,null,null,null,1]
[null,null,null,null,null,1]
[null,null,null,null,null,1]
[null,null,null,null,null,1]
[null,null,null,null,null,1]
[null,null,null,null,null,1]
[null,null,null,null,null,1]
[null,null,null,null,null,1]
[null,null,null,null,null,1]
[null,null,null,null,null,1]
[null,null,null,null,null,1]
[null,null,null,null,null,1]
[null,null,null,null,null,1]
[null,null,null,null,null,1]
[null,null,null,null,null,1]
[null,null,null,null,null,1]
[null,null,null,null,null,1]
[null,null,null,null,null,1]
[null,null,null,null,null,1]
[null,null,null,null,null,1]
[null,null,null,null,null,1]
[null,null,null,null,null,1]
[null,null,null,null,null,1]
[null,null,null,null,null,1]
[null,null,null,null,null,1]
[null,null,null,null,null,1]
[null,null,null,null,null,1]
[null,null,null,null,null,1]
[null,null,null,null,null,1]
[null,null,null,null,null,1]
[null,null,null,null,null,1]
[null,null,null,null,null,1]
[null,null,null,null,null,1]
[null,null,null,null,null,1]
[null,null,null,null,null,1]
[null,null,null,null,null,1]
[null,null,null,null,null,1]
[null,null,null,null,null,1]
[null,null,null,null,null,1]
[null,null,null,null,null,1]
[null,null,null,null,null,1]
[null,null,null,null,null,1]
[null,null,null,null,null,1]
[null,null,null,null,null,1]
[null,null,null,null,null,1]
[null,null,null,null,null,1]
[null,null,null,null,null,1]
[null,null,null,null,null,1]
[null,null,null,null,null,1]
[null,null,null,null,null,1]
[null,null,null,null,null,1]
[null,null,null,null,null,1]
[null,null,null,null,null,1]
[null,null,null,null,null,1]
[null,null,null,null,null,1]
[null,null,null,null,null,1]
[null,null,null,null,null,1]
[null,null,null,null,null,1]
[null,null,null,null,null,1]
[null,null,null,null,null,1]
[null,null,null,null,null,1]
[null,null,null,null,null,1]
[null,null,null,null,null,1]
[null,null,null,null,null,1]
[null,null,null,null,null,1]
[null,null,null,null,null,1]
[null,null,null,null,null,1]
[null,null,null,null,null,1]
[null,null,null,null,null,1]
[null,null,null,null,null,1]
[null,null,null,null,null,1]
[null,null,null,null,null,1]
[null,null,null,null,null,1]
[null,null,null,null,null,1]
[null,null,null,null,null,1]
[null,null,null,null,null,1]
[null,null,null,null,null,1]
[null,null,null,null,null,1]
[null,null,null,null,null,1]
[null,null,null,null,null,1]
[null,null,null,null,null,1]
[null,null,null,null,null,1]
[null,null,null,null,null,1]
[null,null,null,null,null,1]
[null,null,null,null,null,1]
[null,null,null,null,null,1]
[null,null,null,null,null,1]
[null,null,null,null,null,1]
[null,null,null,null,null,1]
[null,null,null,null,null,1]
[null,null,null,null,null,1]
[null,null,null,null,null,1]
[null,null,null,null,null,1]
[null,null,null,null,null,1]
[null,null,null,null,null,1]
[null,null,null,null,null,1]
[null,null,null,null,null,1]
[null,null,null,null,null,1]
[null,null,null,null,null,1]
[null,null,null,null,null,1]
[null,null,null,null,null,1]
[null,null,null,null,null,1]
[null,null,null,null,null,1]
[null,null,null,null,null,1]
[null,null,null,null,null,1]
[null,null,null,null,null,1]
[null,null,null,null,null,1]
[null,null,null,null,null,1]
[null,null,null,null,null,1]
[null,null,null,null,null,1]
[null,null,null,null,null,1]
[null,null,null,null,null,1]
[null,null,null,null,null,1]
[null,null,null,null,null,1]
[null,null,null,null,null,1]
[null,null,null,null,null,1]
[null,null,null,null,null,1]
[null,null,null,null,null,1]
[null,null,null,null,null,1]
[null,null,null,null,null,1]
[null,null,null,null,null,1]
[null,null,null,null,null,1]
[null,null,null,null,null,1]
[null,null,null,null,null,1]
[null,null,null,null,null,1]
[null,null,null,null,null,1]
[null,null,null,null,null,1]
[null,null,null,null,null,1]
[null,null,null,null,null,1]
[null,null,null,null,null,1]
[null,null,null,null,null,1]
[null,null,null,null,null,1]
[null,null,null,null,null,1]
[null,null,null,null,null,1]
[null,null,null,null,null,1]
[null,null,null,null,null,1]
[null,null,null,null,null,1]
[null,null,null,null,null,1]
[null,null,null,null,null,1]
[null,null,null,null,null,1]
[null,null,null,null,null,1]
[null,null,null,null,null,1]
[null,null,null,null,null,1]
[null,null,null,null,null,1]
[null,null,null,null,null,1]
[null,null,null,null,null,1]
[null,null,null,null,null,1]
[null,null,null,null,null,1]
[null,null,null,null,null,1]
[null,null,null,null,null,1]
[null,null,null,null,null,1]
[null,null,null,null,null,1]
[null,null,null,null,null,1]
[null,null,null,null,null,1]
[null,null,null,null,null,1]
[null,null,null,null,null,1]
[null,null,null,null,null,1]
[null,null,null,null,null,1]
[null,null,null,null,null,1]
[null,null,null,null,null,1]
[null,null,null,null,null,1]
[null,null,null,null,null,1]
[null,null,null,null,null,1]
[null,null,null,null,null,1]
[null,null,null,null,null,1]
[null,null,null,null,null,1]
[null,null,null,null,null,1]
[null,null,null,null,null,1]
[null,null,null,null,null,1]
[null,null,null,null,null,1]
[null,null,null,null,null,1]
[null,null,null,null,null,1]
[null,null,null,null,null,1]
[null,null,null,null,null,1]
[null,null,null,null,null,1]
[null,null,null,null,null,1]
[null,null,null,null,null,1]
[null,null,null,null,null,1]
[null,null,null,null,null,1]
[null,null,null,null,null,1]
[null,null,null,null,null,1]
[null,null,null,null,null,1]
[null,null,null,null,null,1]
[null,null,null,null,null,1]
[null,null,null,null,null,1]
[null,null,null,null,null,1]
[null,null,null,null,null,1]
[null,null,null,null,null,1]
[null,null,null,null,null,1]
[null,null,null,null,null,1]
[null,null,null,null,null,1]
[null,null,null,null,null,1]
[null,null,null,null,null,1]
[null,null,null,null,null,1]
[null,null,null,null,null,1]
[null,null,null,null,null,1]
[null,null,null,null,null,2]
[null,null,null,null,null,2]
[null,null,null,null,null,2]
[null,null,null,null,null,2]
[null,null,null,null,null,2]
[null,null,null,null,null,2]
[null,null,null,null,null,2]
[null,null,null,null,null,2]
[null,null,null,null,null,2]
[null,null,null,null,null,2]
[null,null,null,null,null,2]
[null,null,null,null,null,2]
[null,null,null,null,null,2]
[null,null,null,null,null,2]
[null,null,null,null,null,2]
[null,null,null,null,null,2]
[null,null,null,null,null,2]
[null,null,null,null,null,2]
[null,null,null,null,null,2]
[null,null,null,null,null,2]
[null,null,null,null,null,2]
[null,null,null,null,null,2]
[null,null,null,null,null,2]
[null,null,null,null,null,2]
[null,null,null,null,null,2]
[null,null,null,null,null,2]
[null,null,null,null,null,2]
[null,null,null,null,null,2]
[null,null,null,null,null,2]
[null,null,null,null,null,2]
[null,null,null,null,null,2]
[null,null,null,null,null,2]
[null,null,null,null,null,2]
[null,null,null,null,null,2]
[null,null,null,null,null,2]
[null,null,null,null,null,2]
[null,null,null,null,null,2]
[null,null,null,null,null,2]
[null,null,null,null,null,2]
[null,null,null,null,null,2]
[null,null,null,null,null,2]
[null,null,null,null,null,2]
[null,null,null,null,null,2]
[null,null,null,null,null,2]
[null,null,null,null,null,2]
[null,null,null,null,null,2]
[null,null,null,null,null,2]
[null,null,null,null,null,2]
[null,null,null,null,null,2]
[null,null,null,null,null,2]
[null,null,null,null,null,2]
[null,null,null,null,null,2]
[null,null,null,null,null,2]
[null,null,null,null,null,2]
[null,null,null,null,null,2]
[null,null,null,null,null,2]
[null,null,null,null,null,2]
[null,null,null,null,null,2]
[null,null,null,null,null,2]
[null,null,null,null,null,2]
[null,null,null,null,null,2]
[null,null,null,null,null,2]
[null,null,null,null,null,2]
[null,null,null,null,null,2]
[null,null,null,null,null,2]
[null,null,null,null,null,2]
[null,null,null,null,null,2]
[null,null,null,null,null,2]
[null,null,null,null,null,2]
[null,null,null,null,null,2]
[null,null,null,null,null,2]
[null,null,null,null,null,2]
[null,null,null,null,null,2]
[null,null,null,null,null,2]
[null,null,null,null,null,2]
[null,null,null,null,null,2]
[null,null,null,null,null,2]
[null,null,null,null,null,2]
[null,null,null,null,null,2]
[null,null,null,null,null,2]
[null,null,null,null,null,2]
[null,null,null,null,null,2]
[null,null,null,null,null,2]
[null,null,null,null,null,2]
[null,null,null,null,null,2]
[null,null,null,null,null,2]
[null,null,null,null,null,2]
[null,null,null,null,null,2]
[null,null,null,null,null,2]
[null,null,null,null,null,2]
[null,null,null,null,null,2]
[null,null,null,null,null,2]
[null,null,null,null,null,2]
[null,null,null,null,null,2]
[null,null,null,null,null,2]
[null,null,null,null,null,2]
[null,null,null,null,null,2]
[null,null,null,null,null,2]
[null,null,null,null,null,2]
[null,null,null,null,null,2]
[null,null,null,null,null,2]
[null,null,null,null,null,2]
[null,null,null,null,null,2]
[null,null,null,null,null,2]
[null,null,null,null,null,2]
[null,null,null,null,null,2]
[null,null,null,null,null,2]
[null,null,null,null,null,2]
[null,null,null,null,null,2]
[null,null,null,null,null,2]
[null,null,null,null,null,2]
[null,null,null,null,null,2]
[null,null,null,null,null,2]
[null,null,null,null,null,2]
[null,null,null,null,null,2]
[null,null,null,null,null,2]
[null,null,null,null,null,2]
[null,null,null,null,null,2]
[null,null,null,null,null,2]
[null,null,null,null,null,2]
[null,null,null,null,null,2]
[null,null,null,null,null,2]
[null,null,null,null,null,2]
[null,null,null,null,null,2]
[null,null,null,null,null,2]
[null,null,null,null,null,2]
[null,null,null,null,null,2]
[null,null,null,null,null,2]
[null,null,null,null,null,2]
[null,null,null,null,null,2]
[null,null,null,null,null,2]
[null,null,null,null,null,2]
[null,null,null,null,null,2]
[null,null,null,null,null,2]
[null,null,null,null,null,2]
[null,null,null,null,null,2]
[null,null,null,null,null,2]
[null,null,null,null,null,2]
[null,null,null,null,null,2]
[null,null,null,null,null,2]
[null,null,null,null,null,2]
[null,null,null,null,null,2]
[null,null,null,null,null,2]
[null,null,null,null,null,2]
[null,null,null,null,null,2]
[null,null,null,null,null,2]
[null,null,null,null,null,2]
[null,null,null,null,null,2]
[null,null,null,null,null,2]
[null,null,null,null,null,2]
[null,null,null,null,null,2]
[null,null,null,null,null,2]
[null,null,null,null,null,2]
[null,null,null,null,null,2]
[null,null,null,null,null,2]
[null,null,null,null,null,2]
[null,null,null,null,null,2]
[null,null,null,null,null,2]
[null,null,null,null,null,2]
[null,null,null,null,null,2]
[null,null,null,null,null,2]
[null,null,null,null,null,2]
[null,null,null,null,null,2]
[null,null,null,null,null,2]
[null,null,null,null,null,2]
[null,null,null,null,null,2]
[null,null,null,null,null,2]
[null,null,null,null,null,2]
[null,null,null,null,null,2]
[null,null,null,null,null,2]
[null,null,null,null,null,2]
[null,null,null,null,null,2]
[null,null,null,null,null,2]
[null,null,null,null,null,2]
[null,null,null,null,null,2]
[null,null,null,null,null,2]
[null,null,null,null,null,2]
[null,null,null,null,null,2]
[null,null,null,null,null,2]
[null,null,null,null,null,2]
[null,null,null,null,null,2]
[null,null,null,null,null,2]
[null,null,null,null,null,2]
[null,null,null,null,null,2]
[null,null,null,null,null,2]
[null,null,null,null,null,2]
[null,null,null,null,null,2]
[null,null,null,null,null,2]
[null,null,null,null,null,2]
[null,null,null,null,null,2]
[null,null,null,null,null,2]
[null,null,null,null,null,2]
[null,null,null,null,null,2]
[null,null,null,null,null,2]
[null,null,null,null,null,2]
[null,null,null,null,null,2]
[null,null,null,null,null,2]
[null,null,null,null,null,2]
[null,null,null,null,null,2]
[null,null,null,null,null,2]
[null,null,null,null,null,2]
[null,null,null,null,null,2]
[null,null,null,null,null,2]
[null,null,null,null,null,2]
[null,null,null,null,null,2]
[null,null,null,null,null,2]
[null,null,null,null,null,2]
[null,null,null,null,null,2]
[null,null,null,null,null,2]
[null,null,null,null,null,2]
[null,null,null,null,null,2]
[null,null,null,null,null,2]
[null,null,null,null,null,2]
[null,null,null,null,null,2]
[null,null,null,null,null,2]
[null,null,null,null,null,2]
[null,null,null,null,null,2]
[null,null,null,null,null,2]
[null,null,null,null,null,2]
[null,null,null,null,null,2]
[null,null,null,null,null,2]
[null,null,null,null,null,2]
[null,null,null,null,null,2]
[null,null,null,null,null,2]
[null,null,null,null,null,2]
[null,null,null,null,null,2]
[null,null,null,null,null,2]
[null,null,null,null,null,2]
[null,null,null,null,null,2]
[null,null,null,null,null,2]
[null,null,null,null,null,2]
[null,null,null,null,null,2]
[null,null,null,null,null,2]
[null,null,null,null,null,2]
[null,null,null,null,null,2]
[null,null,null,null,null,2]
[null,null,null,null,null,2]
[null,null,null,null,null,2]
[null,null,null,null,null,2]
[null,null,null,null,null,2]
[null,null,null,null,null,2]
[null,null,null,null,null,2]
[null,null,null,null,null,2]
[null,null,null,null,null,2]
[null,null,null,null,null,2]
[null,null,null,null,null,2]
[null,null,null,null,null,2]
[null,null,null,null,null,2]
[null,null,null,null,null,2]
[null,null,null,null,null,2]
[null,null,null,null,null,2]
[null,null,null,null,null,2]
[null,null,null,null,null,2]
[null,null,null,null,null,2]
[null,null,null,null,null,2]
[null,null,null,null,null,2]
[null,null,null,null,null,2]
[null,null,null,null,null,2]
[null,null,null,null,null,2]
[null,null,null,null,null,2]
[null,null,null,null,null,2]
[null,null,null,null,null,2]
[null,null,null,null,null,2]
[null,null,null,null,null,2]
[null,null,null,null,null,2]
[null,null,null,null,null,2]
[null,null,null,null,null,2]
[null,null,null,null,null,2]
[null,null,null,null,null,2]
[null,null,null,null,null,2]
[null,null,null,null,null,2]
[null,null,null,null,null,2]
[null,null,null,null,null,2]
[null,null,null,null,null,2]
[null,null,null,null,null,2]
[null,null,null,null,null,2]
[null,null,null,null,null,2]
[null,null,null,null,null,2]
[null,null,null,null,null,2]
[null,null,null,null,null,2]
[null,null,null,null,null,2]
[null,null,null,null,null,2]
[null,null,null,null,null,2]
[null,null,null,null,null,2]
[null,null,null,null,null,2]
[null,null,null,null,null,2]
[null,null,null,null,null,2]
[null,null,null,null,null,2]
[null,null,null,null,null,2]
[null,null,null,null,null,2]
[null,null,null,null,null,2]
[null,null,null,null,null,2]
[null,null,null,null,null,2]
[null,null,null,null,null,2]
[null,null,null,null,null,2]
[null,null,null,null,null,2]
[null,null,null,null,null,2]
[null,null,null,null,null,2]
[null,null,null,null,null,2]
[null,null,null,null,null,2]
[null,null,null,null,null,2]
[null,null,null,null,null,2]
[null,null,null,null,null,2]
[null,null,null,null,null,2]
[null,null,null,null,null,2]
[null,null,null,null,null,2]
[null,null,null,null,null,2]
[null,null,null,null,null,2]
[null,null,null,null,null,2]
[null,null,null,null,null,2]
[null,null,null,null,null,2]
[null,null,null,null,null,2]
[null,null,null,null,null,2]
[null,null,null,null,null,2]
[null,null,null,null,null,2]
[null,null,null,null,null,2]
[null,null,null,null,null,2]
[null,null,null,null,null,2]
[null,null,null,null,null,2]
[null,null,null,null,null,3]
[null,null,null,null,null,3]
[null,null,null,null,null,3]
[null,null,null,null,null,3]
[null,null,null,null,null,3]
[null,null,null,null,null,3]
[null,null,null,null,null,3]
[null,null,null,null,null,3]
[null,null,null,null,null,3]
[null,null,null,null,null,3]
[null,null,null,null,null,3]
[null,null,null,null,null,3]
[null,null,null,null,null,3]
[null,null,null,null,null,3]
[null,null,null,null,null,3]
[null,null,null,null,null,3]
[null,null,null,null,null,3]
[null,null,null,null,null,3]
[null,null,null,null,null,3]
[null,null,null,null,null,3]
[null,null,null,null,null,3]
[null,null,null,null,null,3]
[null,null,null,null,null,3]
[null,null,null,null,null,3]
[null,null,null,null,null,3]
[null,null,null,null,null,3]
[null,null,null,null,null,3]
[null,null,null,null,null,3]
[null,null,null,null,null,3]
[null,null,null,null,null,3]
[null,null,null,null,null,3]
[null,null,null,null,null,3]
[null,null,null,null,null,3]
[null,null,null,null,null,3]
[null,null,null,null,null,3]
[null,null,null,null,null,3]
[null,null,null,null,null,3]
[null,null,null,null,null,3]
[null,null,null,null,null,3]
[null,null,null,null,null,3]
[null,null,null,null,null,3]
[null,null,null,null,null,3]
[null,null,null,null,null,3]
[null,null,null,null,null,3]
[null,null,null,null,null,3]
[null,null,null,null,null,3]
[null,null,null,null,null,3]
[null,null,null,null,null,3]
[null,null,null,null,null,3]
[null,null,null,null,null,3]
[null,null,null,null,null,3]
[null,null,null,null,null,3]
[null,null,null,null,null,3]
[null,null,null,null,null,3]
[null,null,null,null,null,3]
[null,null,null,null,null,3]
[null,null,null,null,null,3]
[null,null,null,null,null,3]
[null,null,null,null,null,3]
[null,null,null,null,null,3]
[null,null,null,null,null,3]
[null,null,null,null,null,3]
[null,null,null,null,null,3]
[null,null,null,null,null,3]
[null,null,null,null,null,3]
[null,null,null,null,null,3]
[null,null,null,null,null,3]
[null,null,null,null,null,3]
[null,null,null,null,null,3]
[null,null,null,null,null,3]
[null,null,null,null,null,3]
[null,null,null,null,null,3]
[null,null,null,null,null,3]
[null,null,null,null,null,3]
[null,null,null,null,null,3]
[null,null,null,null,null,3]
[null,null,null,null,null,3]
[null,null,null,null,null,3]
[null,null,null,null,null,3]
[null,null,null,null,null,3]
[null,null,null,null,null,3]
[null,null,null,null,null,3]
[null,null,null,null,null,3]
[null,null,null,null,null,3]
[null,null,null,null,null,3]
[null,null,null,null,null,3]
[null,null,null,null,null,3]
[null,null,null,null,null,3]
[null,null,null,null,null,3]
[null,null,null,null,null,3]
[null,null,null,null,null,3]
[null,null,null,null,null,3]
[null,null,null,null,null,3]
[null,null,null,null,null,3]
[null,null,null,null,null,3]
[null,null,null,null,null,3]
[null,null,null,null,null,3]
[null,null,null,null,null,3]
[null,null,null,null,null,3]
[null,null,null,null,null,3]
[null,null,null,null,null,3]
[null,null,null,null,null,3]
[null,null,null,null,null,3]
[null,null,null,null,null,3]
[null,null,null,null,null,3]
[null,null,null,null,null,3]
[null,null,null,null,null,3]
[null,null,null,null,null,3]
[null,null,null,null,null,3]
[null,null,null,null,null,3]
[null,null,null,null,null,3]
[null,null,null,null,null,3]
[null,null,null,null,null,3]
[null,null,null,null,null,3]
[null,null,null,null,null,3]
[null,null,null,null,null,3]
[null,null,null,null,null,3]
[null,null,null,null,null,3]
[null,null,null,null,null,3]
[null,null,null,null,null,3]
[null,null,null,null,null,3]
[null,null,null,null,null,3]
[null,null,null,null,null,3]
[null,null,null,null,null,3]
[null,null,null,null,null,3]
[null,null,null,null,null,3]
[null,null,null,null,null,3]
[null,null,null,null,null,3]
[null,null,null,null,null,3]
[null,null,null,null,null,3]
[null,null,null,null,null,3]
[null,null,null,null,null,3]
[null,null,null,null,null,3]
[null,null,null,null,null,3]
[null,null,null,null,null,3]
[null,null,null,null,null,3]
[null,null,null,null,null,3]
[null,null,null,null,null,3]
[null,null,null,null,null,3]
[null,null,null,null,null,3]
[null,null,null,null,null,3]
[null,null,null,null,null,3]
[null,null,null,null,null,3]
[null,null,null,null,null,3]
[null,null,null,null,null,3]
[null,null,null,null,null,3]
[null,null,null,null,null,3]
[null,null,null,null,null,3]
[null,null,null,null,null,3]
[null,null,null,null,null,3]
[null,null,null,null,null,3]
[null,null,null,null,null,3]
[null,null,null,null,null,3]
[null,null,null,null,null,3]
[null,null,null,null,null,3]
[null,null,null,null,null,3]
[null,null,null,null,null,3]
[null,null,null,null,null,3]
[null,null,null,null,null,3]
[null,null,null,null,null,3]
[null,null,null,null,null,3]
[null,null,null,null,null,3]
[null,null,null,null,null,3]
[null,null,null,null,null,3]
[null,null,null,null,null,3]
[null,null,null,null,null,3]
[null,null,null,null,null,3]
[null,null,null,null,null,3]
[null,null,null,null,null,3]
[null,null,null,null,null,3]
[null,null,null,null,null,3]
[null,null,null,null,null,3]
[null,null,null,null,null,3]
[null,null,null,null,null,3]
[null,null,null,null,null,3]
[null,null,null,null,null,3]
[null,null,null,null,null,3]
[null,null,null,null,null,3]
[null,null,null,null,null,3]
[null,null,null,null,null,3]
[null,null,null,null,null,3]
[null,null,null,null,null,3]
[null,null,null,null,null,3]
[null,null,null,null,null,3]
[null,null,null,null,null,3]
[null,null,null,null,null,3]
[null,null,null,null,null,3]
[null,null,null,null,null,3]
[null,null,null,null,null,3]
[null,null,null,null,null,3]
[null,null,null,null,null,3]
[null,null,null,null,null,3]
[null,null,null,null,null,3]
[null,null,null,null,null,3]
[null,null,null,null,null,3]
[null,null,null,null,null,3]
[null,null,null,null,null,3]
[null,null,null,null,null,3]
[null,null,null,null,null,3]
[null,null,null,null,null,3]
[null,null,null,null,null,3]
[null,null,null,null,null,3]
[null,null,null,null,null,3]
[null,null,null,null,null,3]
[null,null,null,null,null,3]
[null,null,null,null,null,3]
[null,null,null,null,null,3]
[null,null,null,null,null,3]
[null,null,null,null,null,3]
[null,null,null,null,null,3]
[null,null,null,null,null,3]
[null,null,null,null,null,3]
[null,null,null,null,null,3]
[null,null,null,null,null,3]
[null,null,null,null,null,3]
[null,null,null,null,null,3]
[null,null,null,null,null,3]
[null,null,null,null,null,3]
[null,null,null,null,null,3]
[null,null,null,null,null,3]
[null,null,null,null,null,3]
[null,null,null,null,null,3]
[null,null,null,null,null,3]
[null,null,null,null,null,3]
[null,null,null,null,null,3]
[null,null,null,null,null,3]
[null,null,null,null,null,3]
[null,null,null,null,null,3]
[null,null,null,null,null,3]
[null,null,null,null,null,3]
[null,null,null,null,null,3]
[null,null,null,null,null,3]
[null,null,null,null,null,3]
[null,null,null,null,null,3]
[null,null,null,null,null,3]
[null,null,null,null,null,3]
[null,null,null,null,null,3]
[null,null,null,null,null,3]
[null,null,null,null,null,3]
[null,null,null,null,null,3]
[null,null,null,null,null,3]
[null,null,null,null,null,3]
[null,null,null,null,null,3]
[null,null,null,null,null,3]
[null,null,null,null,null,3]
[null,null,null,null,null,3]
[null,null,null,null,null,3]
[null,null,null,null,null,3]
[null,null,null,null,null,3]
[null,null,null,null,null,3]
[null,null,null,null,null,3]
[null,null,null,null,null,3]
[null,null,null,null,null,3]
[null,null,null,null,null,3]
[null,null,null,null,null,3]
[null,null,null,null,null,3]
[null,null,null,null,null,3]
[null,null,null,null,null,3]
[null,null,null,null,null,3]
[null,null,null,null,null,3]
[null,null,null,null,null,3]
[null,null,null,null,null,3]
[null,null,null,null,null,3]
[null,null,null,null,null,3]
[null,null,null,null,null,3]
[null,null,null,null,null,3]
[null,null,null,null,null,3]
[null,null,null,null,null,3]
[null,null,null,null,null,3]
[null,null,null,null,null,3]
[null,null,null,null,null,3]
[null,null,null,null,null,3]
[null,null,null,null,null,3]
[null,null,null,null,null,3]
[null,null,null,null,null,3]
[null,null,null,null,null,3]
[null,null,null,null,null,3]
[null,null,null,null,null,3]
[null,null,null,null,null,3]
[null,null,null,null,null,3]
[null,null,null,null,null,3]
[null,null,null,null,null,3]
[null,null,null,null,null,3]
[null,null,null,null,null,3]
[null,null,null,null,null,3]
[null,null,null,null,null,3]
[null,null,null,null,null,3]
[null,null,null,null,null,3]
[null,null,null,null,null,3]
[null,null,null,null,null,3]
[null,null,null,null,null,3]
[null,null,null,null,null,3]
[null,null,null,null,null,3]
[null,null,null,null,null,3]
[null,null,null,null,null,3]
[null,null,null,null,null,3]
[null,null,null,null,null,3]
[null,null,null,null,null,3]
[null,null,null,null,null,3]
[null,null,null,null,null,3]
[null,null,null,null,null,3]
[null,null,null,null,null,3]
[null,null,null,null,null,3]
[null,null,null,null,null,3]
[null,null,null,null,null,3]
[null,null,null,null,null,3]
[null,null,null,null,null,3]
[null,null,null,null,null,3]
[null,null,null,null,null,3]
[null,null,null,null,null,3]
[null,null,null,null,null,3]
[null,null,null,null,null,3]
[null,null,null,null,null,3]
[null,null,null,null,null,3]
[null,null,null,null,null,3]
[null,null,null,null,null,3]
[null,null,null,null,null,3]
[null,null,null,null,null,3]
[null,null,null,null,null,3]
[null,null,null,null,null,3]

{"sheet":"التقرير","index":7,"n_rows":329,"n_cols":41,"rows_kept":329,"cut":false,"hidden":false,"merged":[[11,34,12,34],[1,34,2,34],[3,34,4,34],[5,34,6,34],[7,34,8,34],[9,34,10,34]]}
[null,null,null,null,null,null,null,null,null,null,null,null,null,null,null,null,null,null,null,null,null,null,null,null,null,null,null,null,null,null,null,"مكمل","راسب","ناجح","م/شعبتين"]
[null,null,null,null,null,null,null,null,null,null,null,null,null,null,null,null,null,null,null,null,null,null,null,null,null,null,null,null,null,null,"الاول/أ",{"$f":"SUMPRODUCT(--(صفوشغبع=$AE2),--(نتيجة=AF$1))","v":0},0,0,{"$f":"SUM(AH2:AH3)","v":0}]
[null,null,null,null,null,null,null,null,null,null,null,null,null,null,null,null,null,null,null,null,null,null,null,null,null,null,null,null,null,null,"الاول/ب",0,0,0]
[null,null,null,null,null,null,null,null,null,null,null,null,null,null,null,null,null,null,null,null,null,null,null,null,null,null,null,null,null,null,"الثاني/أ",0,0,0,{"$f":"SUM(AH4:AH5)","v":0}]
[null,null,null,null,null,null,null,null,null,null,null,null,null,null,null,null,null,null,null,null,null,null,null,null,null,null,null,null,null,null,"الثاني/ب",0,0,0]
[null,null,null,null,null,null,null,null,null,null,null,null,null,null,null,null,null,null,null,null,null,null,null,null,null,null,null,null,null,null,"الثالث/أ",0,0,0,{"$f":"SUM(AH6:AH7)","v":0}]
[null,null,null,null,null,null,null,null,null,null,null,null,null,null,null,null,null,null,null,null,null,null,null,null,null,null,null,null,null,null,"الثالث/ب",0,0,0]
[null,null,null,null,null,null,null,null,null,null,null,null,null,null,null,null,null,null,null,null,null,null,null,null,null,null,null,null,null,null,"الرابع/أ",0,0,0,{"$f":"SUM(AH8:AH9)","v":0}]
[null,null,null,null,null,null,null,null,null,null,null,null,null,null,null,null,null,null,null,null,null,null,null,null,null,null,null,null,null,null,"الرابع/ب",0,0,0]
[null,null,null,null,null,null,null,null,null,null,null,null,null,null,null,null,null,null,null,null,null,null,null,null,null,null,null,null,null,null,"الخامس/أ",0,0,0,{"$f":"SUM(AH10:AH11)","v":0}]
[null,null,null,null,null,null,null,null,null,null,null,null,null,null,null,null,null,null,null,null,null,null,null,null,null,null,null,null,null,null,"الخامس/ب",0,0,0]
[null,null,null,"المديرية العامة للتربية في المثنى",null,null,null,null,null,null,null,null,null,null,null,null,null,null,null,null,null,null,null,null,null,null,null,null,null,null,"السادس/أ",0,0,0,{"$f":"SUM(AH12:AH13)","v":0}]
[null,null,null,null,null,null,null,null,null,null,null,null,null,null,null,null,null,null,null,null,null,null,null,null,null,null,null,null,null,null,"السادس/ب",0,0,0]
[null,null,null,"مدرسة عمر المختار الابتدائية للبنين",null,null,null,null,null,null,null,null,null,null,null,null,null,null,null,null,null,null,null,null,null,null,null,null,null,null,null,{"$f":"SUM(AF2:AF13)","v":0},{"$f":"SUM(AG2:AG13)","v":0},{"$f":"SUM(AH2:AH13)","v":0},{"$f":"SUM(AI2:AI13)","v":0}]
["ت","تسلسل صفحة قيده","رقم قيده","اسم التلميذ","الجنس","يوم","شهر","سنة","اسم الام","اسم ولي الامر","عنوان ولي الامر","رقم الموبايل","حالة القيد","الصف الذي قبل فيه","اسم مدرسته السابقة","تاريخ نقله للمدرسة","المدرسة التي نقل اليها او استضيف فيها","الصف الذي نقل منه","المحافظة","رقم الوثيقة","تاريخها","تاريخ المغادرة","الحالة الاجتماعية","المستوى المعيشي","الحالة المرضية","نوع المرض","الصف ","الملاحظات",null,"المنقولين من المدرسة","منقول  ","الراسبين بسبب الغياب والتاركين ",null,null,"الصف والشعبة","تفيد لضبط الفرز تلقائي بالمعادلات","تفيد لضبط الفرز تلقائي بالمعادلات",null,"القيد كاملا رقم صحيفة على رقم قيد"]
[1,null,null,"أحمد رعد شلال شهاب","ذكر",23,3,2014,"روى محمد أبراهيم",null,null,null,"مجدد","الاول/مجدد",null,null,null,null,null,null,null,null,null,null,null,null,"الاول",null,"أ","","",null,null,null,"الاول/أ",1,1,null,"القيد غير موجود",{"$f":"D16","v":"أحمد رعد شلال شهاب"},{"$f":"AA16","v":"الاول"}]
[2,null,null,"باقر محمد علي كشيش","ذكر",19,10,2014,"غفران حسين عطيه",null,null,null,"مجدد","الاول/مجدد",null,null,null,null,null,null,null,null,null,null,null,null,"الاول",null,"أ","","",null,null,null,"الاول/أ",1,1,null,"القيد غير موجود",{"$f":"D17","v":"باقر محمد علي كشيش"},{"$f":"AA17","v":"الاول"}]
[3,null,null,"جعفر تحسين علي داخل","ذكر",15,1,2015,"رقيه كامل شريف",null,null,null,"مجدد","الاول/مجدد",null,null,null,null,null,null,null,null,null,null,null,null,"الاول",null,"أ","","",null,null,null,"الاول/أ",1,1,null,"القيد غير موجود","جعفر تحسين علي داخل","الاول"]
[4,null,null,"حسين نزار عبدالله حسين","ذكر",24,12,2014,"صابرين لفته جعيز",null,null,null,"مجدد","الاول/مجدد",null,null,null,null,null,null,null,null,null,null,null,null,"الاول",null,"أ","","",null,null,null,"الاول/أ",1,1,null,"القيد غير موجود","حسين نزار عبدالله حسين","الاول"]
[5,null,null,"حيدر صادق محمد باقر حمد","ذكر",3,2,2014,"وجدان كامل صالح",null,null,null,"مجدد","الاول/مجدد",null,null,null,null,null,null,null,null,null,null,null,null,"الاول",null,"أ","","",null,null,null,"الاول/أ",1,1,null,"القيد غير موجود","حيدر صادق محمد باقر حمد","الاول"]
[6,null,null,"حيدر قاسم كريم نوري","ذكر",22,6,2014,"ميثاق داود ناصر",null,null,null,"مجدد","الاول/مجدد",null,null,null,null,null,null,null,null,null,null,null,null,"الاول",null,"أ","","",null,null,null,"الاول/أ",1,1,null,"القيد غير موجود","حيدر قاسم كريم نوري","الاول"]
[7,null,null,"عباس علي ريسان جبير","ذكر",16,6,2014,"حنان شنشول كاظم",null,null,null,"مجدد","الاول/مجدد",null,null,null,null,null,null,null,null,null,null,null,null,"الاول",null,"أ","","",null,null,null,"الاول/أ",1,1,null,"القيد غير موجود","عباس علي ريسان جبير","الاول"]
[8,null,null,"علي خضير جواد حريجه","ذكر",9,8,2014,"ابتهال عبدالله مسلم",null,null,null,"مجدد","الاول/مجدد",null,null,null,null,null,null,null,null,null,null,null,null,"الاول",null,"أ","","",null,null,null,"الاول/أ",1,1,null,"القيد غير موجود","علي خضير جواد حريجه","الاول"]
[9,null,null,"علي رحيم بديوي شكاكي","ذكر",15,8,2014,"صابرين كامل لازم",null,null,null,"مجدد","الاول/مجدد",null,null,null,null,null,null,null,null,null,null,null,null,"الاول",null,"أ","","",null,null,null,"الاول/أ",1,1,null,"القيد غير موجود","علي رحيم بديوي شكاكي","الاول"]
[10,null,null,"علي نورس فليح حسن","ذكر",21,6,2014,"أسماء عبد الهادي كشكول",null,null,null,"مجدد","الاول/مجدد",null,null,null,null,null,null,null,null,null,null,null,null,"الاول",null,"أ","","",null,null,null,"الاول/أ",1,1,null,"القيد غير موجود","علي نورس فليح حسن","الاول"]
[11,null,null,"عمران محمد موسى مطلب","ذكر",1,9,2014,"آمنه سلمان راجوج",null,null,null,"مجدد","الاول/مجدد",null,null,null,null,null,null,null,null,null,null,null,null,"الاول",null,"أ","","",null,null,null,"الاول/أ",1,1,null,"القيد غير موجود","عمران محمد موسى مطلب","الاول"]
[12,null,null,"كرار انمار كريم محمد","ذكر",5,7,2014,"بشرى عبد الجبار حمود",null,null,null,"مجدد","الاول/مجدد",null,null,null,null,null,null,null,null,null,null,null,null,"الاول",null,"أ","","",null,null,null,"الاول/أ",1,1,null,"القيد غير موجود","كرار انمار كريم محمد","الاول"]
[13,null,null,"مثنى اياد خضر عبيس","ذكر",15,5,2014,"دلال عبود",null,null,null,"مجدد","الاول/مجدد",null,null,null,null,null,null,null,null,null,null,null,null,"الاول",null,"أ","","",null,null,null,"الاول/أ",1,1,null,"القيد غير موجود","مثنى اياد خضر عبيس","الاول"]
[14,null,null,"مجتبى ضياء عبدالرزاق دورك","ذكر",11,3,2014,"حوراء رحيم صبار",null,null,null,"مجدد","الاول/مجدد",null,null,null,null,null,null,null,null,null,null,null,null,"الاول",null,"أ","","",null,null,null,"الاول/أ",1,1,null,"القيد غير موجود","مجتبى ضياء عبدالرزاق دورك","الاول"]
[15,null,null,"محمد حسين هادي شاهين","ذكر",5,9,2014,"وسن جبار عباس",null,null,null,"مجدد","الاول/مجدد",null,null,null,null,null,null,null,null,null,null,null,null,"الاول",null,"أ","","",null,null,null,"الاول/أ",1,1,null,"القيد غير موجود","محمد حسين هادي شاهين","الاول"]
[16,null,null,"محمدرضا عمار تالي حسين","ذكر",23,8,2014,"حوراء عطيه غضبان",null,null,null,"مجدد","الاول/مجدد",null,null,null,null,null,null,null,null,null,null,null,null,"الاول",null,"أ","","",null,null,null,"الاول/أ",1,1,null,"القيد غير موجود","محمدرضا عمار تالي حسين","الاول"]
[17,null,null,"مصطفى احمد سالم ناصر","ذكر",10,12,2013,"ايات حيدر علي",null,null,null,"مجدد","الاول/مجدد",null,null,null,null,null,null,null,null,null,null,null,null,"الاول",null,"أ","","",null,null,null,"الاول/أ",1,1,null,"القيد غير موجود","مصطفى احمد سالم ناصر","الاول"]
[18,48,14,"مصطفى عباس فوزي فرهود","ذكر",19,1,2013,"نور علي طارق",null,null,null,"معيد ثان عام",null,null,null,null,null,null,null,null,null,null,null,null,null,"الاول",null,"أ","","",null,null,null,"الاول/أ",1,1,null,"48/14","مصطفى عباس فوزي فرهود","الاول"]
[19,null,null,"مصطفى مفتن حسين مفتن","ذكر",4,9,2014,"صباح عواد حسين",null,null,null,"مجدد","الاول/مجدد",null,null,null,null,null,null,null,null,null,null,null,null,"الاول",null,"أ","","",null,null,null,"الاول/أ",1,1,null,"القيد غير موجود","مصطفى مفتن حسين مفتن","الاول"]
[20,null,null,"مؤمل خالد بطل بلال","ذكر",27,9,2014,"أسماء مهلي فليفل","خالد بطل بلال","السماوة/الحي الجمهوري",7805917296,"مجدد","الاول/مجدد",null,null,null,null,null,null,null,null,null,null,null,null,"الاول",null,"أ","","",null,null,null,"الاول/أ",1,1,null,"القيد غير موجود","مؤمل خالد بطل بلال","الاول"]
[21,null,null,"نورالحسين احمد شهيد حنيوي","ذكر",18,10,2014,"علا حسين صاحب",null,null,null,"مجدد","الاول/مجدد",null,null,null,null,null,null,null,null,null,null,null,null,"الاول",null,"أ","","",null,null,null,"الاول/أ",1,1,null,"القيد غير موجود","نورالحسين احمد شهيد حنيوي","الاول"]
[22,null,null,"براق كاظم فيصل","ذكر",null,null,null,null,null,null,null,"منقول  ","الثاني","الفيحاء للبنات",44170,null,null,null,null,null,null,null,null,null,null,"الثاني","نقص جميع المستمسكات","أ","","منقول  ",null,null,null,"الثاني/أ",2,5,null,"القيد غير موجود","براق كاظم فيصل","الثاني"]
[23,83,14,"بشير رعد مري عبدالرضا","ذكر",3,8,2013,"فاطمه مهدي محمد",null,null,null,"ترحيل",null,null,null,null,null,null,null,null,null,null,null,null,null,"الثاني",null,"أ","","",null,null,null,"الثاني/أ",2,5,null,"83/14","بشير رعد مري عبدالرضا","الثاني"]
[24,25,14,"حسين بركان صبحي جبار","ذكر",8,1,2013,"امل خضير صبار",null,null,null,"ترحيل",null,null,null,null,null,null,null,null,null,null,null,null,null,"الثاني",null,"أ","","",null,null,null,"الثاني/أ",2,5,null,"25/14","حسين بركان صبحي جبار","الثاني"]
[25,89,14,"حسين علي حسين نعمه","ذكر",20,5,2013,"ندى مكطوف محسن",null,null,null,"ترحيل",null,null,null,null,null,null,null,null,null,null,null,null,null,"الثاني",null,"أ","","",null,null,null,"الثاني/أ",2,5,null,"89/14","حسين علي حسين نعمه","الثاني"]
[26,86,14,"حسين فاضل علي عبيد","ذكر",4,6,2013,"عذراء عبدحسن عبيد",null,null,null,"ترحيل",null,null,null,null,null,null,null,null,null,null,null,null,null,"الثاني",null,"أ","","",null,null,null,"الثاني/أ",2,5,null,"86/14","حسين فاضل علي عبيد","الثاني"]
[27,42,14,"حسين هادي صاحب جعاز","ذكر",12,12,2012,"اسراء ليلي الماس",null,null,null,"ترحيل",null,null,null,null,null,null,null,null,null,null,null,null,null,"الثاني",null,"أ","","",null,null,null,"الثاني/أ",2,5,null,"42/14","حسين هادي صاحب جعاز","الثاني"]
[28,69,14,"حمزه خضير جواد حريجه","ذكر",24,3,2012,"ابتهال عبد الله مسلم",null,null,null,"ترحيل",null,"اكاديمية التفوق الاهلية","4/11/2018",null,null,null,null,null,null,null,null,null,null,"الثاني",null,"أ","","",null,null,null,"الثاني/أ",2,5,null,"69/14","حمزه خضير جواد حريجه","الثاني"]
[29,58,14,"حيدر حسين شراد حمادي","ذكر",20,1,2013,"بتول طويرش راضي",null,null,null,"ترحيل",null,null,null,null,null,null,null,null,null,null,null,null,null,"الثاني",null,"أ","","",null,null,null,"الثاني/أ",2,5,null,"58/14","حيدر حسين شراد حمادي","الثاني"]
[30,47,14,"سجاد احمد شلاكه مكوار","ذكر",9,4,2012,"ازهار صباح عبد الحسن",null,null,null,"ترحيل",null,null,null,null,null,null,null,null,null,null,null,null,null,"الثاني",null,"أ","","",null,null,null,"الثاني/أ",2,5,null,"47/14","سجاد احمد شلاكه مكوار","الثاني"]
[31,null,null,"عباس ماهر تالي","ذكر",null,null,null,null,null,null,null,"منقول  ","الثاني","اوروك الاهلية",null,null,null,null,null,null,null,null,null,null,null,"الثاني",null,"أ","","منقول  ",null,null,null,"الثاني/أ",2,5,null,"القيد غير موجود","عباس ماهر تالي","الثاني"]
[32,33,14,"عباس مثنى هادي جبار","ذكر",9,1,2013,"مريم وناس سعد",null,null,null,"ترحيل",null,null,null,null,null,null,null,null,null,null,null,null,null,"الثاني",null,"أ","","",null,null,null,"الثاني/أ",2,5,null,"33/14","عباس مثنى هادي جبار","الثاني"]
[33,98,14,"علي صفاء عدنان عبدالله","ذكر",5,10,2013,"حوراء حسين حريف",null,null,null,"ترحيل",null,null,null,null,null,null,null,null,null,null,null,null,null,"الثاني",null,"أ","","",null,null,null,"الثاني/أ",2,5,null,"98/14","علي صفاء عدنان عبدالله","الثاني"]
[34,99,14,"علي عبد الكاظم شنان تالي","ذكر",18,6,2012,"منتهى خشان تالي",null,null,null,"ترحيل",null,null,null,null,null,null,null,null,null,null,null,null,null,"الثاني",null,"أ","","",null,null,null,"الثاني/أ",2,5,null,"99/14","علي عبد الكاظم شنان تالي","الثاني"]
[35,101,14,"علي وسام لطيف عواد","ذكر",19,6,2013,"خديجه مجلي عجزان",null,null,null,"ترحيل",null,null,null,null,null,null,null,null,null,null,null,null,null,"الثاني",null,"أ","","",null,null,null,"الثاني/أ",2,5,null,"101/14","علي وسام لطيف عواد","الثاني"]
[36,103,14,"فارس سعود عواد عكيلي","ذكر",20,10,2013,"أمل محسن صكر",null,null,null,"ترحيل",null,null,null,null,null,null,null,null,null,null,null,null,null,"الثاني",null,"أ","","",null,null,null,"الثاني/أ",2,5,null,"103/14","فارس سعود عواد عكيلي","الثاني"]
[37,null,null,"محمد جواد حسين","ذكر",null,null,null,null,null,null,null,"منقول  ","الثاني","اقرأ الاهلية",null,null,null,null,null,null,null,null,null,null,null,"الثاني",null,"أ","","منقول  ",null,null,null,"الثاني/أ",2,5,null,"القيد غير موجود","محمد جواد حسين","الثاني"]
[38,35,14,"محمد عباس كريم راشد","ذكر",25,8,2012,"افراح غالي جوي",null,null,null,"ترحيل",null,null,null,null,null,null,null,null,null,null,null,null,null,"الثاني",null,"أ","","",null,null,null,"الثاني/أ",2,5,null,"35/14","محمد عباس كريم راشد","الثاني"]
[39,104,14,"محمد علي كريم عبيد","ذكر",2,2,2013,"دعاء كاظم نغيمش",null,null,null,"ترحيل",null,null,null,null,null,null,null,null,null,null,null,null,null,"الثاني",null,"أ","","",null,null,null,"الثاني/أ",2,5,null,"104/14","محمد علي كريم عبيد","الثاني"]
[40,105,14,"مصطفى باسم نغيمش سجين","ذكر",21,10,2013,"هبه عباس عزوز",null,null,null,"ترحيل",null,null,null,null,null,null,null,null,null,null,null,null,null,"الثاني",null,"أ","","",null,null,null,"الثاني/أ",2,5,null,"105/14","مصطفى باسم نغيمش سجين","الثاني"]
[41,106,14,"مصطفى محمد عباس حسن","ذكر",23,4,2013,"زينب صالح عباس",null,null,null,"ترحيل",null,null,null,null,null,null,null,null,null,null,null,null,null,"الثاني",null,"أ","","",null,null,null,"الثاني/أ",2,5,null,"106/14","مصطفى محمد عباس حسن","الثاني"]
[42,111,14,"مؤمل محمد سجاد عيفي","ذكر",18,2,2013,"سناء غثيث عطشان",null,null,null,"ترحيل",null,null,null,null,null,null,null,null,null,null,null,null,null,"الثاني",null,"أ","","",null,null,null,"الثاني/أ",2,5,null,"111/14","مؤمل محمد سجاد عيفي","الثاني"]
[43,112,14,"يوسف عباس عبيد عطيه","ذكر",6,1,2014,"اخلاص كاظم خضير",null,null,null,"ترحيل",null,null,null,null,null,null,null,null,null,null,null,null,null,"الثاني",null,"أ","","",null,null,null,"الثاني/أ",2,5,null,"112/14","يوسف عباس عبيد عطيه","الثاني"]
[44,125,14,"احمد فراس يحيى محمد","ذكر",23,12,2012,"اسراء عبدالزهره عيدان","عبد الزهرة عيدان","سملوة/الحميم",7807737733,"ترحيل","الثاني","شمس المعارف","24/11/2019",null,null,"المثنى",null,null,null,"يتيم","يستحق_المساعدة","مريض","ضعف بصر","الثالث",null,"أ","","",null,null,null,"الثالث/أ",3,9,null,"125/14","احمد فراس يحيى محمد","الثالث"]
[45,32,14,"باقر عامر انعيم حنتوش","ذكر",5,3,2012,"شهب حسين علي",null,null,null,"ترحيل",null,null,null,null,null,null,null,null,null,null,null,null,null,"الثالث",null,"أ","","",null,null,null,"الثالث/أ",3,9,null,"32/14","باقر عامر انعيم حنتوش","الثالث"]
[46,333,13,"حسن عدنان هاني حمادي","ذكر",10,2,2011,"بشرى عبد حمادي",null,null,null,"ترحيل",null,null,null,null,null,null,null,null,null,null,null,null,null,"الثالث",null,"أ","","",null,null,null,"الثالث/أ",3,9,null,"333/13","حسن عدنان هاني حمادي","الثالث"]
[47,39,14,"حسن علي محيسن زغير","ذكر",11,3,2012,"فاطمه عطشان شنيور",null,null,null,"ترحيل",null,null,null,null,null,null,null,null,null,null,null,null,null,"الثالث",null,"أ","","",null,null,null,"الثالث/أ",3,9,null,"39/14","حسن علي محيسن زغير","الثالث"]
[48,46,14,"حسن مفتن حسين مفتن","ذكر",12,8,2012,"صباح عواد حسين",null,null,null,"ترحيل",null,null,null,null,null,null,null,null,null,null,null,null,null,"الثالث",null,"أ","","",null,null,null,"الثالث/أ",3,9,null,"46/14","حسن مفتن حسين مفتن","الثالث"]
[49,312,13,"حسن هادي صاحب جعاز","ذكر",27,7,2011,"أسراء ليلي الماس",null,null,null,"ترحيل",null,null,null,null,null,null,null,null,null,null,null,null,null,"الثالث",null,"أ","","",null,null,null,"الثالث/أ",3,9,null,"312/13","حسن هادي صاحب جعاز","الثالث"]
[50,19,14,"حسين عامر عباس حسن","ذكر",26,7,2012,"نهى نوري فياض",null,null,null,"ترحيل",null,null,null,null,null,null,null,null,null,null,null,null,null,"الثالث",null,"أ","","",null,null,null,"الثالث/أ",3,9,null,"19/14","حسين عامر عباس حسن","الثالث"]
[51,27,14,"رضا ماجد جفات ثجيل","ذكر",22,9,2012,"هدى سفاح لافي",null,null,null,"ترحيل",null,null,null,null,null,null,null,null,null,null,null,null,null,"الثالث",null,"أ","","",null,null,null,"الثالث/أ",3,9,null,"27/14","رضا ماجد جفات ثجيل","الثالث"]
[52,17,14,"سجاد احمد شهيد حنيوي","ذكر",11,3,2011,"علا حسين صاحب",null,null,null,"ترحيل",null,null,null,null,null,null,null,null,null,null,null,null,null,"الثالث",null,"أ","","",null,null,null,"الثالث/أ",3,9,null,"17/14","سجاد احمد شهيد حنيوي","الثالث"]
[53,43,14,"سجاد ضرار جبار عبد الحسن","ذكر",14,1,2013,"ساره اسعد عبد الحسين",null,null,null,"ترحيل",null,null,null,null,null,null,null,null,null,null,null,null,null,"الثالث",null,"أ","","",null,null,null,"الثالث/أ",3,9,null,"43/14","سجاد ضرار جبار عبد الحسن","الثالث"]
[54,56,14,"سجاد علي لفته جعيز","ذكر",13,12,2012,"حياة عبد الامير محسن",null,null,null,"ترحيل",null,null,null,null,null,null,null,null,null,null,null,null,null,"الثالث",null,"أ","","",null,null,null,"الثالث/أ",3,9,null,"56/14","سجاد علي لفته جعيز","الثالث"]
[55,41,14,"عباس زهير مزهر كاني","ذكر",26,8,2012,"رغد كاظم غازي",null,null,null,"ترحيل",null,null,null,null,null,null,null,null,null,null,null,null,null,"الثالث",null,"أ","","",null,null,null,"الثالث/أ",3,9,null,"41/14","عباس زهير مزهر كاني","الثالث"]
[56,null,null,"علي امير نجم","ذكر",null,null,null,null,null,null,null,"منقول  ","الثالث","الفيحاء للبنات",44151,null,null,null,null,null,null,null,null,null,null,"الثالث","نقص جميع المستمسكات","أ","","منقول  ",null,null,null,"الثالث/أ",3,9,null,"القيد غير موجود","علي امير نجم","الثالث"]
[57,34,14,"علي حيدر جفات ثجيل","ذكر",15,10,2012,"زينب ناهي ميلح",null,null,null,"ترحيل",null,null,null,null,null,null,null,null,null,null,null,null,null,"الثالث",null,"أ","","",null,null,null,"الثالث/أ",3,9,null,"34/14","علي حيدر جفات ثجيل","الثالث"]
[58,280,13,"علي حيدر صالح كاظم","ذكر",30,3,2011,"زينب كريم راشد",null,null,null,"ترحيل",null,null,null,null,null,null,null,null,null,null,null,null,null,"الثالث",null,"أ","","",null,null,null,"الثالث/أ",3,9,null,"280/13","علي حيدر صالح كاظم","الثالث"]
[59,20,14,"علي حيدر علي عبد العزيز","ذكر",9,8,2012,"زينب عبد المجيد ابراهيم",null,null,null,"ترحيل",null,null,null,null,null,null,null,null,null,null,null,null,null,"الثالث",null,"أ","","",null,null,null,"الثالث/أ",3,9,null,"20/14","علي حيدر علي عبد العزيز","الثالث"]
[60,null,null,"علي سلام نجم","ذكر",null,null,null,null,null,null,null,"منقول  ","الثالث","الواحة",null,null,null,null,null,null,null,null,null,null,null,"الثالث",null,"أ","","منقول  ",null,null,null,"الثالث/أ",3,9,null,"القيد غير موجود","علي سلام نجم","الثالث"]
[61,40,14,"علي محمد لفته جعيز","ذكر",21,7,2012,"نور تالي خلف",null,null,null,"ترحيل",null,null,null,null,null,null,null,null,null,null,null,null,null,"الثالث",null,"أ","","",null,null,null,"الثالث/أ",3,9,null,"40/14","علي محمد لفته جعيز","الثالث"]
[62,275,13,"كاظم رحيم علي حسوني","ذكر",2,7,2011,"ماجده علي مجيد",null,null,null,"ترحيل",null,null,null,null,null,null,null,null,null,null,null,null,null,"الثالث",null,"أ","","",null,null,null,"الثالث/أ",3,9,null,"275/13","كاظم رحيم علي حسوني","الثالث"]
[63,24,14,"محمد حسام حسين نعمه","ذكر",1,12,2012,"صبا هادي صاحب",null,null,null,"ترحيل",null,null,null,null,null,null,null,null,null,null,null,null,null,"الثالث",null,"أ","","",null,null,null,"الثالث/أ",3,9,null,"24/14","محمد حسام حسين نعمه","الثالث"]
[64,293,13,"محمد نبيل طارش محمد","ذكر",29,8,2011,"زهره رحيم محمد",null,null,null,"ترحيل",null,null,null,null,null,null,null,null,null,null,null,null,null,"الثالث",null,"أ","","",null,null,null,"الثالث/أ",3,9,null,"293/13","محمد نبيل طارش محمد","الثالث"]
[65,13,14,"محمدالمهدي علاء راضي فضيل","ذكر",23,7,2012,"ميساء عاجل فضيل",null,null,null,"ترحيل",null,null,null,null,null,null,null,null,null,null,null,null,null,"الثالث",null,"أ","","",null,null,null,"الثالث/أ",3,9,null,"13/14","محمدالمهدي علاء راضي فضيل","الثالث"]
[66,10,14,"مصطفى محمد صباح حرجان","ذكر",12,9,2012,"حوراء هاشم عبد الله",null,null,null,"ترحيل",null,null,null,null,null,null,null,null,null,null,null,null,null,"الثالث",null,"أ","","",null,null,null,"الثالث/أ",3,9,null,"10/14",{"$f":"D81","v":"مصطفى محمد صباح حرجان"},{"$f":"AA81","v":"الثالث"}]
[67,8,14,"مؤمل احمد سالم ناصر","ذكر",1,8,2012,"ايات حيدر علي",null,null,null,"ترحيل",null,null,null,null,null,null,null,null,null,null,null,null,null,"الثالث",null,"أ","","",null,null,null,"الثالث/أ",3,9,null,"8/14","مؤمل احمد سالم ناصر","الثالث"]
[68,254,13,"مؤمل حيدر جبار سهر","ذكر",1,12,2010,"شيماء شنان شنباره",null,null,null,"ترحيل",null,null,null,null,null,null,null,null,null,null,null,null,null,"الثالث",null,"أ","","",null,null,null,"الثالث/أ",3,9,null,"254/13","مؤمل حيدر جبار سهر","الثالث"]
[69,49,14,"مؤمل مثنى قابل جبر","ذكر",20,9,2012,"حليمه كامل غضب",null,null,null,"ترحيل",null,null,null,null,null,null,null,null,null,null,null,null,null,"الثالث",null,"أ","","",null,null,null,"الثالث/أ",3,9,null,"49/14","مؤمل مثنى قابل جبر","الثالث"]
[70,29,14,"يوسف سلام طالب حسين","ذكر",26,6,2012,"علياء هادي جبار",null,null,null,"ترحيل",null,null,null,null,null,null,null,null,null,null,null,null,null,"الثالث",null,"أ","","",null,null,null,"الثالث/أ",3,9,null,"29/14","يوسف سلام طالب حسين","الثالث"]
[71,21,14,"يونس مثنى شلال شهاب","ذكر",6,5,2012,"هدى وحيد عويد",null,null,null,"ترحيل",null,null,null,null,null,null,null,null,null,null,null,null,null,"الثالث",null,"أ","","",null,null,null,"الثالث/أ",3,9,null,"21/14","يونس مثنى شلال شهاب","الثالث"]
[72,251,13,"احمد ثائر عبد زيد حسن","ذكر",11,1,2011,"ناديه جواد كاظم",null,null,null,"ترحيل",null,null,null,null,null,null,null,null,null,null,null,null,null,"الرابع",null,"أ","","",null,null,null,"الرابع/أ",4,13,null,"251/13","احمد ثائر عبد زيد حسن","الرابع"]
[73,316,13,"احمد حسين شلاكة رداد","ذكر",18,2,2011,"صابرين محمد حمزه",null,null,null,"ترحيل",null,null,null,null,null,null,null,null,null,null,null,null,null,"الرابع",null,"أ","","",null,null,null,"الرابع/أ",4,13,null,"316/13","احمد حسين شلاكة رداد","الرابع"]
[74,301,13,"حسن حيدر كاظم فضيل","ذكر",28,8,2011,"نضال كاظم كرادي",null,null,null,"ترحيل",null,null,null,null,null,null,null,null,null,null,null,null,null,"الرابع",null,"أ","","",null,null,null,"الرابع/أ",4,13,null,"301/13","حسن حيدر كاظم فضيل","الرابع"]
[75,null,null,"حسن محمد جمعه عيدان","ذكر",10,9,2011,"وجدان فرحان يونس",null,"السماوة/الحي الجمهوري",7822124563,"منقول  ","الرابع","الفيحاء للبنات",44151,null,null,null,null,null,null,null,null,null,null,"الرابع","يرجى قبول /لم ترد وثيقته","أ","","منقول  ",null,null,null,"الرابع/أ",4,13,null,"القيد غير موجود","حسن محمد جمعه عيدان","الرابع"]
[76,270,13,"حسنين رائد جبار حسن","ذكر",26,8,2011,"رغد لفته خلف",null,null,null,"ترحيل",null,null,null,null,null,null,null,null,null,null,null,null,null,"الرابع",null,"أ","","",null,null,null,"الرابع/أ",4,13,null,"270/13","حسنين رائد جبار حسن","الرابع"]
[77,269,13,"حسين حازم منشد فرج","ذكر",5,11,2011,"دلال حسين غريب",null,null,null,"ترحيل",null,null,null,null,null,null,null,null,null,null,null,null,null,"الرابع",null,"أ","","",null,null,null,"الرابع/أ",4,13,null,"269/13","حسين حازم منشد فرج","الرابع"]
[78,317,13,"حسين علي محمد عبد","ذكر",7,2,2011,"ايمان كامل عبد",null,null,null,"ترحيل",null,null,null,null,null,null,null,null,null,null,null,null,null,"الرابع",null,"أ","","",null,null,null,"الرابع/أ",4,13,null,"317/13","حسين علي محمد عبد","الرابع"]
[79,null,null,"حيدر عباس حمود عيسى","ذكر",13,9,2011,"ابتسام جياد ناصر",null,"السماو/36",null,"منقول  ","الرابع","الفيحاء للبنات",44151,null,null,null,null,null,null,null,null,null,null,"الرابع","يرجى قبول /لم ترد وثيقته","أ","","منقول  ",null,null,null,"الرابع/أ",4,13,null,"القيد غير موجود","حيدر عباس حمود عيسى","الرابع"]
[80,304,13,"زين العابدين حسين كامل شريف","ذكر",19,10,2011,"دعاء علي ناصر",null,null,null,"ترحيل",null,null,null,null,null,null,null,null,null,null,null,null,null,"الرابع",null,"أ","","",null,null,null,"الرابع/أ",4,13,null,"304/13","زين العابدين حسين كامل شريف","الرابع"]
[81,24,13,"عبد الله كريم عصود عرنوص","ذكر",10,3,2007,"زهره خضير صبيح",null,null,null,"معيد ثان عام",null,"","",null,null,null,null,null,null,null,null,null,"","الرابع",null,"أ","","",null,null,null,"الرابع/أ",4,13,null,"24/13","عبد الله كريم عصود عرنوص","الرابع"]
[82,287,13,"علي أحمد منشد لامي","ذكر",29,8,2011,"نور ظلام ليهوب",null,null,null,"ترحيل",null,null,null,null,null,null,null,null,null,null,null,null,null,"الرابع",null,"أ","","",null,null,null,"الرابع/أ",4,13,null,"287/13","علي أحمد منشد لامي","الرابع"]
[83,232,13,"كرار حسين شراد حمادي","ذكر",20,5,2010,"بتول طويرش راضي",null,null,null,"ترحيل",null,null,null,null,null,null,null,null,null,null,null,null,null,"الرابع",null,"أ","","",null,null,null,"الرابع/أ",4,13,null,"232/13","كرار حسين شراد حمادي","الرابع"]
[84,214,13,"محمد حسن احميد جاسم","ذكر",22,1,2011,"غيداء سوادي حسن",null,null,null,"ترحيل",null,null,null,null,null,null,null,null,null,null,null,null,null,"الرابع",null,"أ","","",null,null,null,"الرابع/أ",4,13,null,"214/13","محمد حسن احميد جاسم","الرابع"]
[85,284,13,"مصطفى كمال كامل غازي","ذكر",14,3,2011,"مروه سعد تقي",null,null,null,"ترحيل",null,null,null,null,null,null,null,null,null,null,null,null,null,"الرابع",null,"أ","","",null,null,null,"الرابع/أ",4,13,null,"284/13","مصطفى كمال كامل غازي","الرابع"]
[86,295,13,"مهدي صالح مليوخ حسين","ذكر",9,8,2011,"دعاء علي جليل",null,null,null,"ترحيل",null,null,null,null,null,null,null,null,null,null,null,null,null,"الرابع",null,"أ","","",null,null,null,"الرابع/أ",4,13,null,"295/13","مهدي صالح مليوخ حسين","الرابع"]
[87,37,13,"مهدي عباس علي صكر","ذكر",10,10,2007,"زهره مسلم هادي",null,null,null,"ترحيل",null,null,null,null,null,null,null,null,null,null,null,null,null,"الرابع",null,"أ","","",null,null,null,"الرابع/أ",4,13,null,"37/13","مهدي عباس علي صكر","الرابع"]
[88,282,13,"مؤمل رعد مري عبدالرضا","ذكر",30,6,2011,"فاطمه مهدي محمد",null,null,null,"ترحيل",null,null,null,null,null,null,null,null,null,null,null,null,null,"الرابع",null,"أ","","",null,null,null,"الرابع/أ",4,13,null,"282/13","مؤمل رعد مري عبدالرضا","الرابع"]
[89,285,13,"مؤمل قاسم حمزه جابر","ذكر",25,11,2011,"التفات منصور عنيزي",null,null,null,"ترحيل",null,null,null,null,null,null,null,null,null,null,null,null,null,"الرابع",null,"أ","","",null,null,null,"الرابع/أ",4,13,null,"285/13","مؤمل قاسم حمزه جابر","الرابع"]
[90,252,13,"احمد بدر لايذ عوض","ذكر",20,5,2010,"زينب حمزه زغير",null,null,null,"ترحيل",null,null,null,null,null,null,null,null,null,null,null,null,null,"الخامس",null,"أ","","",null,null,null,"الخامس/أ",5,17,null,"252/13","احمد بدر لايذ عوض","الخامس"]
[91,110,13,"احمد عامر مليوخ احسين","ذكر",27,7,2008,"غنيمه براك ردام",null,null,null,"ترحيل",null,"","",null,null,null,null,null,null,null,null,null,"","الخامس",null,"أ","","",null,null,null,"الخامس/أ",5,17,null,"110/13","احمد عامر مليوخ احسين","الخامس"]
[92,211,13,"حسن عباس صبار مونس","ذكر",14,10,2010,"أشراق داود ناصر",null,null,null,"ترحيل",null,null,null,null,null,null,null,null,null,null,null,null,null,"الخامس",null,"أ","","",null,null,null,"الخامس/أ",5,17,null,"211/13","حسن عباس صبار مونس","الخامس"]
[93,255,13,"حسين امير كريم محمد","ذكر",21,6,2010,"زينب فرحان وطن",null,null,null,"ترحيل",null,null,null,null,null,null,null,null,null,null,null,null,null,"الخامس",null,"أ","","",null,null,null,"الخامس/أ",5,17,null,"255/13","حسين امير كريم محمد","الخامس"]
[94,170,13,"حسين علي حسين عطشان","ذكر",15,12,2009,"مها علي حسين",null,null,null,"ترحيل",null,null,null,null,null,null,null,null,null,null,null,null,null,"الخامس",null,"أ","","",null,null,null,"الخامس/أ",5,17,null,"170/13","حسين علي حسين عطشان","الخامس"]
[95,259,13,"حسين محمد عبد اليمه بكه","ذكر",28,6,2010,"غيداء مسبح بكه",null,null,null,"ترحيل",null,null,null,null,null,null,null,null,null,null,null,null,null,"الخامس",null,"أ","","",null,null,null,"الخامس/أ",5,17,null,"259/13","حسين محمد عبد اليمه بكه","الخامس"]
[96,155,13,"حيدر جلال خالد حسن","ذكر",2,7,2009,"شيماء محمد شناوه",null,null,null,"ترحيل",null,null,null,null,null,null,null,null,null,null,null,null,null,"الخامس",null,"أ","","",null,null,null,"الخامس/أ",5,17,null,"155/13","حيدر جلال خالد حسن","الخامس"]
[97,123,14,"رضا حيدر خلاوي محمد","ذكر",13,1,2010,"زينب جواد كاظم",null,null,null,"ترحيل",null,null,null,null,null,null,null,null,null,null,null,null,null,"الخامس",null,"أ","","",null,null,null,"الخامس/أ",5,17,null,"123/14","رضا حيدر خلاوي محمد","الخامس"]
[98,224,13,"رضا علوان كاظم شنيو","ذكر",6,10,2010,"ساجده حميد عبد",null,null,null,"ترحيل",null,null,null,null,null,null,null,null,null,null,null,null,null,"الخامس",null,"أ","","",null,null,null,"الخامس/أ",5,17,null,"224/13","رضا علوان كاظم شنيو","الخامس"]
[99,238,13,"عباس علي مسلم عزيز","ذكر",26,7,2010,"سهاد محمد عوده",null,null,null,"ترحيل",null,null,null,null,null,null,null,null,null,null,null,null,null,"الخامس",null,"أ","","",null,null,null,"الخامس/أ",5,17,null,"238/13","عباس علي مسلم عزيز","الخامس"]
[100,236,13,"علي عامر كامل جوده","ذكر",31,1,2011,"حوراء عويد صويح",null,null,null,"ترحيل",null,null,null,null,null,null,null,null,null,null,null,null,null,"الخامس",null,"أ","","",null,null,null,"الخامس/أ",5,17,null,"236/13","علي عامر كامل جوده","الخامس"]
[101,151,13,"عمار هيثم جاسم عبود","ذكر",16,11,2008,"جنان محمد نايف",null,null,null,"معيد اول عام",null,null,null,null,null,null,null,null,null,null,null,null,null,"الخامس",null,"أ","","",null,null,null,"الخامس/أ",5,17,null,"151/13","عمار هيثم جاسم عبود","الخامس"]
[102,118,14,"قاسم نبيل حسين جلاب","ذكر",25,1,2009,"سليمه حسان حرجان",null,null,null,"معيد اول عام",null,null,null,null,null,null,null,null,null,null,null,null,null,"الخامس",null,"أ","","",null,null,null,"الخامس/أ",5,17,null,"118/14","قاسم نبيل حسين جلاب","الخامس"]
[103,147,13,"كرار حيدر صالح كاظم","ذكر",17,2,2009,"زينب كريم راشد",null,null,null,"ترحيل",null,null,null,null,null,null,null,null,null,null,null,null,null,"الخامس",null,"ب","","",null,null,null,"الخامس/ب",5,18,null,"147/13","كرار حيدر صالح كاظم","الخامس"]
[104,244,13,"كرار محمد حسن هداد","ذكر",13,3,2010,"انتصار حمزه عبد الحسن",null,null,null,"ترحيل",null,null,null,null,null,null,null,null,null,null,null,null,null,"الخامس",null,"ب","","",null,null,null,"الخامس/ب",5,18,null,"244/13","كرار محمد حسن هداد","الخامس"]
[105,73,14,"مجتبى عمران موسى جويد","ذكر",15,9,2008,"ابتسام هادي جهيد",null,null,null,"ترحيل",null,"قريش","4/10/2018",null,null,null,null,null,null,null,null,null,null,"الخامس",null,"ب","","",null,null,null,"الخامس/ب",5,18,null,"73/14","مجتبى عمران موسى جويد","الخامس"]
[106,331,13,"محمد جاسم سلمان حمود","ذكر",10,10,2007,"آيات عبدالزهرة كريم",null,null,null,"ترحيل",null,"الصفا",null,null,null,null,null,null,null,null,null,null,null,"الخامس",null,"ب","","",null,null,null,"الخامس/ب",5,18,null,"331/13","محمد جاسم سلمان حمود","الخامس"]
[107,245,13,"محمد جبار كاظم حسن","ذكر",13,10,2009,"نوفه مطير حسوني",null,null,null,"ترحيل",null,null,null,null,null,null,null,null,null,null,null,null,null,"الخامس",null,"ب","","",null,null,null,"الخامس/ب",5,18,null,"245/13","محمد جبار كاظم حسن","الخامس"]
[108,229,13,"محمد خالد رهيف عواد","ذكر",2,2,2010,"وفاء عبد زيد حسن",null,null,null,"ترحيل",null,null,null,null,null,null,null,null,null,null,null,null,null,"الخامس",null,"ب","","",null,null,null,"الخامس/ب",5,18,null,"229/13","محمد خالد رهيف عواد","الخامس"]
[109,324,13,"مصطفى أحمد غثيث عطشان","ذكر",28,6,2008,"ايات عباس شلاكه",null,null,null,"ترحيل",null,"الصفا",null,null,null,null,null,null,null,null,null,null,null,"الخامس",null,"ب","","",null,null,null,"الخامس/ب",5,18,null,"324/13","مصطفى أحمد غثيث عطشان","الخامس"]
[110,248,13,"مصطفى قاسم علوان عزوز","ذكر",27,8,2010,"فائزه عباس عزوز",null,null,null,"ترحيل",null,null,null,null,null,null,null,null,null,null,null,null,null,"الخامس",null,"ب","","",null,null,null,"الخامس/ب",5,18,null,"248/13","مصطفى قاسم علوان عزوز","الخامس"]
[111,74,14,"منتظر جبار هول محمد","ذكر",25,4,2009,"رجيحه محمد صالح",null,null,null,"ترحيل",null,"الفرقان","22/11/2018",null,null,null,null,null,null,null,null,null,null,"الخامس",null,"ب","","",null,null,null,"الخامس/ب",5,18,null,"74/14","منتظر جبار هول محمد","الخامس"]
[112,258,13,"منتظر حسين علي باشي","ذكر",3,11,2010,"ساجده مهدي كاطع",null,null,null,"ترحيل",null,null,null,null,null,null,null,null,null,null,null,null,null,"الخامس",null,"ب","","",null,null,null,"الخامس/ب",5,18,null,"258/13","منتظر حسين علي باشي","الخامس"]
[113,115,14,"مهدي حسين علي هلول","ذكر",8,8,2010,"رنا عباس اسماعيل",null,null,null,"ترحيل",null,null,null,null,null,null,null,null,null,null,null,null,null,"الخامس",null,"ب","","",null,null,null,"الخامس/ب",5,18,null,"115/14","مهدي حسين علي هلول","الخامس"]
[114,124,14,"ميمون احمد شريف غزال","ذكر",4,9,2009,"دلال موسى كاظم",null,null,null,"معيد اول عام",null,null,null,null,null,null,null,null,null,null,null,null,null,"الخامس",null,"ب","","",null,null,null,"الخامس/ب",5,18,null,"124/14","ميمون احمد شريف غزال","الخامس"]
[115,153,13,"احمد سبت والي خير الله","ذكر",21,2,2008,"سعديه عبد الله زوير",null,null,null,"ترحيل",null,null,null,null,null,null,null,null,null,null,null,null,null,"السادس",null,"أ","","",null,null,null,"السادس/أ",6,21,null,"153/13","احمد سبت والي خير الله","السادس"]
[116,135,13,"أمير فراس عبد الستار عباس","ذكر",28,3,2009,"رؤى تركي عزيز",null,null,null,"ترحيل",null,null,null,null,null,null,null,null,null,null,null,null,null,"السادس",null,"أ","","",null,null,null,"السادس/أ",6,21,null,"135/13","أمير فراس عبد الستار عباس","السادس"]
[117,20,13,"حسين علاء علوان كريم","ذكر",13,11,2007,"جميله عطيه رهيف",null,null,null,"ترحيل",null,"","",null,null,null,null,null,null,null,null,null,"","السادس",null,"أ","","",null,null,null,"السادس/أ",6,21,null,"20/13","حسين علاء علوان كريم","السادس"]
[118,19,13,"حيدر علوان كاظم شنيو","ذكر",25,12,2007,"ساجده حميد عبد",null,null,null,"ترحيل",null,"","",null,null,null,null,null,null,null,null,null,"","السادس",null,"أ","","",null,null,null,"السادس/أ",6,21,null,"19/13","حيدر علوان كاظم شنيو","السادس"]
[119,72,13,"حيدر هادي طعيمه مشكور","ذكر",14,2,2008,"رباب جبار عناد",null,null,null,"ترحيل",null,"","",null,null,null,null,null,null,null,null,null,"","السادس",null,"أ","","",null,null,null,"السادس/أ",6,21,null,"72/13","حيدر هادي طعيمه مشكور","السادس"]
[120,"308",12,"رضا كاظم شراد حمادي","ذكر",20,10,2005,"عهود حسين شمال",null,null,null,"ترحيل",null,"","",null,null,null,null,null,null,null,null,null,"","السادس",null,"أ","","",null,null,null,"السادس/أ",6,21,null,"308/12","رضا كاظم شراد حمادي","السادس"]
[121,162,13,"سالم باسم عبدالرزاق حسن","ذكر",1,4,2009,"شيماء حمودي مهدي",null,null,null,"ترحيل",null,null,null,null,null,null,null,null,null,null,null,null,null,"السادس",null,"أ","","",null,null,null,"السادس/أ",6,21,null,"162/13","سالم باسم عبدالرزاق حسن","السادس"]
[122,163,13,"ضرغام محمد عبد الرزاق موسى","ذكر",20,9,2009,"سجى عبد الرزاق عبيس",null,null,null,"ترحيل",null,null,null,null,null,null,null,null,null,null,null,null,null,"السادس",null,"أ","","",null,null,null,"السادس/أ",6,21,null,"163/13","ضرغام محمد عبد الرزاق موسى","السادس"]
[123,320,13,"عباس احمد جبر دبيس","ذكر",28,2,2009,"زينب يوسف سالم",null,null,null,"ترحيل",null,"اكاديمية التفوق الاهلية",null,null,null,null,null,null,null,null,null,null,null,"السادس",null,"أ","","",null,null,null,"السادس/أ",6,21,null,"320/13","عباس احمد جبر دبيس","السادس"]
[124,52,13,"علي حاتم كريم دبال","ذكر",7,9,2007,"خمائل شاكر حامد",null,null,null,"ترحيل",null,"","",null,null,null,null,null,null,null,null,null,"","السادس",null,"أ","","",null,null,null,"السادس/أ",6,21,null,"52/13","علي حاتم كريم دبال","السادس"]
[125,172,13,"علي سالم جواد حسين","ذكر",5,11,2009,"جنان ابراهيم حسين",null,null,null,"ترحيل",null,null,null,null,null,null,null,null,null,null,null,null,null,"السادس",null,"أ","","",null,null,null,"السادس/أ",6,21,null,"172/13","علي سالم جواد حسين","السادس"]
[126,152,13,"علي صالح والي سلمان","ذكر",27,1,2010,"سعاد علوان عزوز",null,null,null,"ترحيل",null,null,null,null,null,null,null,null,null,null,null,null,null,"السادس",null,"أ","","",null,null,null,"السادس/أ",6,21,null,"152/13","علي صالح والي سلمان","السادس"]
[127,133,13,"علي وسام حسان عبد ","ذكر",10,3,2009,"نغم حبيب جودة",null,null,null,"ترحيل",null,null,null,null,null,null,null,null,null,null,null,null,null,"السادس",null,"أ","","",null,null,null,"السادس/أ",6,21,null,"133/13","علي وسام حسان عبد ","السادس"]
[128,78,14,"كرار رافد محمد عبد الله","ذكر",30,7,2009,"ازهار كريم غافل",null,null,null,"ترحيل",null,"ساوة للبنين","25/2/2019",null,null,null,null,null,null,null,null,null,null,"السادس",null,"أ","","",null,null,null,"السادس/أ",6,21,null,"78/14","كرار رافد محمد عبد الله","السادس"]
[129,145,13,"كرار رعد مري عبدالرضا","ذكر",30,7,2009,"فاطمه مهدي محمد",null,null,null,"ترحيل",null,null,null,null,null,null,null,null,null,null,null,null,null,"السادس",null,"أ","","",null,null,null,"السادس/أ",6,21,null,"145/13","كرار رعد مري عبدالرضا","السادس"]
[130,103,13,"كريم هادي محمد خضير","ذكر",14,2,2008,"سعيده كريم مذبوب",null,null,null,"ترحيل",null,"","",null,null,null,null,null,null,null,null,null,"","السادس",null,"أ","","",null,null,null,"السادس/أ",6,21,null,"103/13",{"$f":"D145","v":"كريم هادي محمد خضير"},{"$f":"AA145","v":"السادس"}]
[131,102,13,"مجتبى نبيل طارش محمد","ذكر",5,5,2008,"زهرة رحيم محمد",null,null,null,"ترحيل",null,null,null,null,null,null,null,null,null,null,null,null,null,"السادس",null,"أ","","",null,null,null,"السادس/أ",6,21,null,"102/13","مجتبى نبيل طارش محمد","السادس"]
[132,65,14,"محسن هيثم كاظم هلاوي","ذكر",1,3,2009,"ولاء عبد الحسن مسير",null,null,null,null,null,null,null,null,null,null,null,null,null,null,null,null,null,"السادس","لم ترد وثيقته","أ","","منقول  ",null,null,null,"السادس/أ",6,21,null,"65/14","محسن هيثم كاظم هلاوي","السادس"]
[133,144,13,"محمد حسام كاظم اعطيه","ذكر",27,9,2009,"خلود خضير حسون",null,null,null,"ترحيل",null,null,null,null,null,null,null,null,null,null,null,null,null,"السادس",null,"أ","","",null,null,null,"السادس/أ",6,21,null,"144/13","محمد حسام كاظم اعطيه","السادس"]
[134,178,13,"محمد ماجد سيار حرك","ذكر",18,11,2009,"بشرى شلال شهاب",null,null,null,"ترحيل",null,null,null,null,null,null,null,null,null,null,null,null,null,"السادس",null,"أ","","",null,null,null,"السادس/أ",6,21,null,"178/13","محمد ماجد سيار حرك","السادس"]
[135,"293",12,"محمدعلي حسين عبادي غزاي","ذكر",6,10,2006,"ميثم هيمان عواد",null,null,null,"ترحيل",null,"","",null,null,null,null,null,null,null,null,null,"","السادس",null,"أ","","",null,null,null,"السادس/أ",6,21,null,"293/12","محمدعلي حسين عبادي غزاي","السادس"]
[136,192,13,"منتظر عماد عباس عزوز","ذكر",10,9,2008,"زينب عطيه كاولي",null,null,null,"ترحيل",null,"الفراهيدي ح/1","13/10/2016",null,null,null,null,null,null,null,null,null,null,"السادس",null,"أ","","",null,null,null,"السادس/أ",6,21,null,"192/13","منتظر عماد عباس عزوز","السادس"]
[137,"323",12,"مهدي حيدر عبد محسن","ذكر",15,1,2007,"سولاف علي طحيور",null,null,null,"ترحيل",null,"","",null,null,null,null,null,null,null,null,null,"","السادس",null,"أ","","",null,null,null,"السادس/أ",6,21,null,"323/12","مهدي حيدر عبد محسن","السادس"]
[138,300,13,"امير عادل عبدحسن عبيد","ذكر",5,7,2011,"نجاه شويجه شناوه",null,null,null,"معيد ثان عام",null,null,null,null,null,null,null,null,null,null,null,null,null,"الاول",null,"أ","","",null,null,null,"الاول/أ",1,"",null,"300/13","امير عادل عبدحسن عبيد","الاول"]
[139,null,null,"أحمد محمد لفته جعيز","ذكر",15,10,2014,"نور تالي خلف",null,null,null,"مجدد","الاول/مجدد",null,null,null,null,null,null,null,null,null,null,null,null,"الاول",null,"أ","","",null,null,null,"الاول/أ",1,"",null,"القيد غير موجود","أحمد محمد لفته جعيز","الاول"]
[140,null,null,"جعفر صادق علي مصحب","ذكر",1,6,2014,"خلود كاصد سلمان",null,null,null,"مجدد","الاول/مجدد",null,null,null,null,null,null,null,null,null,null,null,null,"الاول",null,"أ","","",null,null,null,"الاول/أ",1,"",null,"القيد غير موجود","جعفر صادق علي مصحب","الاول"]
[141,null,null,"حسين حيدر عويجل خويط","ذكر",26,11,2013,"نوره صليبي عطيه",null,null,null,"مجدد","الاول/مجدد",null,null,null,null,null,null,null,null,null,null,null,null,"الاول",null,"أ","","",null,null,null,"الاول/أ",1,"",null,"القيد غير موجود","حسين حيدر عويجل خويط","الاول"]
[142,88,14,"حسين عباس صالح مهدي","ذكر",11,11,2013,"صفاء عدنان نور",null,null,null,"معيد اول عام",null,null,null,null,null,null,null,null,null,null,null,null,null,"الاول",null,"أ","","",null,null,null,"الاول/أ",1,"",null,"88/14","حسين عباس صالح مهدي","الاول"]
[143,null,null,"حسين علي عباس عايش","ذكر",13,7,2014,"شيماء دعيم شيرم",null,null,null,"مجدد","الاول/مجدد",null,null,null,null,null,null,null,null,null,null,null,null,"الاول",null,"أ","","",null,null,null,"الاول/أ",1,"",null,"القيد غير موجود","حسين علي عباس عايش","الاول"]
[144,null,null,"حسين قاسم عباس جلاب","ذكر",23,9,2014,"اسراء عبدالله حسين",null,null,null,"مجدد","الاول/مجدد",null,null,null,null,null,null,null,null,null,null,null,null,"الاول",null,"أ","","",null,null,null,"الاول/أ",1,"",null,"القيد غير موجود","حسين قاسم عباس جلاب","الاول"]
[145,null,null,"رضا احمد صبار مونس","ذكر",7,2,2014,"هاجر اطعيم عبد",null,null,null,"مجدد","الاول/مجدد",null,null,null,null,null,null,null,null,null,null,null,null,"الاول",null,"أ","","",null,null,null,"الاول/أ",1,"",null,"القيد غير موجود","رضا احمد صبار مونس","الاول"]
[146,null,null,"عباس اركان عدنان هاني","ذكر",21,2,2014,"مروى حسان عبد",null,null,null,"مجدد","الاول/مجدد",null,null,null,null,null,null,null,null,null,null,null,null,"الاول",null,"أ","","",null,null,null,"الاول/أ",1,"",null,"القيد غير موجود","عباس اركان عدنان هاني","الاول"]
[147,92,14,"عباس جواد كاظم عباس","ذكر",21,7,2013,"حوراء طالب ارحيم",null,null,null,"معيد اول عام",null,null,null,null,null,null,null,null,null,null,null,null,null,"الاول",null,"أ","","",null,null,null,"الاول/أ",1,"",null,"92/14","عباس جواد كاظم عباس","الاول"]
[148,null,null,"عباس حازم منشد فرج","ذكر",21,6,2014,"دلال حسين غريب",null,null,null,"مجدد","الاول/مجدد",null,null,null,null,null,null,null,null,null,null,null,null,"الاول",null,"أ","","",null,null,null,"الاول/أ",1,"",null,"القيد غير موجود","عباس حازم منشد فرج","الاول"]
[149,null,null,"عباس حسن جاسم خضير","ذكر",22,1,2014,"عبير مطر غازي",null,null,null,"مجدد","الاول/مجدد",null,null,null,null,null,null,null,null,null,null,null,null,"الاول",null,"أ","","",null,null,null,"الاول/أ",1,"",null,"القيد غير موجود","عباس حسن جاسم خضير","الاول"]
[150,null,null,"عباس حسن شاكر سهر","ذكر",1,10,2014,"مروة محمد امين",null,null,null,"مجدد","الاول/مجدد",null,null,null,null,null,null,null,null,null,null,null,null,"الاول",null,"أ","","",null,null,null,"الاول/أ",1,"",null,"القيد غير موجود","عباس حسن شاكر سهر","الاول"]
[151,null,null,"عباس علي حسين نعمه","ذكر",29,7,2014,"ندى مكطوف محسن",null,null,null,"مجدد","الاول/مجدد",null,null,null,null,null,null,null,null,null,null,null,null,"الاول",null,"أ","","",null,null,null,"الاول/أ",1,"",null,"القيد غير موجود","عباس علي حسين نعمه","الاول"]
[152,null,null,"عباس علي عبد الله جبر","ذكر",26,8,2014,"التفات سالم كاظم",null,null,null,"مجدد","الاول/مجدد",null,null,null,null,null,null,null,null,null,null,null,null,"الاول",null,"أ","","",null,null,null,"الاول/أ",1,"",null,"القيد غير موجود","عباس علي عبد الله جبر","الاول"]
[153,null,null,"علي اعياد عبدالحسن عبدالشهيد","ذكر",20,11,2014,"هدى علي عباس",null,null,null,"مجدد","الاول/مجدد",null,null,null,null,null,null,null,null,null,null,null,null,"الاول",null,"أ","","",null,null,null,"الاول/أ",1,"",null,"القيد غير موجود","علي اعياد عبدالحسن عبدالشهيد","الاول"]
[154,null,null,"علي افضل حسين عطيه عباس","ذكر",9,2,2014,"شدن ضامد هادي",null,null,null,"مجدد","الاول/مجدد",null,null,null,null,null,null,null,null,null,null,null,null,"الاول",null,"أ","","",null,null,null,"الاول/أ",1,"",null,"القيد غير موجود","علي افضل حسين عطيه عباس","الاول"]
[155,null,null,"علي حسين عبد جبر","ذكر",21,9,2014,"ميلاد والي نويصر",null,null,null,"مجدد","الاول/مجدد",null,null,null,null,null,null,null,null,null,null,null,null,"الاول",null,"أ","","",null,null,null,"الاول/أ",1,"",null,"القيد غير موجود","علي حسين عبد جبر","الاول"]
[156,null,null,"علي وسام جواد كاظم","ذكر",21,5,2014,"هدى هاشم عبد الرزاق",null,null,null,"مجدد","الاول/مجدد",null,null,null,null,null,null,null,null,null,null,null,null,"الاول",null,"أ","","",null,null,null,"الاول/أ",1,"",null,"القيد غير موجود","علي وسام جواد كاظم","الاول"]
[157,null,null,"كاظم جعفر مهدي","ذكر",28,4,2014,"سفيره انعيم عبد",null,null,null,"مجدد","الاول/مجدد",null,null,null,null,null,null,null,null,null,null,null,null,"الاول",null,"أ","","",null,null,null,"الاول/أ",1,"",null,"القيد غير موجود","كاظم جعفر مهدي","الاول"]
[158,null,null,"كرار حيدر رياض منصور","ذكر",28,11,2014,"ود داخل عبدالحسين",null,null,null,"مجدد","الاول/مجدد",null,null,null,null,null,null,null,null,null,null,null,null,"الاول",null,"أ","","",null,null,null,"الاول/أ",1,"",null,"القيد غير موجود","كرار حيدر رياض منصور","الاول"]
[159,null,null,"ماجد كرار صباح جبار","ذكر",15,2,2014,"زينه جواد عبود",null,null,null,"مجدد","الاول/مجدد",null,null,null,null,null,null,null,null,null,null,null,null,"الاول",null,"أ","","",null,null,null,"الاول/أ",1,"",null,"القيد غير موجود","ماجد كرار صباح جبار","الاول"]
[160,null,null,"محسن كاظم عبد الخضر حسوني","ذكر",14,9,2014,"زينب عبدالزهرة عبد",null,null,null,"مجدد","الاول/مجدد",null,null,null,null,null,null,null,null,null,null,null,null,"الاول",null,"أ","","",null,null,null,"الاول/أ",1,"",null,"القيد غير موجود","محسن كاظم عبد الخضر حسوني","الاول"]
[161,null,null,"محمد علي لفته جعيز","ذكر",4,11,2014,"حياة عبدالامير محسن",null,null,null,"مجدد","الاول/مجدد",null,null,null,null,null,null,null,null,null,null,null,null,"الاول",null,"أ","","",null,null,null,"الاول/أ",1,"",null,"القيد غير موجود","محمد علي لفته جعيز","الاول"]
[162,null,null,"مصطفى خالد عواد عريان","ذكر",28,8,2014,"حوراء رهيف ساجت",null,null,null,"مجدد","الاول/مجدد",null,null,null,null,null,null,null,null,null,null,null,null,"الاول",null,"أ","","",null,null,null,"الاول/أ",1,"",null,"القيد غير موجود","مصطفى خالد عواد عريان","الاول"]
[163,null,null,"مهدي حسن احميد جاسم","ذكر",30,6,2013,"غيداء سوادي حسن",null,null,null,"مجدد","الاول/مجدد",null,null,null,null,null,null,null,null,null,null,null,null,"الاول",null,"أ","","",null,null,null,"الاول/أ",1,"",null,"القيد غير موجود","مهدي حسن احميد جاسم","الاول"]
[164,null,null,"ولاء فاضل حسن عثمان","ذكر",3,5,2013,"منتهى عباس محمد",null,null,null,"مجدد","الاول/مجدد",null,null,null,null,null,null,null,null,null,null,null,null,"الاول",null,"أ","","",null,null,null,"الاول/أ",1,"",null,"القيد غير موجود","ولاء فاضل حسن عثمان","الاول"]
[165,79,14,"امير علي اخضير محسن","ذكر",19,2,2012,"فاطمة محمد قرداش",null,null,null,"ترحيل",null,null,null,null,null,null,null,null,null,null,null,null,null,"الثاني",null,"أ","","",null,null,null,"الثاني/أ",2,"",null,"79/14","امير علي اخضير محسن","الثاني"]
[166,80,14,"أسحاق اسماعيل محمد كريم","ذكر",23,3,2013,"بيداء نجم عبد",null,null,null,"ترحيل",null,null,null,null,null,null,null,null,null,null,null,null,null,"الثاني",null,"أ","","",null,null,null,"الثاني/أ",2,"",null,"80/14","أسحاق اسماعيل محمد كريم","الثاني"]
[167,81,14,"أمير حسين علي باشي","ذكر",15,5,2013,"ساجده مهدي كاطع",null,null,null,"ترحيل",null,null,null,null,null,null,null,null,null,null,null,null,null,"الثاني",null,"أ","","",null,null,null,"الثاني/أ",2,"",null,"81/14","أمير حسين علي باشي","الثاني"]
[168,82,14,"باقر باسم رسول صادق","ذكر",17,12,2012,"زينب عكله شيري",null,null,null,"ترحيل",null,null,null,null,null,null,null,null,null,null,null,null,null,"الثاني",null,"أ","","",null,null,null,"الثاني/أ",2,"",null,"82/14","باقر باسم رسول صادق","الثاني"]
[169,84,14,"جعفر صادق محمدباقر حمد","ذكر",2,4,2013,"وجدان كامل صالح",null,null,null,"ترحيل",null,null,null,null,null,null,null,null,null,null,null,null,null,"الثاني",null,"أ","","",null,null,null,"الثاني/أ",2,"",null,"84/14","جعفر صادق محمدباقر حمد","الثاني"]
[170,85,14,"حسين خضير غازي عبدالحسين","ذكر",19,9,2013,"هبه احمد شاهين",null,null,null,"ترحيل",null,null,null,null,null,null,null,null,null,null,null,null,null,"الثاني",null,"أ","","",null,null,null,"الثاني/أ",2,"",null,"85/14","حسين خضير غازي عبدالحسين","الثاني"]
[171,87,14,"حسين كريم مسافر كاطع","ذكر",10,1,2014,"دلال سعران حرجان",null,null,null,"ترحيل",null,null,null,null,null,null,null,null,null,null,null,null,null,"الثاني",null,"أ","","",null,null,null,"الثاني/أ",2,"",null,"87/14","حسين كريم مسافر كاطع","الثاني"]
[172,90,14,"حيدر علي هادي شاهين","ذكر",28,2,2013,"وسن صاحب علوان",null,null,null,"ترحيل",null,null,null,null,null,null,null,null,null,null,null,null,null,"الثاني",null,"أ","","",null,null,null,"الثاني/أ",2,"",null,"90/14","حيدر علي هادي شاهين","الثاني"]
[173,null,null,"حيدر مجيد كريم مجدي","ذكر",2,1,2014,"انتصار صالح جاسم",null,"السماوة/حي الجمهوري",7827574133,"منقول  ","الثاني","الفيحاء للبنات",44151,null,null,null,null,null,null,null,null,null,null,"الثاني","يرجى قبول /لم ترد وثيقته","أ","","منقول  ",null,null,null,"الثاني/أ",2,"",null,"القيد غير موجود","حيدر مجيد كريم مجدي","الثاني"]
[174,91,14,"رضا عامر عباس حسن","ذكر",3,10,2013,"نهى نوري فياض",null,null,null,"ترحيل",null,null,null,null,null,null,null,null,null,null,null,null,null,"الثاني",null,"أ","","",null,null,null,"الثاني/أ",2,"",null,"91/14","رضا عامر عباس حسن","الثاني"]
[175,55,14,"رضا عقيل غني كاظم","ذكر",11,11,2012,"تيسير عبد الله عبد",null,null,null,"ترحيل",null,null,null,null,null,null,null,null,null,null,null,null,null,"الثاني",null,"أ","","",null,null,null,"الثاني/أ",2,"",null,"55/14","رضا عقيل غني كاظم","الثاني"]
[176,93,14,"عباس أحمد اسماعيل غازي","ذكر",1,7,2013,"نور محمد عبدعلي",null,null,null,"ترحيل",null,null,null,null,null,null,null,null,null,null,null,null,null,"الثاني",null,"أ","","",null,null,null,"الثاني/أ",2,"",null,"93/14","عباس أحمد اسماعيل غازي","الثاني"]
[177,113,14,"عباس أمير جمعه عيدان","ذكر",22,1,2014,"دنيا جفات ثجيل",null,null,null,"ترحيل",null,null,null,null,null,null,null,null,null,null,null,null,null,"الثاني",null,"أ","","",null,null,null,"الثاني/أ",2,"",null,"113/14","عباس أمير جمعه عيدان","الثاني"]
[178,94,14,"عباس سعيد مري عبدالرضا","ذكر",3,4,2013,"نبراس حسن جوان",null,null,null,"ترحيل",null,null,null,null,null,null,null,null,null,null,null,null,null,"الثاني",null,"أ","","",null,null,null,"الثاني/أ",2,"",null,"94/14","عباس سعيد مري عبدالرضا","الثاني"]
[179,95,14,"علي المرتضى حسين هادي شاهين","ذكر",16,5,2013,"وسن جبار عباس",null,null,null,"ترحيل",null,null,null,null,null,null,null,null,null,null,null,null,null,"الثاني",null,"أ","","",null,null,null,"الثاني/أ",2,"",null,"95/14","علي المرتضى حسين هادي شاهين","الثاني"]
[180,96,14,"علي أبراهيم ناصر عبدالله","ذكر",12,9,2013,"منتهى عبيد زباري",null,null,null,"ترحيل",null,null,null,null,null,null,null,null,null,null,null,null,null,"الثاني",null,"أ","","",null,null,null,"الثاني/أ",2,"",null,"96/14","علي أبراهيم ناصر عبدالله","الثاني"]
[181,97,14,"علي حمزه بدر لايذ","ذكر",28,5,2013,"نور مزهر لايذ",null,null,null,"ترحيل",null,null,null,null,null,null,null,null,null,null,null,null,null,"الثاني",null,"أ","","",null,null,null,"الثاني/أ",2,"",null,"97/14","علي حمزه بدر لايذ","الثاني"]
[182,57,14,"علي عبد الامير اسماعيل عسر","ذكر",4,5,2012,"سحر حسن فليح",null,null,null,"ترحيل",null,null,null,null,null,null,null,null,null,null,null,null,null,"الثاني",null,"أ","","",null,null,null,"الثاني/أ",2,"",null,"57/14","علي عبد الامير اسماعيل عسر","الثاني"]
[183,100,14,"علي فراس صباح حرجان","ذكر",13,3,2013,"شيماء صلاح حرجان",null,null,null,"ترحيل",null,null,null,null,null,null,null,null,null,null,null,null,null,"الثاني",null,"أ","","",null,null,null,"الثاني/أ",2,"",null,"100/14","علي فراس صباح حرجان","الثاني"]
[184,23,14,"كرار احمد غثيث عطشان","ذكر",1,12,2011,"ايات عباس شلاكه",null,null,null,"ترحيل",null,null,null,null,null,null,null,null,null,null,null,null,null,"الثاني",null,"أ","","",null,null,null,"الثاني/أ",2,"",null,"23/14","كرار احمد غثيث عطشان","الثاني"]
[185,22,14,"كرار رزاق الاسمر جبار","ذكر",3,11,2012,"التفات مسير جبار",null,null,null,"ترحيل",null,null,null,null,null,null,null,null,null,null,null,null,null,"الثاني",null,"أ","","",null,null,null,"الثاني/أ",2,"",null,"22/14","كرار رزاق الاسمر جبار","الثاني"]
[186,102,14,"كرار ياسر علي مصحب","ذكر",23,10,2013,"سليمه هاشم مطر",null,null,null,"ترحيل",null,null,null,null,null,null,null,null,null,null,null,null,null,"الثاني",null,"أ","","",null,null,null,"الثاني/أ",2,"",null,"102/14","كرار ياسر علي مصحب","الثاني"]
[187,318,13,"محمد رحمن شاكر شاتول","ذكر",14,12,2010,"سمر عباس شاهين",null,null,null,"معيد اول عام",null,null,null,null,null,null,null,null,null,null,null,null,null,"الثاني",null,"أ","","",null,null,null,"الثاني/أ",2,"",null,"318/13","محمد رحمن شاكر شاتول","الثاني"]
[188,null,null,"مصطفى علاء جاسم محمد","ذكر",4,6,2013,"نسرين داود علي",null,"السماوة/حي الجمهوري",7801499094,"منقول  ","الثاني","اكاديمية التفوق الاهلية",44170,null,null,null,null,null,null,null,null,null,null,"الثاني","لم ترد وثيقته","أ","","منقول  ",null,null,null,"الثاني/أ",2,"",null,"القيد غير موجود","مصطفى علاء جاسم محمد","الثاني"]
[189,107,14,"مصطفى كاظم شلاكه رداد","ذكر",17,8,2013,"زهره هاشم عبد الله",null,null,null,"ترحيل",null,null,null,null,null,null,null,null,null,null,null,null,null,"الثاني",null,"أ","","",null,null,null,"الثاني/أ",2,"",null,"107/14","مصطفى كاظم شلاكه رداد","الثاني"]
[190,null,null,"مصطفى هادي صالح  داغر","ذكر",30,7,2013,"ساره حامدأحمد",null,"السماوة/حي العمال",7814312505,"منقول  ","الثاني","المثنى الاهلية",44161,null,null,null,null,null,null,null,null,null,null,"الثاني","لم ترد وثيقته","أ","","منقول  ",null,null,null,"الثاني/أ",2,"",null,"القيد غير موجود","مصطفى هادي صالح  داغر","الثاني"]
[191,109,14,"منتظر وسام حسان عبد","ذكر",27,2,2013,"نغم حبيب جوده",null,null,null,"ترحيل",null,null,null,null,null,null,null,null,null,null,null,null,null,"الثاني",null,"أ","","",null,null,null,"الثاني/أ",2,"",null,"109/14","منتظر وسام حسان عبد","الثاني"]
[192,110,14,"مؤمل عدي كاظم مهدي","ذكر",11,4,2013,"شيماء علي عبد الحسين",null,null,null,"ترحيل",null,null,null,null,null,null,null,null,null,null,null,null,null,"الثاني",null,"أ","","",null,null,null,"الثاني/أ",2,"",null,"110/14","مؤمل عدي كاظم مهدي","الثاني"]
[193,332,13,"احمد جاسم سلمان حمود","ذكر",22,2,2011,"آيات عبدالزهرة كريم",null,null,null,"ترحيل",null,null,null,null,null,null,null,null,null,null,null,null,null,"الثالث",null,"أ","","",null,null,null,"الثالث/أ",3,"",null,"332/13","احمد جاسم سلمان حمود","الثالث"]
[194,9,14,"امير حمد رحيم دبال","ذكر",26,3,2012,"منال غليب دبال",null,null,null,"ترحيل",null,null,null,null,null,null,null,null,null,null,null,null,null,"الثالث",null,"أ","","",null,null,null,"الثالث/أ",3,"",null,"9/14",{"$f":"D209","v":"امير حمد رحيم دبال"},{"$f":"AA209","v":"الثالث"}]
[195,26,14,"امير علي عاصي عبد الرضا","ذكر",25,2,2012,"الاء حسين عليوي",null,null,null,"ترحيل",null,null,null,null,null,null,null,null,null,null,null,null,null,"الثالث",null,"أ","","",null,null,null,"الثالث/أ",3,"",null,"26/14","امير علي عاصي عبد الرضا","الثالث"]
[196,308,13,"أحمد جبار كاظم حسن","ذكر",16,8,2011,"نوفه مطير حسوني",null,null,null,"ترحيل",null,null,null,null,null,null,null,null,null,null,null,null,null,"الثالث",null,"أ","","",null,null,null,"الثالث/أ",3,"",null,"308/13","أحمد جبار كاظم حسن","الثالث"]
[197,306,13,"أحمد علي بطل بلال","ذكر",21,10,2011,"حنين سعد احمد",null,null,null,"ترحيل",null,null,null,null,null,null,null,null,null,null,null,null,null,"الثالث",null,"أ","","",null,null,null,"الثالث/أ",3,"",null,"306/13","أحمد علي بطل بلال","الثالث"]
[198,53,14,"جعفر جاسم محمد حسن","ذكر",7,6,2012,"رشا جلاوي حمود",null,null,null,"ترحيل",null,null,null,null,null,null,null,null,null,null,null,null,null,"الثالث",null,"أ","","",null,null,null,"الثالث/أ",3,"",null,"53/14","جعفر جاسم محمد حسن","الثالث"]
[199,12,14,"جعفر رياض حمزه مطر","ذكر",5,3,2012,"زينب تالي خلف",null,null,null,"ترحيل",null,null,null,null,null,null,null,null,null,null,null,null,null,"الثالث",null,"أ","","",null,null,null,"الثالث/أ",3,"",null,"12/14","جعفر رياض حمزه مطر","الثالث"]
[200,11,14,"حسين محمد صكبان هداد","ذكر",12,11,2011,"فريال رحيم ساجت",null,null,null,"ترحيل",null,null,null,null,null,null,null,null,null,null,null,null,null,"الثالث",null,"أ","","",null,null,null,"الثالث/أ",3,"",null,"11/14","حسين محمد صكبان هداد","الثالث"]
[201,14,14,"حسين منير رحيم علي","ذكر",20,9,2012,"فاطمه ابراهيم مهدي",null,null,null,"ترحيل",null,null,null,null,null,null,null,null,null,null,null,null,null,"الثالث",null,"أ","","",null,null,null,"الثالث/أ",3,"",null,"14/14","حسين منير رحيم علي","الثالث"]
[202,50,14,"زيد علي طالب ارحيم","ذكر",11,3,2012,"حنان عبد الكاظم عبد علي",null,null,null,"ترحيل",null,null,null,null,null,null,null,null,null,null,null,null,null,"الثالث",null,"أ","","",null,null,null,"الثالث/أ",3,"",null,"50/14","زيد علي طالب ارحيم","الثالث"]
[203,7,14,"طه علاء حسين علي","ذكر",12,6,2012,"نسرين زهير عبد الله",null,null,null,"ترحيل",null,null,null,null,null,null,null,null,null,null,null,null,null,"الثالث",null,"أ","","",null,null,null,"الثالث/أ",3,"",null,"7/14","طه علاء حسين علي","الثالث"]
[204,51,14,"عباس صلاح حسن عجيل","ذكر",1,4,2012,"زهراء كريم عجيل",null,null,null,"ترحيل",null,null,null,null,null,null,null,null,null,null,null,null,null,"الثالث",null,"أ","","",null,null,null,"الثالث/أ",3,"",null,"51/14","عباس صلاح حسن عجيل","الثالث"]
[205,44,14,"علي حمزه بجاي محسن","ذكر",30,4,2012,"خديجه شلاكه رداد",null,null,null,"ترحيل",null,null,null,null,null,null,null,null,null,null,null,null,null,"الثالث",null,"أ","","",null,null,null,"الثالث/أ",3,"",null,"44/14","علي حمزه بجاي محسن","الثالث"]
[206,16,14,"علي رضا محمد طعمه عبود","ذكر",1,3,2012,"زينب ميراوي حسن",null,null,null,"ترحيل",null,null,null,null,null,null,null,null,null,null,null,null,null,"الثالث",null,"أ","","",null,null,null,"الثالث/أ",3,"",null,"16/14","علي رضا محمد طعمه عبود","الثالث"]
[207,319,13,"علي عامر مليوخ احسين","ذكر",26,8,2011,"غنيمه براك ردام",null,null,null,"ترحيل",null,null,null,null,null,null,null,null,null,null,null,null,null,"الثالث",null,"أ","","",null,null,null,"الثالث/أ",3,"",null,"319/13","علي عامر مليوخ احسين","الثالث"]
[208,18,14,"علي محمد براك ردام","ذكر",18,10,2012,"نوره محمد دحام",null,null,null,"ترحيل",null,null,null,null,null,null,null,null,null,null,null,null,null,"الثالث",null,"أ","","",null,null,null,"الثالث/أ",3,"",null,"18/14","علي محمد براك ردام","الثالث"]
[209,null,null,"علي محمد جواد","ذكر",null,null,null,null,null,null,null,"منقول  ","الثالث","الاحسان",null,null,null,null,null,null,null,null,null,null,null,"الثالث",null,"أ","","منقول  ",null,null,null,"الثالث/أ",3,"",null,"القيد غير موجود","علي محمد جواد","الثالث"]
[210,30,14,"كاظم كرار كاظم حسين","ذكر",21,12,2012,"الاء عباس جليل",null,null,null,"ترحيل",null,null,null,null,null,null,null,null,null,null,null,null,null,"الثالث",null,"أ","","",null,null,null,"الثالث/أ",3,"",null,"30/14","كاظم كرار كاظم حسين","الثالث"]
[211,314,13,"كرار هيثم جاسم عبود","ذكر",8,5,2010,"جنان محمد نايف",null,null,null,"ترحيل",null,null,null,null,null,null,null,null,null,null,null,null,null,"الثالث",null,"أ","","",null,null,null,"الثالث/أ",3,"",null,"314/13","كرار هيثم جاسم عبود","الثالث"]
[212,null,null,"محمدالباقر اياد حمزه كريم","ذكر",5,11,2011,"زينب عبد اسماعيل",null,"السماوة/حي الجمهوري",null,"منقول  ","الثالث","وليد الكعبة ع",44171,null,null,null,null,null,null,null,null,null,null,"الثالث","لم ترد وثيقته","أ","","منقول  ",null,null,null,"الثالث/أ",3,"",null,"القيد غير موجود","محمدالباقر اياد حمزه كريم","الثالث"]
[213,31,14,"مقتدى حيدر حمودي مهدي","ذكر",12,8,2012,"شكرية كاظم علي",null,null,null,"ترحيل",null,null,null,null,null,null,null,null,null,null,null,null,null,"الثالث",null,"أ","","",null,null,null,"الثالث/أ",3,"",null,"31/14","مقتدى حيدر حمودي مهدي","الثالث"]
[214,257,13,"مؤمل حسين عبادي غزاي","ذكر",6,7,2010,"ميثم هيمان عواد",null,null,null,"ترحيل",null,null,null,null,null,null,null,null,null,null,null,null,null,"الثالث",null,"أ","","",null,null,null,"الثالث/أ",3,"",null,"257/13","مؤمل حسين عبادي غزاي","الثالث"]
[215,267,13,"احمد سعيد مري عبدالرضا","ذكر",29,4,2011,"نبراس حسن جوان",null,null,null,"ترحيل",null,null,null,null,null,null,null,null,null,null,null,null,null,"الرابع",null,"أ","","",null,null,null,"الرابع/أ",4,"",null,"267/13","احمد سعيد مري عبدالرضا","الرابع"]
[216,59,14,"احمد محمد عباس حسن","ذكر",6,5,2011,"زينب صالح عباس",null,null,null,"ترحيل",null,null,null,null,null,null,null,null,null,null,null,null,null,"الرابع",null,"أ","","",null,null,null,"الرابع/أ",4,"",null,"59/14","احمد محمد عباس حسن","الرابع"]
[217,305,13,"اسحاق حميد محمد شوكت","ذكر",14,2,2011,"وفاء كاظم محمد",null,null,null,"ترحيل",null,null,null,null,null,null,null,null,null,null,null,null,null,"الرابع",null,"أ","","",null,null,null,"الرابع/أ",4,"",null,"305/13","اسحاق حميد محمد شوكت","الرابع"]
[218,286,13,"جعفر احمد تومان صلال","ذكر",13,12,2011,"دلال عباس حسن",null,null,null,"ترحيل",null,null,null,null,null,null,null,null,null,null,null,null,null,"الرابع",null,"أ","","",null,null,null,"الرابع/أ",4,"",null,"286/13","جعفر احمد تومان صلال","الرابع"]
[219,315,13,"جعفر طالب راضي فضيل","ذكر",26,12,2011,"نجيحه عاجل فضيل",null,null,null,"ترحيل",null,null,null,null,null,null,null,null,null,null,null,null,null,"الرابع",null,"أ","","",null,null,null,"الرابع/أ",4,"",null,"315/13","جعفر طالب راضي فضيل","الرابع"]
[220,268,13,"حسنين عباس وحيد مبارك","ذكر",18,4,2011,"سندس صابر حسين",null,null,null,"ترحيل",null,null,null,null,null,null,null,null,null,null,null,null,null,"الرابع",null,"أ","","",null,null,null,"الرابع/أ",4,"",null,"268/13","حسنين عباس وحيد مبارك","الرابع"]
[221,292,13,"ذوالفقار سيف علي رزوكي","ذكر",25,4,2011,"زهراء مؤيد هاشم",null,null,null,"ترحيل",null,null,null,null,null,null,null,null,null,null,null,null,null,"الرابع",null,"أ","","",null,null,null,"الرابع/أ",4,"",null,"292/13","ذوالفقار سيف علي رزوكي","الرابع"]
[222,311,13,"رضا حيدر حسن مهدي","ذكر",28,10,2011,"غفران رحيم مزعل",null,null,null,"ترحيل",null,null,null,null,null,null,null,null,null,null,null,null,null,"الرابع",null,"أ","","",null,null,null,"الرابع/أ",4,"",null,"311/13","رضا حيدر حسن مهدي","الرابع"]
[223,298,13,"عباس كاظم عبد الخضر حسوني","ذكر",24,6,2011,"زينب عبدالزهرة عبد",null,null,null,"ترحيل",null,null,null,null,null,null,null,null,null,null,null,null,null,"الرابع",null,"أ","","",null,null,null,"الرابع/أ",4,"",null,"298/13","عباس كاظم عبد الخضر حسوني","الرابع"]
[224,310,13,"عباس وليد عليوي عبود","ذكر",1,7,2011,"مريم هادي محمد",null,null,null,"ترحيل",null,null,null,null,null,null,null,null,null,null,null,null,null,"الرابع",null,"أ","","",null,null,null,"الرابع/أ",4,"",null,"310/13","عباس وليد عليوي عبود","الرابع"]
[225,223,13,"علي قحطان سالم ناصر","ذكر",7,3,2010,"غفران حيدر حسن",null,null,null,"ترحيل",null,null,null,null,null,null,null,null,null,null,null,null,null,"الرابع",null,"أ","","",null,null,null,"الرابع/أ",4,"",null,"223/13","علي قحطان سالم ناصر","الرابع"]
[226,60,14,"علي محسن محمد حسن","ذكر",6,2,2011,"فكره نعيم عبد",null,null,null,"ترحيل",null,"المختار","30/9/2018",null,null,null,null,null,null,null,null,null,null,"الرابع",null,"أ","","",null,null,null,"الرابع/أ",4,"",null,"60/14","علي محسن محمد حسن","الرابع"]
[227,234,13,"علي نبيل هاني حمادي","ذكر",5,1,2011,"ميسون موسى عاكول",null,null,null,"ترحيل",null,null,null,null,null,null,null,null,null,null,null,null,null,"الرابع",null,"أ","","",null,null,null,"الرابع/أ",4,"",null,"234/13","علي نبيل هاني حمادي","الرابع"]
[228,276,13,"كرار حسن كاظم جاسم","ذكر",5,9,2011,"زهراء حسين عطيه",null,null,null,"ترحيل",null,null,null,null,null,null,null,null,null,null,null,null,null,"الرابع",null,"أ","","",null,null,null,"الرابع/أ",4,"",null,"276/13","كرار حسن كاظم جاسم","الرابع"]
[229,222,13,"محمد رسول عبد الشريف  حمزه","ذكر",23,9,2010,"هبه حامد عبد الخضر",null,null,null,"ترحيل",null,null,null,null,null,null,null,null,null,null,null,null,null,"الرابع",null,"أ","","",null,null,null,"الرابع/أ",4,"",null,"222/13","محمد رسول عبد الشريف  حمزه","الرابع"]
[230,283,13,"محمد رياض كاظم فضيل","ذكر",18,3,2011,"شيماء عاجل فضيل",null,null,null,"ترحيل",null,null,null,null,null,null,null,null,null,null,null,null,null,"الرابع",null,"أ","","",null,null,null,"الرابع/أ",4,"",null,"283/13","محمد رياض كاظم فضيل","الرابع"]
[231,299,13,"محمد صفاء عدنان عبدالله","ذكر",22,3,2011,"حوراء حسين حريف",null,null,null,"ترحيل",null,null,null,null,null,null,null,null,null,null,null,null,null,"الرابع",null,"أ","","",null,null,null,"الرابع/أ",4,"",null,"299/13","محمد صفاء عدنان عبدالله","الرابع"]
[232,76,14,"محمدرضا علي موسى مطلب","ذكر",23,5,2011,"هديل حسام عبد الشهيد",null,null,null,"ترحيل",null,"اقرأ الاهلية",43407,null,null,null,null,null,null,null,null,null,null,"الرابع",null,"أ","","",null,null,null,"الرابع/أ",4,"",null,"76/14","محمدرضا علي موسى مطلب","الرابع"]
[233,48,13,"مصطفى حيدر جبار سهر","ذكر",16,9,2007,"شيماء شنان شنباره",null,null,null,"معيد ثان عام",null,"","",null,null,null,null,null,null,null,null,null,"","الرابع",null,"أ","","",null,null,null,"الرابع/أ",4,"",null,"48/13","مصطفى حيدر جبار سهر","الرابع"]
[234,303,13,"مؤمل حيدر حمودي مهدي","ذكر",29,6,2011,"شكرية كاظم علي",null,null,null,"ترحيل",null,null,null,null,null,null,null,null,null,null,null,null,null,"الرابع",null,"أ","","",null,null,null,"الرابع/أ",4,"",null,"303/13","مؤمل حيدر حمودي مهدي","الرابع"]
[235,246,13,"أبراهيم حيدر علي عبد العزيز","ذكر",24,8,2010,"زينب عبد المجيد ابراهيم",null,null,null,"ترحيل",null,null,null,null,null,null,null,null,null,null,null,null,null,"الخامس",null,"أ","","",null,null,null,"الخامس/أ",5,"",null,"246/13","أبراهيم حيدر علي عبد العزيز","الخامس"]
[236,216,13,"أبراهيم علي أبراهيم عوده","ذكر",26,8,2009,"نجاة عاجل مريبط",null,null,null,"ترحيل",null,null,null,null,null,null,null,null,null,null,null,null,null,"الخامس",null,"أ","","",null,null,null,"الخامس/أ",5,"",null,"216/13","أبراهيم علي أبراهيم عوده","الخامس"]
[237,142,13,"باقر علاء عيدان عيساوي","ذكر",4,6,2009,"اقبال عبد مطرود",null,null,null,"معيد ثان عام",null,null,null,null,null,null,null,null,null,null,null,null,null,"الخامس",null,"أ","","",null,null,null,"الخامس/أ",5,"",null,"142/13","باقر علاء عيدان عيساوي","الخامس"]
[238,69,13,"حسن ازهر عبدحسن عبيد","ذكر",13,12,2008,"رجاء جبر غريب",null,null,null,"معيد ثان عام",null,"البيارق",null,null,null,null,null,null,null,null,null,null,null,"الخامس",null,"أ","","",null,null,null,"الخامس/أ",5,"",null,"69/13","حسن ازهر عبدحسن عبيد","الخامس"]
[239,161,13,"حسن غماس كليب خضير","ذكر",20,10,2009,"رنا حمزة كاطع",null,null,null,"ترحيل",null,null,null,null,null,null,null,null,null,null,null,null,null,"الخامس",null,"أ","","",null,null,null,"الخامس/أ",5,"",null,"161/13","حسن غماس كليب خضير","الخامس"]
[240,119,14,"حسن فلاح حسن طريد","ذكر",4,7,2010,"داليا سلمان",null,null,null,"ترحيل",null,null,null,null,null,null,null,null,null,null,null,null,null,"الخامس",null,"أ","","",null,null,null,"الخامس/أ",5,"",null,"119/14","حسن فلاح حسن طريد","الخامس"]
[241,114,14,"حسين جواد كاظم عباس","ذكر",16,9,2010,"منتهى حمزه كاصي",null,null,null,"ترحيل",null,null,null,null,null,null,null,null,null,null,null,null,null,"الخامس",null,"أ","","",null,null,null,"الخامس/أ",5,"",null,"114/14","حسين جواد كاظم عباس","الخامس"]
[242,92,13,"حسين حازم جاسم عبود","ذكر",25,8,2008,"هيام كاطع حميد",null,null,null,"معيد اول عام",null,null,null,null,null,null,null,null,null,null,null,null,null,"الخامس",null,"أ","","",null,null,null,"الخامس/أ",5,"",null,"92/13","حسين حازم جاسم عبود","الخامس"]
[243,253,13,"حسين رأفت كاظم كرادي","ذكر",21,11,2010,"ساره مزعل راضي",null,null,null,"ترحيل",null,null,null,null,null,null,null,null,null,null,null,null,null,"الخامس",null,"أ","","",null,null,null,"الخامس/أ",5,"",null,"253/13","حسين رأفت كاظم كرادي","الخامس"]
[244,228,13,"حسين رياض عبد اللطيف نصيف","ذكر",27,9,2010,"ذكرى كريم نصيف",null,null,null,"ترحيل",null,null,null,null,null,null,null,null,null,null,null,null,null,"الخامس",null,"أ","","",null,null,null,"الخامس/أ",5,"",null,"228/13","حسين رياض عبد اللطيف نصيف","الخامس"]
[245,241,13,"حسين زاهر كاظم حسن","ذكر",26,4,2010,"الاء ستار حسن",null,null,null,"ترحيل",null,null,null,null,null,null,null,null,null,null,null,null,null,"الخامس",null,"أ","","",null,null,null,"الخامس/أ",5,"",null,"241/13","حسين زاهر كاظم حسن","الخامس"]
[246,240,13,"حسين علي باقر ياسر","ذكر",1,5,2010,"سهى غانم ياسر",null,null,null,"ترحيل",null,null,null,null,null,null,null,null,null,null,null,null,null,"الخامس",null,"أ","","",null,null,null,"الخامس/أ",5,"",null,"240/13","حسين علي باقر ياسر","الخامس"]
[247,42,13,"حسين وقاص صباح حرجان","ذكر",4,1,2007,"رنا صالح عبد العالي",null,null,null,"معيد ثان عام",null,null,null,null,null,null,null,null,null,null,null,null,null,"الخامس",null,"أ","","",null,null,null,"الخامس/أ",5,"",null,"42/13","حسين وقاص صباح حرجان","الخامس"]
[248,186,13,"حمزة جبار كاظم حسن","ذكر",5,1,2008,"نوفه مطير حسوني",null,null,null,"معيد اول عام",null,"قريش","2016/2/29",null,null,null,null,null,null,null,null,null,null,"الخامس",null,"أ","","",null,null,null,"الخامس/أ",5,"",null,"186/13","حمزة جبار كاظم حسن","الخامس"]
[249,217,13,"حيدر مهدي طالب علي","ذكر",10,10,2010,"صمود عيدان صلهوم",null,null,null,"ترحيل",null,null,null,null,null,null,null,null,null,null,null,null,null,"الخامس",null,"أ","","",null,null,null,"الخامس/أ",5,"",null,"217/13","حيدر مهدي طالب علي","الخامس"]
[250,150,13,"رضا نبيل هاني حمادي","ذكر",3,11,2008,"ميسون موسى عاكول",null,null,null,"معيد اول عام",null,null,null,null,null,null,null,null,null,null,null,null,null,"الخامس",null,"أ","","",null,null,null,"الخامس/أ",5,"",null,"150/13","رضا نبيل هاني حمادي","الخامس"]
[251,null,null,"سجاد جاسم محمد","ذكر",null,null,null,null,null,null,null,"منقول  ","الخامس",null,null,null,null,null,null,null,null,null,null,null,null,"الخامس",null,"أ","","منقول  ",null,null,null,"الخامس/أ",5,"",null,"القيد غير موجود","سجاد جاسم محمد","الخامس"]
[252,220,13,"عباس انمار كريم محمد","ذكر",1,1,2011,"بشرى عبد الجبار حمود",null,null,null,"ترحيل",null,null,null,null,null,null,null,null,null,null,null,null,null,"الخامس",null,"أ","","",null,null,null,"الخامس/أ",5,"",null,"220/13","عباس انمار كريم محمد","الخامس"]
[253,116,14,"عباس حسين علي هلول","ذكر",8,8,2010,"رنا عباس اسماعيل",null,null,null,"ترحيل",null,null,null,null,null,null,null,null,null,null,null,null,null,"الخامس",null,"أ","","",null,null,null,"الخامس/أ",5,"",null,"116/14","عباس حسين علي هلول","الخامس"]
[254,249,13,"عباس صفاء بدري خضر","ذكر",26,7,2010,"هدى مهدي عبد الخضر",null,null,null,"ترحيل",null,null,null,null,null,null,null,null,null,null,null,null,null,"الخامس",null,"أ","","",null,null,null,"الخامس/أ",5,"",null,"249/13","عباس صفاء بدري خضر","الخامس"]
[255,"326",12,"عباس علي ابراهيم عوده","ذكر",22,12,2006,"نجاة عاجل مريبط",null,null,null,"معيد ثان عام",null,null,null,null,null,null,null,null,null,null,null,null,null,"الخامس",null,"أ","","",null,null,null,"الخامس/أ",5,"",null,"326/12","عباس علي ابراهيم عوده","الخامس"]
[256,247,13,"عباس محمد نجم نذير","ذكر",14,8,2010,"صبا سلام عبد العزيز",null,null,null,"ترحيل",null,null,null,null,null,null,null,null,null,null,null,null,null,"الخامس",null,"أ","","",null,null,null,"الخامس/أ",5,"",null,"247/13","عباس محمد نجم نذير","الخامس"]
[257,237,13,"عباس مسلم مزهر كاني","ذكر",4,10,2010,"عذراء جابر فرحان",null,null,null,"ترحيل",null,null,null,null,null,null,null,null,null,null,null,null,null,"الخامس",null,"أ","","",null,null,null,"الخامس/أ",5,"",null,"237/13","عباس مسلم مزهر كاني","الخامس"]
[258,61,14,"علي احمد عبد الله غالي","ذكر",4,4,2010,"زينب سمير محيل",null,null,null,"ترحيل",null,"حطين","30/9/2018",null,null,null,null,null,null,null,null,null,null,"الخامس",null,"أ","","",null,null,null,"الخامس/أ",5,"",null,"61/14",{"$f":"D273","v":"علي احمد عبد الله غالي"},{"$f":"AA273","v":"الخامس"}]
[259,49,13,"علي رحيم ساجت خواف","ذكر",18,10,2007,"فاطمه مطشر ردام",null,null,null,"ترحيل",null,null,null,null,null,null,null,null,null,null,null,null,null,"الخامس",null,"أ","","",null,null,null,"الخامس/أ",5,"",null,"49/13","علي رحيم ساجت خواف","الخامس"]
[260,105,13,"علي محمد علي طحيور","ذكر",27,8,2008,"غيداء عبد الرضي احمد",null,null,null,"معيد ثان عام",null,"","",null,null,null,null,null,null,null,null,null,"","الخامس",null,"أ","","",null,null,null,"الخامس/أ",5,"",null,"105/13","علي محمد علي طحيور","الخامس"]
[261,239,13,"كرار وسام حسان عبد","ذكر",26,7,2010,"نغم حبيب جودة",null,null,null,"ترحيل",null,null,null,null,null,null,null,null,null,null,null,null,null,"الخامس",null,"ب","","",null,null,null,"الخامس/ب",5,"",null,"239/13","كرار وسام حسان عبد","الخامس"]
[262,233,13,"مجتبى تحسين علي داخل","ذكر",1,1,2011,"رقيه كامل شريف",null,null,null,"ترحيل",null,null,null,null,null,null,null,null,null,null,null,null,null,"الخامس",null,"ب","","",null,null,null,"الخامس/ب",5,"",null,"233/13","مجتبى تحسين علي داخل","الخامس"]
[263,265,13,"مجتبى علي اخضير محسن","ذكر",29,1,2008,"فاطمه محمد قرداش",null,null,null,"ترحيل",null,"المرتضى_النجف الاشرف",null,null,null,null,null,null,null,null,null,null,null,"الخامس",null,"ب","","",null,null,null,"الخامس/ب",5,"",null,"265/13","مجتبى علي اخضير محسن","الخامس"]
[264,230,13,"محمد حمزه بجاي  محسن","ذكر",6,10,2010,"خديجه شلاكه رداد",null,null,null,"ترحيل",null,null,null,null,null,null,null,null,null,null,null,null,null,"الخامس",null,"ب","","",null,null,null,"الخامس/ب",5,"",null,"230/13","محمد حمزه بجاي  محسن","الخامس"]
[265,231,13,"محمد ياسر رزاق كاظم","ذكر",2,8,2010,"انتصار تركي وثيج",null,null,null,"ترحيل",null,null,null,null,null,null,null,null,null,null,null,null,null,"الخامس",null,"ب","","",null,null,null,"الخامس/ب",5,"",null,"231/13","محمد ياسر رزاق كاظم","الخامس"]
[266,242,13,"مرتضى علاء عيدان عيساوي","ذكر",15,9,2010,"امال عبد مطرود",null,null,null,"ترحيل",null,null,null,null,null,null,null,null,null,null,null,null,null,"الخامس",null,"ب","","",null,null,null,"الخامس/ب",5,"",null,"242/13","مرتضى علاء عيدان عيساوي","الخامس"]
[267,210,13,"مسلم عقيل علوان عزوز","ذكر",20,6,2010,"فرنسا عوض جعيول",null,null,null,"ترحيل",null,null,null,null,null,null,null,null,null,null,null,null,null,"الخامس",null,"ب","","",null,null,null,"الخامس/ب",5,"",null,"210/13","مسلم عقيل علوان عزوز","الخامس"]
[268,137,13,"مصطفى هادي محمد خضير","ذكر",12,3,2009,"سعيده كريم مذبوب",null,null,null,"ترحيل",null,null,null,null,null,null,null,null,null,null,null,null,null,"الخامس",null,"ب","","",null,null,null,"الخامس/ب",5,"",null,"137/13","مصطفى هادي محمد خضير","الخامس"]
[269,218,13,"منتظر فالح كزار شنيار","ذكر",23,8,2010,"سحر حسن عبد",null,null,null,"ترحيل",null,null,null,null,null,null,null,null,null,null,null,null,null,"الخامس",null,"ب","","",null,null,null,"الخامس/ب",5,"",null,"218/13","منتظر فالح كزار شنيار","الخامس"]
[270,138,13,"احمدموسى حازم عجه عبد الحسين","ذكر",23,5,2009,"اخلاص طحيور عبدالحسين",null,null,null,"ترحيل",null,null,null,null,null,null,null,null,null,null,null,null,null,"السادس",null,"أ","","",null,null,null,"السادس/أ",6,"",null,"138/13","احمدموسى حازم عجه عبد الحسين","السادس"]
[271,134,13,"امير جاسم داخل عبد","ذكر",1,10,2009,"زينب كاظم حسين",null,null,null,"ترحيل",null,null,null,null,null,null,null,null,null,null,null,null,null,"السادس",null,"أ","","",null,null,null,"السادس/أ",6,"",null,"134/13","امير جاسم داخل عبد","السادس"]
[272,160,13,"أمير خالد جمال هاشم","ذكر",20,2,2009,"مروه كريم ناصر",null,null,null,"ترحيل",null,null,null,null,null,null,null,null,null,null,null,null,null,"السادس",null,"أ","","",null,null,null,"السادس/أ",6,"",null,"160/13","أمير خالد جمال هاشم","السادس"]
[273,202,13,"باقر رياض حمزه مطر","ذكر",3,11,2009,"زينب تالي خلف",null,null,null,"ترحيل",null,"الحبوبي","25/10/2016",null,null,null,null,null,null,null,null,null,null,"السادس",null,"أ","","",null,null,null,"السادس/أ",6,"",null,"202/13","باقر رياض حمزه مطر","السادس"]
[274,159,13,"حسن حازم منشد فرج","ذكر",3,9,2009,"دلال حسين غريب",null,null,null,"ترحيل",null,null,null,null,null,null,null,null,null,null,null,null,null,"السادس",null,"أ","","",null,null,null,"السادس/أ",6,"",null,"159/13","حسن حازم منشد فرج","السادس"]
[275,206,13,"حسين احمد عزيز راضي","ذكر",19,12,2009,"حميده كشيش ماضي",null,null,null,"ترحيل",null,"الحوراء للبنات","28/9/2016",null,null,null,null,null,null,null,null,null,null,"السادس",null,"أ","","",null,null,null,"السادس/أ",6,"",null,"206/13","حسين احمد عزيز راضي","السادس"]
[276,54,13,"حسين علاء فليح حسن","ذكر",4,12,2007,"منال فليح حسن",null,null,null,"ترحيل",null,"","",null,null,null,null,null,null,null,null,null,"","السادس",null,"أ","","",null,null,null,"السادس/أ",6,"",null,"54/13","حسين علاء فليح حسن","السادس"]
[277,156,13,"حسين محمد جابر شاطي","ذكر",20,7,2009,"بشرى حسن هلال",null,null,null,"ترحيل",null,null,null,null,null,null,null,null,null,null,null,null,null,"السادس",null,"أ","","",null,null,null,"السادس/أ",6,"",null,"156/13","حسين محمد جابر شاطي","السادس"]
[278,70,13,"رضا عباس عبيد عطيه","ذكر",14,5,2008,"اخلاص كاظم خضير",null,null,null,"ترحيل",null,"","",null,null,null,null,null,null,null,null,null,"","السادس",null,"أ","","",null,null,null,"السادس/أ",6,"",null,"70/13","رضا عباس عبيد عطيه","السادس"]
[279,266,12,"رضا فاضل علي عبيد","ذكر",2,1,2006,"عذراء عبد حسن عبيد",null,null,null,"ترحيل",null,null,null,null,null,null,null,null,null,null,null,null,null,"السادس",null,"أ","","",null,null,null,"السادس/أ",6,"",null,"266/12","رضا فاضل علي عبيد","السادس"]
[280,165,13,"سجاد محمد هليل عسر","ذكر",2,6,2009,"زمن كاظم عسر",null,null,null,"ترحيل",null,null,null,null,null,null,null,null,null,null,null,null,null,"السادس",null,"أ","","",null,null,null,"السادس/أ",6,"",null,"165/13","سجاد محمد هليل عسر","السادس"]
[281,175,13,"سيف اسعد شلال شهاب","ذكر",25,3,2009,"هبه وحيد عويد",null,null,null,"ترحيل",null,null,null,null,null,null,null,null,null,null,null,null,null,"السادس",null,"أ","","",null,null,null,"السادس/أ",6,"",null,"175/13","سيف اسعد شلال شهاب","السادس"]
[282,80,13,"طالب رياض طالب ارحيم","ذكر",20,6,2008,"نجلاء شاكر ابراهيم",null,null,null,"ترحيل",null,"","",null,null,null,null,null,null,null,null,null,"","السادس",null,"أ","","",null,null,null,"السادس/أ",6,"",null,"80/13","طالب رياض طالب ارحيم","السادس"]
[283,157,13,"عباس فالح والي سلمان","ذكر",4,10,2009,"اخلاص ابو الهيل جميل",null,null,null,"ترحيل",null,null,null,null,null,null,null,null,null,null,null,null,null,"السادس",null,"أ","","",null,null,null,"السادس/أ",6,"",null,"157/13","عباس فالح والي سلمان","السادس"]
[284,167,13,"علي احمد رحيم خضور","ذكر",6,1,2010,"مها ياسراوثيج",null,null,null,"ترحيل",null,null,null,null,null,null,null,null,null,null,null,null,null,"السادس",null,"أ","","",null,null,null,"السادس/أ",6,"",null,"167/13","علي احمد رحيم خضور","السادس"]
[285,101,13,"علي اكبر علاء حميد غزاي","ذكر",15,1,2009,"تغريد عبد الكاظم حسين",null,null,null,"ترحيل",null,"","",null,null,null,null,null,null,null,null,null,"","السادس",null,"أ","","",null,null,null,"السادس/أ",6,"",null,"101/13","علي اكبر علاء حميد غزاي","السادس"]
[286,173,13,"علي الكرار تحسين علي داخل","ذكر",16,8,2009,"رقيه كامل شريف",null,null,null,"ترحيل",null,null,null,null,null,null,null,null,null,null,null,null,null,"السادس",null,"أ","","",null,null,null,"السادس/أ",6,"",null,"173/13","علي الكرار تحسين علي داخل","السادس"]
[287,264,13,"علي حسين جابر بريج","ذكر",19,6,2009,"غفران كامل عليوي",null,null,null,"ترحيل",null,"فاطمة بنت اسد",null,null,null,null,null,null,null,null,null,null,null,"السادس",null,"أ","","",null,null,null,"السادس/أ",6,"",null,"264/13","علي حسين جابر بريج","السادس"]
[288,143,13,"علي حسين شلاكه رداد","ذكر",14,9,2009,"صابرين محمد حمزه",null,null,null,"ترحيل",null,null,null,null,null,null,null,null,null,null,null,null,null,"السادس",null,"أ","","",null,null,null,"السادس/أ",6,"",null,"143/13","علي حسين شلاكه رداد","السادس"]
[289,51,13,"كرار مرتضى حسن عجيل","ذكر",25,6,2007,"سها يوسف محمد علي",null,null,null,"ترحيل",null,"","",null,null,null,null,null,null,null,null,null,"","السادس",null,"أ","","",null,null,null,"السادس/أ",6,"",null,"51/13","كرار مرتضى حسن عجيل","السادس"]
[290,14,13,"مالك حازم حياوي جليل","ذكر",1,11,2007,"انتصار علي حسين",null,null,null,"ترحيل",null,"","",null,null,null,null,null,null,null,null,null,"","السادس",null,"أ","","",null,null,null,"السادس/أ",6,"",null,"14/13","مالك حازم حياوي جليل","السادس"]
[291,169,13,"محمد جواد كاظم عباس","ذكر",20,4,2009,"منتهى حمزه كاحي",null,null,null,"ترحيل",null,null,null,null,null,null,null,null,null,null,null,null,null,"السادس",null,"أ","","",null,null,null,"السادس/أ",6,"",null,"169/13","محمد جواد كاظم عباس","السادس"]
[292,322,13,"محمد حيدر جفات ثجيل","ذكر",21,6,2008,"زينب ناهي ميلح",null,null,null,"ترحيل",null,"حضارة اوروك",null,null,null,null,null,null,null,null,null,null,null,"السادس",null,"أ","","",null,null,null,"السادس/أ",6,"",null,"322/13","محمد حيدر جفات ثجيل","السادس"]
[293,154,13,"محمد رحيم بديوي شكاكي","ذكر",22,7,2009,"خوله حميد ظاهر",null,null,null,"ترحيل",null,null,null,null,null,null,null,null,null,null,null,null,null,"السادس",null,"أ","","",null,null,null,"السادس/أ",6,"",null,"154/13","محمد رحيم بديوي شكاكي","السادس"]
[294,140,13,"محمد ماجد داخل محمد","ذكر",8,9,2009,"نضال اسماعيل كعيم",null,null,null,"ترحيل",null,null,null,null,null,null,null,null,null,null,null,null,null,"السادس",null,"أ","","",null,null,null,"السادس/أ",6,"",null,"140/13","محمد ماجد داخل محمد","السادس"]
[295,146,13,"محمد ميثم عبد المحسن عبد الشهيد","ذكر",13,4,2009,"دنيا كريم عمران",null,null,null,"ترحيل",null,null,null,null,null,null,null,null,null,null,null,null,null,"السادس",null,"أ","","",null,null,null,"السادس/أ",6,"",null,"146/13","محمد ميثم عبد المحسن عبد الشهيد","السادس"]
[296,262,13,"مراد خالد عبد اليمه بكه","ذكر",3,1,2009,"وفاء مسبح بكه",null,null,null,"ترحيل",null,"الشيماء",null,null,null,null,null,null,null,null,null,null,null,"السادس",null,"أ","","",null,null,null,"السادس/أ",6,"",null,"262/13","مراد خالد عبد اليمه بكه","السادس"]
[297,81,13,"مصطفى احمد علي محسن","ذكر",6,10,2008,"براء سعدي حميد",null,null,null,"ترحيل",null,"","",null,null,null,null,null,null,null,null,null,"","السادس",null,"أ","","",null,null,null,"السادس/أ",6,"",null,"81/13","مصطفى احمد علي محسن","السادس"]
[298,"309",12,"منتظر حيدر فاضل جابر","ذكر",27,12,2006,"دعاء عباس وحيد",null,null,null,"ترحيل",null,"","",null,null,null,null,null,null,null,null,null,"","السادس",null,"أ","","",null,null,null,"السادس/أ",6,"",null,"309/12","منتظر حيدر فاضل جابر","السادس"]
[299,149,13,"مهند قاسم كريم نوري","ذكر",23,6,2009,"ميثاق داود ناصر",null,null,null,"ترحيل",null,null,null,null,null,null,null,null,null,null,null,null,null,"السادس",null,"أ","","",null,null,null,"السادس/أ",6,"",null,"149/13","مهند قاسم كريم نوري","السادس"]
[300,164,13,"مؤمل عباس جاسم كاطع","ذكر",16,7,2009,"نقلية رجا عجيل",null,null,null,"ترحيل",null,null,null,null,null,null,null,null,null,null,null,null,null,"السادس",null,"أ","","",null,null,null,"السادس/أ",6,"",null,"164/13","مؤمل عباس جاسم كاطع","السادس"]
[301,84,13,"ياسر حسن شاكر سهر","ذكر",9,1,2009,"مروه محمد امين",null,null,null,"ترحيل",null,"","",null,null,null,null,null,null,null,null,null,"","السادس",null,"أ","","",null,null,null,"السادس/أ",6,"",null,"84/13","ياسر حسن شاكر سهر","السادس"]
[{"$f":"IF(C317=\"\",\"\",SUBTOTAL(3,$C$16:$C317))","v":""}]
[{"$f":"IF(C318=\"\",\"\",SUBTOTAL(3,$C$16:$C318))","v":""}]
[{"$f":"IF(C319=\"\",\"\",SUBTOTAL(3,$C$16:$C319))","v":""}]
[{"$f":"IF(C320=\"\",\"\",SUBTOTAL(3,$C$16:$C320))","v":""}]
[{"$f":"IF(C321=\"\",\"\",SUBTOTAL(3,$C$16:$C321))","v":""}]
[{"$f":"IF(C322=\"\",\"\",SUBTOTAL(3,$C$16:$C322))","v":""}]
[{"$f":"IF(C323=\"\",\"\",SUBTOTAL(3,$C$16:$C323))","v":""}]
[{"$f":"IF(C324=\"\",\"\",SUBTOTAL(3,$C$16:$C324))","v":""}]
[{"$f":"IF(C325=\"\",\"\",SUBTOTAL(3,$C$16:$C325))","v":""}]
[{"$f":"IF(C326=\"\",\"\",SUBTOTAL(3,$C$16:$C326))","v":""}]
[{"$f":"IF(C327=\"\",\"\",SUBTOTAL(3,$C$16:$C327))","v":""}]
[{"$f":"IF(C328=\"\",\"\",SUBTOTAL(3,$C$16:$C328))","v":""}]
[{"$f":"IF(C329=\"\",\"\",SUBTOTAL(3,$C$16:$C329))","v":""}]